Workbook

Sheet 1
C2: 2020-01-01
B3: م | C3: تاريخ | D3: الاسم | E3: الوصف | F3: رقم الفاتورة | G3: شتات | I3: المصروفات والايرادات | K3: الدلالة
G4: مستحقة | H4: سداد | I4: مصروفات | J4: ايرادات
A5: =IF(D5=الصيادين!$C$1,COUNTIF($D$5:D5,D5),"") -> 1 | B5: 1 | C5: 2019-12-13 | D5: محمد | E5: hnnfggfgf | F5: 1 | G5: 2 | H5: 2 | I5: 8 | J5: 4 | K5: 5
A6: =IF(D6=الصيادين!$C$1,COUNTIF($D$5:D6,D6),"") ->  | B6: 2 | C6: 2019-10-01 | D6: يوسف | E6: فاتورة شراء | F6: 500 | G6: 800 | H6: 200 | I6: 150 | J6: 300 | K6: 4
A7: =IF(D7=الصيادين!$C$1,COUNTIF($D$5:D7,D7),"") ->  | B7: 3
A8: =IF(D8=الصيادين!$C$1,COUNTIF($D$5:D8,D8),"") ->  | B8: 4
A9: =IF(D9=الصيادين!$C$1,COUNTIF($D$5:D9,D9),"") ->  | B9: 5
A10: =IF(D10=الصيادين!$C$1,COUNTIF($D$5:D10,D10),"") ->  | B10: 6
A11: =IF(D11=الصيادين!$C$1,COUNTIF($D$5:D11,D11),"") ->  | B11: 7
A12: =IF(D12=الصيادين!$C$1,COUNTIF($D$5:D12,D12),"") ->  | B12: 8
A13: =IF(D13=الصيادين!$C$1,COUNTIF($D$5:D13,D13),"") ->  | B13: 9
A14: =IF(D14=الصيادين!$C$1,COUNTIF($D$5:D14,D14),"") ->  | B14: 10
A15: =IF(D15=الصيادين!$C$1,COUNTIF($D$5:D15,D15),"") ->  | B15: 11
A16: =IF(D16=الصيادين!$C$1,COUNTIF($D$5:D16,D16),"") ->  | B16: 12
A17: =IF(D17=الصيادين!$C$1,COUNTIF($D$5:D17,D17),"") ->  | B17: 13
A18: =IF(D18=الصيادين!$C$1,COUNTIF($D$5:D18,D18),"") ->  | B18: 14
A19: =IF(D19=الصيادين!$C$1,COUNTIF($D$5:D19,D19),"") ->  | B19: 15
A20: =IF(D20=الصيادين!$C$1,COUNTIF($D$5:D20,D20),"") ->  | B20: 16
A21: =IF(D21=الصيادين!$C$1,COUNTIF($D$5:D21,D21),"") ->  | B21: 17
A22: =IF(D22=الصيادين!$C$1,COUNTIF($D$5:D22,D22),"") ->  | B22: 18
A23: =IF(D23=الصيادين!$C$1,COUNTIF($D$5:D23,D23),"") ->  | B23: 19
A24: =IF(D24=الصيادين!$C$1,COUNTIF($D$5:D24,D24),"") ->  | B24: 20
A25: =IF(D25=الصيادين!$C$1,COUNTIF($D$5:D25,D25),"") ->  | B25: 21
A26: =IF(D26=الصيادين!$C$1,COUNTIF($D$5:D26,D26),"") ->  | B26: 22
A27: =IF(D27=الصيادين!$C$1,COUNTIF($D$5:D27,D27),"") ->  | B27: 23
A28: =IF(D28=الصيادين!$C$1,COUNTIF($D$5:D28,D28),"") ->  | B28: 24
A29: =IF(D29=الصيادين!$C$1,COUNTIF($D$5:D29,D29),"") ->  | B29: 25
A30: =IF(D30=الصيادين!$C$1,COUNTIF($D$5:D30,D30),"") ->  | B30: 26
A31: =IF(D31=الصيادين!$C$1,COUNTIF($D$5:D31,D31),"") ->  | B31: 27
A32: =IF(D32=الصيادين!$C$1,COUNTIF($D$5:D32,D32),"") ->  | B32: 28
A33: =IF(D33=الصيادين!$C$1,COUNTIF($D$5:D33,D33),"") ->  | B33: 29
A34: =IF(D34=الصيادين!$C$1,COUNTIF($D$5:D34,D34),"") ->  | B34: 30
A35: =IF(D35=الصيادين!$C$1,COUNTIF($D$5:D35,D35),"") ->  | B35: 31
A36: =IF(D36=الصيادين!$C$1,COUNTIF($D$5:D36,D36),"") ->  | B36: 32
A37: =IF(D37=الصيادين!$C$1,COUNTIF($D$5:D37,D37),"") ->  | B37: 33
A38: =IF(D38=الصيادين!$C$1,COUNTIF($D$5:D38,D38),"") ->  | B38: 34
A39: =IF(D39=الصيادين!$C$1,COUNTIF($D$5:D39,D39),"") ->  | B39: 35
A40: =IF(D40=الصيادين!$C$1,COUNTIF($D$5:D40,D40),"") ->  | B40: 36
A41: =IF(D41=الصيادين!$C$1,COUNTIF($D$5:D41,D41),"") ->  | B41: 37
A42: =IF(D42=الصيادين!$C$1,COUNTIF($D$5:D42,D42),"") ->  | B42: 38
A43: =IF(D43=الصيادين!$C$1,COUNTIF($D$5:D43,D43),"") ->  | B43: 39
A44: =IF(D44=الصيادين!$C$1,COUNTIF($D$5:D44,D44),"") ->  | B44: 40
A45: =IF(D45=الصيادين!$C$1,COUNTIF($D$5:D45,D45),"") ->  | B45: 41
A46: =IF(D46=الصيادين!$C$1,COUNTIF($D$5:D46,D46),"") ->  | B46: 42
A47: =IF(D47=الصيادين!$C$1,COUNTIF($D$5:D47,D47),"") ->  | B47: 43
A48: =IF(D48=الصيادين!$C$1,COUNTIF($D$5:D48,D48),"") ->  | B48: 44
A49: =IF(D49=الصيادين!$C$1,COUNTIF($D$5:D49,D49),"") ->  | B49: 45
A50: =IF(D50=الصيادين!$C$1,COUNTIF($D$5:D50,D50),"") ->  | B50: 46
A51: =IF(D51=الصيادين!$C$1,COUNTIF($D$5:D51,D51),"") ->  | B51: 47
A52: =IF(D52=الصيادين!$C$1,COUNTIF($D$5:D52,D52),"") ->  | B52: 48
A53: =IF(D53=الصيادين!$C$1,COUNTIF($D$5:D53,D53),"") ->  | B53: 49
A54: =IF(D54=الصيادين!$C$1,COUNTIF($D$5:D54,D54),"") ->  | B54: 50
A55: =IF(D55=الصيادين!$C$1,COUNTIF($D$5:D55,D55),"") ->  | B55: 51
A56: =IF(D56=الصيادين!$C$1,COUNTIF($D$5:D56,D56),"") ->  | B56: 52
A57: =IF(D57=الصيادين!$C$1,COUNTIF($D$5:D57,D57),"") ->  | B57: 53
A58: =IF(D58=الصيادين!$C$1,COUNTIF($D$5:D58,D58),"") ->  | B58: 54
A59: =IF(D59=الصيادين!$C$1,COUNTIF($D$5:D59,D59),"") ->  | B59: 55
A60: =IF(D60=الصيادين!$C$1,COUNTIF($D$5:D60,D60),"") ->  | B60: 56
A61: =IF(D61=الصيادين!$C$1,COUNTIF($D$5:D61,D61),"") ->  | B61: 57
A62: =IF(D62=الصيادين!$C$1,COUNTIF($D$5:D62,D62),"") ->  | B62: 58
A63: =IF(D63=الصيادين!$C$1,COUNTIF($D$5:D63,D63),"") ->  | B63: 59
A64: =IF(D64=الصيادين!$C$1,COUNTIF($D$5:D64,D64),"") ->  | B64: 60
A65: =IF(D65=الصيادين!$C$1,COUNTIF($D$5:D65,D65),"") ->  | B65: 61
A66: =IF(D66=الصيادين!$C$1,COUNTIF($D$5:D66,D66),"") ->  | B66: 62
A67: =IF(D67=الصيادين!$C$1,COUNTIF($D$5:D67,D67),"") ->  | B67: 63
A68: =IF(D68=الصيادين!$C$1,COUNTIF($D$5:D68,D68),"") ->  | B68: 64
A69: =IF(D69=الصيادين!$C$1,COUNTIF($D$5:D69,D69),"") ->  | B69: 65
A70: =IF(D70=الصيادين!$C$1,COUNTIF($D$5:D70,D70),"") ->  | B70: 66
A71: =IF(D71=الصيادين!$C$1,COUNTIF($D$5:D71,D71),"") ->  | B71: 67
A72: =IF(D72=الصيادين!$C$1,COUNTIF($D$5:D72,D72),"") ->  | B72: 68
A73: =IF(D73=الصيادين!$C$1,COUNTIF($D$5:D73,D73),"") ->  | B73: 69
A74: =IF(D74=الصيادين!$C$1,COUNTIF($D$5:D74,D74),"") ->  | B74: 70
A75: =IF(D75=الصيادين!$C$1,COUNTIF($D$5:D75,D75),"") ->  | B75: 71
A76: =IF(D76=الصيادين!$C$1,COUNTIF($D$5:D76,D76),"") ->  | B76: 72
A77: =IF(D77=الصيادين!$C$1,COUNTIF($D$5:D77,D77),"") ->  | B77: 73
A78: =IF(D78=الصيادين!$C$1,COUNTIF($D$5:D78,D78),"") ->  | B78: 74
A79: =IF(D79=الصيادين!$C$1,COUNTIF($D$5:D79,D79),"") ->  | B79: 75
A80: =IF(D80=الصيادين!$C$1,COUNTIF($D$5:D80,D80),"") ->  | B80: 76
A81: =IF(D81=الصيادين!$C$1,COUNTIF($D$5:D81,D81),"") ->  | B81: 77
A82: =IF(D82=الصيادين!$C$1,COUNTIF($D$5:D82,D82),"") ->  | B82: 78
A83: =IF(D83=الصيادين!$C$1,COUNTIF($D$5:D83,D83),"") ->  | B83: 79
A84: =IF(D84=الصيادين!$C$1,COUNTIF($D$5:D84,D84),"") ->  | B84: 80
A85: =IF(D85=الصيادين!$C$1,COUNTIF($D$5:D85,D85),"") ->  | B85: 81
A86: =IF(D86=الصيادين!$C$1,COUNTIF($D$5:D86,D86),"") ->  | B86: 82
A87: =IF(D87=الصيادين!$C$1,COUNTIF($D$5:D87,D87),"") ->  | B87: 83
A88: =IF(D88=الصيادين!$C$1,COUNTIF($D$5:D88,D88),"") ->  | B88: 84
A89: =IF(D89=الصيادين!$C$1,COUNTIF($D$5:D89,D89),"") ->  | B89: 85
A90: =IF(D90=الصيادين!$C$1,COUNTIF($D$5:D90,D90),"") ->  | B90: 86
A91: =IF(D91=الصيادين!$C$1,COUNTIF($D$5:D91,D91),"") ->  | B91: 87
A92: =IF(D92=الصيادين!$C$1,COUNTIF($D$5:D92,D92),"") ->  | B92: 88
A93: =IF(D93=الصيادين!$C$1,COUNTIF($D$5:D93,D93),"") ->  | B93: 89
A94: =IF(D94=الصيادين!$C$1,COUNTIF($D$5:D94,D94),"") ->  | B94: 90
A95: =IF(D95=الصيادين!$C$1,COUNTIF($D$5:D95,D95),"") ->  | B95: 91
A96: =IF(D96=الصيادين!$C$1,COUNTIF($D$5:D96,D96),"") ->  | B96: 92
A97: =IF(D97=الصيادين!$C$1,COUNTIF($D$5:D97,D97),"") ->  | B97: 93
A98: =IF(D98=الصيادين!$C$1,COUNTIF($D$5:D98,D98),"") ->  | B98: 94
A99: =IF(D99=الصيادين!$C$1,COUNTIF($D$5:D99,D99),"") ->  | B99: 95
A100: =IF(D100=الصيادين!$C$1,COUNTIF($D$5:D100,D100),"") ->  | B100: 96
A101: =IF(D101=الصيادين!$C$1,COUNTIF($D$5:D101,D101),"") ->  | B101: 97
A102: =IF(D102=الصيادين!$C$1,COUNTIF($D$5:D102,D102),"") ->  | B102: 98
A103: =IF(D103=الصيادين!$C$1,COUNTIF($D$5:D103,D103),"") ->  | B103: 99
A104: =IF(D104=الصيادين!$C$1,COUNTIF($D$5:D104,D104),"") ->  | B104: 100
G105: =SUM(G5:G104) -> 802 | H105: =SUM(H5:H104) -> 202 | I105: =SUM(I5:I104) -> 158 | J105: =SUM(J5:J104) -> 304
C106: النقدى | E106: 400
C107: الاستيفاء | E107: 10
C108: الايرادات | E108: =J105 -> 304
C109: المدخول | E109: =E106+E107+E108 -> 714
C110: المصروفات | E110: =H105+I105 -> 360
C111: صافى المدخول | E111: =E109-E110 -> 354

Sheet 2
C2: 2020-01-02
B3: م | C3: تاريخ | D3: الاسم | E3: الوصف | F3: رقم الفاتورة | G3: شتات | I3: المصروفات والايرادات | K3: الدلالة
G4: مستحقة | H4: سداد | I4: مصروفات | J4: ايرادات
A5: =IF(D5=الصيادين!$C$1,COUNTIF($D$5:D5,D5),"") ->  | B5: 1 | C5: 2019-07-01 | D5: يوسف | E5: فاتورة بيع | F5: 8005 | G5: 900 | H5: 350 | I5: 120 | J5: 200 | K5: 6
A6: =IF(D6=الصيادين!$C$1,COUNTIF($D$5:D6,D6),"") ->  | B6: 2
A7: =IF(D7=الصيادين!$C$1,COUNTIF($D$5:D7,D7),"") ->  | B7: 3
A8: =IF(D8=الصيادين!$C$1,COUNTIF($D$5:D8,D8),"") ->  | B8: 4
A9: =IF(D9=الصيادين!$C$1,COUNTIF($D$5:D9,D9),"") ->  | B9: 5
A10: =IF(D10=الصيادين!$C$1,COUNTIF($D$5:D10,D10),"") ->  | B10: 6
A11: =IF(D11=الصيادين!$C$1,COUNTIF($D$5:D11,D11),"") ->  | B11: 7
A12: =IF(D12=الصيادين!$C$1,COUNTIF($D$5:D12,D12),"") ->  | B12: 8
A13: =IF(D13=الصيادين!$C$1,COUNTIF($D$5:D13,D13),"") ->  | B13: 9
A14: =IF(D14=الصيادين!$C$1,COUNTIF($D$5:D14,D14),"") ->  | B14: 10
A15: =IF(D15=الصيادين!$C$1,COUNTIF($D$5:D15,D15),"") ->  | B15: 11
A16: =IF(D16=الصيادين!$C$1,COUNTIF($D$5:D16,D16),"") ->  | B16: 12
A17: =IF(D17=الصيادين!$C$1,COUNTIF($D$5:D17,D17),"") ->  | B17: 13
A18: =IF(D18=الصيادين!$C$1,COUNTIF($D$5:D18,D18),"") ->  | B18: 14
A19: =IF(D19=الصيادين!$C$1,COUNTIF($D$5:D19,D19),"") ->  | B19: 15
A20: =IF(D20=الصيادين!$C$1,COUNTIF($D$5:D20,D20),"") ->  | B20: 16
A21: =IF(D21=الصيادين!$C$1,COUNTIF($D$5:D21,D21),"") ->  | B21: 17
A22: =IF(D22=الصيادين!$C$1,COUNTIF($D$5:D22,D22),"") ->  | B22: 18
A23: =IF(D23=الصيادين!$C$1,COUNTIF($D$5:D23,D23),"") ->  | B23: 19
A24: =IF(D24=الصيادين!$C$1,COUNTIF($D$5:D24,D24),"") ->  | B24: 20
A25: =IF(D25=الصيادين!$C$1,COUNTIF($D$5:D25,D25),"") ->  | B25: 21
A26: =IF(D26=الصيادين!$C$1,COUNTIF($D$5:D26,D26),"") ->  | B26: 22
A27: =IF(D27=الصيادين!$C$1,COUNTIF($D$5:D27,D27),"") ->  | B27: 23
A28: =IF(D28=الصيادين!$C$1,COUNTIF($D$5:D28,D28),"") ->  | B28: 24
A29: =IF(D29=الصيادين!$C$1,COUNTIF($D$5:D29,D29),"") ->  | B29: 25
A30: =IF(D30=الصيادين!$C$1,COUNTIF($D$5:D30,D30),"") ->  | B30: 26
A31: =IF(D31=الصيادين!$C$1,COUNTIF($D$5:D31,D31),"") ->  | B31: 27
A32: =IF(D32=الصيادين!$C$1,COUNTIF($D$5:D32,D32),"") ->  | B32: 28
A33: =IF(D33=الصيادين!$C$1,COUNTIF($D$5:D33,D33),"") ->  | B33: 29
A34: =IF(D34=الصيادين!$C$1,COUNTIF($D$5:D34,D34),"") ->  | B34: 30
A35: =IF(D35=الصيادين!$C$1,COUNTIF($D$5:D35,D35),"") ->  | B35: 31
A36: =IF(D36=الصيادين!$C$1,COUNTIF($D$5:D36,D36),"") ->  | B36: 32
A37: =IF(D37=الصيادين!$C$1,COUNTIF($D$5:D37,D37),"") ->  | B37: 33
A38: =IF(D38=الصيادين!$C$1,COUNTIF($D$5:D38,D38),"") ->  | B38: 34
A39: =IF(D39=الصيادين!$C$1,COUNTIF($D$5:D39,D39),"") ->  | B39: 35
A40: =IF(D40=الصيادين!$C$1,COUNTIF($D$5:D40,D40),"") ->  | B40: 36
A41: =IF(D41=الصيادين!$C$1,COUNTIF($D$5:D41,D41),"") ->  | B41: 37
A42: =IF(D42=الصيادين!$C$1,COUNTIF($D$5:D42,D42),"") ->  | B42: 38
A43: =IF(D43=الصيادين!$C$1,COUNTIF($D$5:D43,D43),"") ->  | B43: 39
A44: =IF(D44=الصيادين!$C$1,COUNTIF($D$5:D44,D44),"") ->  | B44: 40
A45: =IF(D45=الصيادين!$C$1,COUNTIF($D$5:D45,D45),"") ->  | B45: 41
A46: =IF(D46=الصيادين!$C$1,COUNTIF($D$5:D46,D46),"") ->  | B46: 42
A47: =IF(D47=الصيادين!$C$1,COUNTIF($D$5:D47,D47),"") ->  | B47: 43
A48: =IF(D48=الصيادين!$C$1,COUNTIF($D$5:D48,D48),"") ->  | B48: 44
A49: =IF(D49=الصيادين!$C$1,COUNTIF($D$5:D49,D49),"") ->  | B49: 45
A50: =IF(D50=الصيادين!$C$1,COUNTIF($D$5:D50,D50),"") ->  | B50: 46
A51: =IF(D51=الصيادين!$C$1,COUNTIF($D$5:D51,D51),"") ->  | B51: 47
A52: =IF(D52=الصيادين!$C$1,COUNTIF($D$5:D52,D52),"") ->  | B52: 48
A53: =IF(D53=الصيادين!$C$1,COUNTIF($D$5:D53,D53),"") ->  | B53: 49
A54: =IF(D54=الصيادين!$C$1,COUNTIF($D$5:D54,D54),"") ->  | B54: 50
A55: =IF(D55=الصيادين!$C$1,COUNTIF($D$5:D55,D55),"") ->  | B55: 51
A56: =IF(D56=الصيادين!$C$1,COUNTIF($D$5:D56,D56),"") ->  | B56: 52
A57: =IF(D57=الصيادين!$C$1,COUNTIF($D$5:D57,D57),"") ->  | B57: 53
A58: =IF(D58=الصيادين!$C$1,COUNTIF($D$5:D58,D58),"") ->  | B58: 54
A59: =IF(D59=الصيادين!$C$1,COUNTIF($D$5:D59,D59),"") ->  | B59: 55
A60: =IF(D60=الصيادين!$C$1,COUNTIF($D$5:D60,D60),"") ->  | B60: 56
A61: =IF(D61=الصيادين!$C$1,COUNTIF($D$5:D61,D61),"") ->  | B61: 57
A62: =IF(D62=الصيادين!$C$1,COUNTIF($D$5:D62,D62),"") ->  | B62: 58
A63: =IF(D63=الصيادين!$C$1,COUNTIF($D$5:D63,D63),"") ->  | B63: 59
A64: =IF(D64=الصيادين!$C$1,COUNTIF($D$5:D64,D64),"") ->  | B64: 60
A65: =IF(D65=الصيادين!$C$1,COUNTIF($D$5:D65,D65),"") ->  | B65: 61
A66: =IF(D66=الصيادين!$C$1,COUNTIF($D$5:D66,D66),"") ->  | B66: 62
A67: =IF(D67=الصيادين!$C$1,COUNTIF($D$5:D67,D67),"") ->  | B67: 63
A68: =IF(D68=الصيادين!$C$1,COUNTIF($D$5:D68,D68),"") ->  | B68: 64
A69: =IF(D69=الصيادين!$C$1,COUNTIF($D$5:D69,D69),"") ->  | B69: 65
A70: =IF(D70=الصيادين!$C$1,COUNTIF($D$5:D70,D70),"") ->  | B70: 66
A71: =IF(D71=الصيادين!$C$1,COUNTIF($D$5:D71,D71),"") ->  | B71: 67
A72: =IF(D72=الصيادين!$C$1,COUNTIF($D$5:D72,D72),"") ->  | B72: 68
A73: =IF(D73=الصيادين!$C$1,COUNTIF($D$5:D73,D73),"") ->  | B73: 69
A74: =IF(D74=الصيادين!$C$1,COUNTIF($D$5:D74,D74),"") ->  | B74: 70
A75: =IF(D75=الصيادين!$C$1,COUNTIF($D$5:D75,D75),"") ->  | B75: 71
A76: =IF(D76=الصيادين!$C$1,COUNTIF($D$5:D76,D76),"") ->  | B76: 72
A77: =IF(D77=الصيادين!$C$1,COUNTIF($D$5:D77,D77),"") ->  | B77: 73
A78: =IF(D78=الصيادين!$C$1,COUNTIF($D$5:D78,D78),"") ->  | B78: 74
A79: =IF(D79=الصيادين!$C$1,COUNTIF($D$5:D79,D79),"") ->  | B79: 75
A80: =IF(D80=الصيادين!$C$1,COUNTIF($D$5:D80,D80),"") ->  | B80: 76
A81: =IF(D81=الصيادين!$C$1,COUNTIF($D$5:D81,D81),"") ->  | B81: 77
A82: =IF(D82=الصيادين!$C$1,COUNTIF($D$5:D82,D82),"") ->  | B82: 78
A83: =IF(D83=الصيادين!$C$1,COUNTIF($D$5:D83,D83),"") ->  | B83: 79
A84: =IF(D84=الصيادين!$C$1,COUNTIF($D$5:D84,D84),"") ->  | B84: 80
A85: =IF(D85=الصيادين!$C$1,COUNTIF($D$5:D85,D85),"") ->  | B85: 81
A86: =IF(D86=الصيادين!$C$1,COUNTIF($D$5:D86,D86),"") ->  | B86: 82
A87: =IF(D87=الصيادين!$C$1,COUNTIF($D$5:D87,D87),"") ->  | B87: 83
A88: =IF(D88=الصيادين!$C$1,COUNTIF($D$5:D88,D88),"") ->  | B88: 84
A89: =IF(D89=الصيادين!$C$1,COUNTIF($D$5:D89,D89),"") ->  | B89: 85
A90: =IF(D90=الصيادين!$C$1,COUNTIF($D$5:D90,D90),"") ->  | B90: 86
A91: =IF(D91=الصيادين!$C$1,COUNTIF($D$5:D91,D91),"") ->  | B91: 87
A92: =IF(D92=الصيادين!$C$1,COUNTIF($D$5:D92,D92),"") ->  | B92: 88
A93: =IF(D93=الصيادين!$C$1,COUNTIF($D$5:D93,D93),"") ->  | B93: 89
A94: =IF(D94=الصيادين!$C$1,COUNTIF($D$5:D94,D94),"") ->  | B94: 90
A95: =IF(D95=الصيادين!$C$1,COUNTIF($D$5:D95,D95),"") ->  | B95: 91
A96: =IF(D96=الصيادين!$C$1,COUNTIF($D$5:D96,D96),"") ->  | B96: 92
A97: =IF(D97=الصيادين!$C$1,COUNTIF($D$5:D97,D97),"") ->  | B97: 93
A98: =IF(D98=الصيادين!$C$1,COUNTIF($D$5:D98,D98),"") ->  | B98: 94
A99: =IF(D99=الصيادين!$C$1,COUNTIF($D$5:D99,D99),"") ->  | B99: 95
A100: =IF(D100=الصيادين!$C$1,COUNTIF($D$5:D100,D100),"") ->  | B100: 96
A101: =IF(D101=الصيادين!$C$1,COUNTIF($D$5:D101,D101),"") ->  | B101: 97
A102: =IF(D102=الصيادين!$C$1,COUNTIF($D$5:D102,D102),"") ->  | B102: 98
A103: =IF(D103=الصيادين!$C$1,COUNTIF($D$5:D103,D103),"") ->  | B103: 99
A104: =IF(D104=الصيادين!$C$1,COUNTIF($D$5:D104,D104),"") ->  | B104: 100
G105: =SUM(G5:G104) -> 900 | H105: =SUM(H5:H104) -> 350 | I105: =SUM(I5:I104) -> 120 | J105: =SUM(J5:J104) -> 200
C106: النقدى | E106: 400
C107: الاستيفاء | E107: 10
C108: الايرادات | E108: =J105 -> 200
C109: المدخول | E109: =E106+E107+E108 -> 610
C110: المصروفات | E110: =H105+I105 -> 470
C111: صافى المدخول | E111: =E109-E110 -> 140

Sheet 3
C2: 2020-01-01
B3: م | C3: تاريخ | D3: الاسم | E3: الوصف | F3: رقم الفاتورة | G3: شتات | I3: المصروفات والايرادات | K3: الدلالة
G4: مستحقة | H4: سداد | I4: مصروفات | J4: ايرادات
A5: =IF(D5=الصيادين!$C$1,COUNTIF($D$5:D5,D5),"") ->  | B5: 1 | C5: 13/12/2019 | D5: احمد | E5: فاتورة مستحقة | F5: 200 | G5: 400 | K5: 20
A6: =IF(D6=الصيادين!$C$1,COUNTIF($D$5:D6,D6),"") ->  | B6: 2
A7: =IF(D7=الصيادين!$C$1,COUNTIF($D$5:D7,D7),"") ->  | B7: 3
A8: =IF(D8=الصيادين!$C$1,COUNTIF($D$5:D8,D8),"") ->  | B8: 4
A9: =IF(D9=الصيادين!$C$1,COUNTIF($D$5:D9,D9),"") ->  | B9: 5
A10: =IF(D10=الصيادين!$C$1,COUNTIF($D$5:D10,D10),"") ->  | B10: 6
A11: =IF(D11=الصيادين!$C$1,COUNTIF($D$5:D11,D11),"") ->  | B11: 7
A12: =IF(D12=الصيادين!$C$1,COUNTIF($D$5:D12,D12),"") ->  | B12: 8
A13: =IF(D13=الصيادين!$C$1,COUNTIF($D$5:D13,D13),"") ->  | B13: 9
A14: =IF(D14=الصيادين!$C$1,COUNTIF($D$5:D14,D14),"") ->  | B14: 10
A15: =IF(D15=الصيادين!$C$1,COUNTIF($D$5:D15,D15),"") ->  | B15: 11
A16: =IF(D16=الصيادين!$C$1,COUNTIF($D$5:D16,D16),"") ->  | B16: 12
A17: =IF(D17=الصيادين!$C$1,COUNTIF($D$5:D17,D17),"") ->  | B17: 13
A18: =IF(D18=الصيادين!$C$1,COUNTIF($D$5:D18,D18),"") ->  | B18: 14
A19: =IF(D19=الصيادين!$C$1,COUNTIF($D$5:D19,D19),"") ->  | B19: 15
A20: =IF(D20=الصيادين!$C$1,COUNTIF($D$5:D20,D20),"") ->  | B20: 16
A21: =IF(D21=الصيادين!$C$1,COUNTIF($D$5:D21,D21),"") ->  | B21: 17
A22: =IF(D22=الصيادين!$C$1,COUNTIF($D$5:D22,D22),"") ->  | B22: 18
A23: =IF(D23=الصيادين!$C$1,COUNTIF($D$5:D23,D23),"") ->  | B23: 19
A24: =IF(D24=الصيادين!$C$1,COUNTIF($D$5:D24,D24),"") ->  | B24: 20
A25: =IF(D25=الصيادين!$C$1,COUNTIF($D$5:D25,D25),"") ->  | B25: 21
A26: =IF(D26=الصيادين!$C$1,COUNTIF($D$5:D26,D26),"") ->  | B26: 22
A27: =IF(D27=الصيادين!$C$1,COUNTIF($D$5:D27,D27),"") ->  | B27: 23
A28: =IF(D28=الصيادين!$C$1,COUNTIF($D$5:D28,D28),"") ->  | B28: 24
A29: =IF(D29=الصيادين!$C$1,COUNTIF($D$5:D29,D29),"") ->  | B29: 25
A30: =IF(D30=الصيادين!$C$1,COUNTIF($D$5:D30,D30),"") ->  | B30: 26
A31: =IF(D31=الصيادين!$C$1,COUNTIF($D$5:D31,D31),"") ->  | B31: 27
A32: =IF(D32=الصيادين!$C$1,COUNTIF($D$5:D32,D32),"") ->  | B32: 28
A33: =IF(D33=الصيادين!$C$1,COUNTIF($D$5:D33,D33),"") ->  | B33: 29
A34: =IF(D34=الصيادين!$C$1,COUNTIF($D$5:D34,D34),"") ->  | B34: 30
A35: =IF(D35=الصيادين!$C$1,COUNTIF($D$5:D35,D35),"") ->  | B35: 31
A36: =IF(D36=الصيادين!$C$1,COUNTIF($D$5:D36,D36),"") ->  | B36: 32
A37: =IF(D37=الصيادين!$C$1,COUNTIF($D$5:D37,D37),"") ->  | B37: 33
A38: =IF(D38=الصيادين!$C$1,COUNTIF($D$5:D38,D38),"") ->  | B38: 34
A39: =IF(D39=الصيادين!$C$1,COUNTIF($D$5:D39,D39),"") ->  | B39: 35
A40: =IF(D40=الصيادين!$C$1,COUNTIF($D$5:D40,D40),"") ->  | B40: 36
A41: =IF(D41=الصيادين!$C$1,COUNTIF($D$5:D41,D41),"") ->  | B41: 37
A42: =IF(D42=الصيادين!$C$1,COUNTIF($D$5:D42,D42),"") ->  | B42: 38
A43: =IF(D43=الصيادين!$C$1,COUNTIF($D$5:D43,D43),"") ->  | B43: 39
A44: =IF(D44=الصيادين!$C$1,COUNTIF($D$5:D44,D44),"") ->  | B44: 40
A45: =IF(D45=الصيادين!$C$1,COUNTIF($D$5:D45,D45),"") ->  | B45: 41
A46: =IF(D46=الصيادين!$C$1,COUNTIF($D$5:D46,D46),"") ->  | B46: 42
A47: =IF(D47=الصيادين!$C$1,COUNTIF($D$5:D47,D47),"") ->  | B47: 43
A48: =IF(D48=الصيادين!$C$1,COUNTIF($D$5:D48,D48),"") ->  | B48: 44
A49: =IF(D49=الصيادين!$C$1,COUNTIF($D$5:D49,D49),"") ->  | B49: 45
A50: =IF(D50=الصيادين!$C$1,COUNTIF($D$5:D50,D50),"") ->  | B50: 46
A51: =IF(D51=الصيادين!$C$1,COUNTIF($D$5:D51,D51),"") ->  | B51: 47
A52: =IF(D52=الصيادين!$C$1,COUNTIF($D$5:D52,D52),"") ->  | B52: 48
A53: =IF(D53=الصيادين!$C$1,COUNTIF($D$5:D53,D53),"") ->  | B53: 49
A54: =IF(D54=الصيادين!$C$1,COUNTIF($D$5:D54,D54),"") ->  | B54: 50
A55: =IF(D55=الصيادين!$C$1,COUNTIF($D$5:D55,D55),"") ->  | B55: 51
A56: =IF(D56=الصيادين!$C$1,COUNTIF($D$5:D56,D56),"") ->  | B56: 52
A57: =IF(D57=الصيادين!$C$1,COUNTIF($D$5:D57,D57),"") ->  | B57: 53
A58: =IF(D58=الصيادين!$C$1,COUNTIF($D$5:D58,D58),"") ->  | B58: 54
A59: =IF(D59=الصيادين!$C$1,COUNTIF($D$5:D59,D59),"") ->  | B59: 55
A60: =IF(D60=الصيادين!$C$1,COUNTIF($D$5:D60,D60),"") ->  | B60: 56
A61: =IF(D61=الصيادين!$C$1,COUNTIF($D$5:D61,D61),"") ->  | B61: 57
A62: =IF(D62=الصيادين!$C$1,COUNTIF($D$5:D62,D62),"") ->  | B62: 58
A63: =IF(D63=الصيادين!$C$1,COUNTIF($D$5:D63,D63),"") ->  | B63: 59
A64: =IF(D64=الصيادين!$C$1,COUNTIF($D$5:D64,D64),"") ->  | B64: 60
A65: =IF(D65=الصيادين!$C$1,COUNTIF($D$5:D65,D65),"") ->  | B65: 61
A66: =IF(D66=الصيادين!$C$1,COUNTIF($D$5:D66,D66),"") ->  | B66: 62
A67: =IF(D67=الصيادين!$C$1,COUNTIF($D$5:D67,D67),"") ->  | B67: 63
A68: =IF(D68=الصيادين!$C$1,COUNTIF($D$5:D68,D68),"") ->  | B68: 64
A69: =IF(D69=الصيادين!$C$1,COUNTIF($D$5:D69,D69),"") ->  | B69: 65
A70: =IF(D70=الصيادين!$C$1,COUNTIF($D$5:D70,D70),"") ->  | B70: 66
A71: =IF(D71=الصيادين!$C$1,COUNTIF($D$5:D71,D71),"") ->  | B71: 67
A72: =IF(D72=الصيادين!$C$1,COUNTIF($D$5:D72,D72),"") ->  | B72: 68
A73: =IF(D73=الصيادين!$C$1,COUNTIF($D$5:D73,D73),"") ->  | B73: 69
A74: =IF(D74=الصيادين!$C$1,COUNTIF($D$5:D74,D74),"") ->  | B74: 70
A75: =IF(D75=الصيادين!$C$1,COUNTIF($D$5:D75,D75),"") ->  | B75: 71
A76: =IF(D76=الصيادين!$C$1,COUNTIF($D$5:D76,D76),"") ->  | B76: 72
A77: =IF(D77=الصيادين!$C$1,COUNTIF($D$5:D77,D77),"") ->  | B77: 73
A78: =IF(D78=الصيادين!$C$1,COUNTIF($D$5:D78,D78),"") ->  | B78: 74
A79: =IF(D79=الصيادين!$C$1,COUNTIF($D$5:D79,D79),"") ->  | B79: 75
A80: =IF(D80=الصيادين!$C$1,COUNTIF($D$5:D80,D80),"") ->  | B80: 76
A81: =IF(D81=الصيادين!$C$1,COUNTIF($D$5:D81,D81),"") ->  | B81: 77
A82: =IF(D82=الصيادين!$C$1,COUNTIF($D$5:D82,D82),"") ->  | B82: 78
A83: =IF(D83=الصيادين!$C$1,COUNTIF($D$5:D83,D83),"") ->  | B83: 79
A84: =IF(D84=الصيادين!$C$1,COUNTIF($D$5:D84,D84),"") ->  | B84: 80
A85: =IF(D85=الصيادين!$C$1,COUNTIF($D$5:D85,D85),"") ->  | B85: 81
A86: =IF(D86=الصيادين!$C$1,COUNTIF($D$5:D86,D86),"") ->  | B86: 82
A87: =IF(D87=الصيادين!$C$1,COUNTIF($D$5:D87,D87),"") ->  | B87: 83
A88: =IF(D88=الصيادين!$C$1,COUNTIF($D$5:D88,D88),"") ->  | B88: 84
A89: =IF(D89=الصيادين!$C$1,COUNTIF($D$5:D89,D89),"") ->  | B89: 85
A90: =IF(D90=الصيادين!$C$1,COUNTIF($D$5:D90,D90),"") ->  | B90: 86
A91: =IF(D91=الصيادين!$C$1,COUNTIF($D$5:D91,D91),"") ->  | B91: 87
A92: =IF(D92=الصيادين!$C$1,COUNTIF($D$5:D92,D92),"") ->  | B92: 88
A93: =IF(D93=الصيادين!$C$1,COUNTIF($D$5:D93,D93),"") ->  | B93: 89
A94: =IF(D94=الصيادين!$C$1,COUNTIF($D$5:D94,D94),"") ->  | B94: 90
A95: =IF(D95=الصيادين!$C$1,COUNTIF($D$5:D95,D95),"") ->  | B95: 91
A96: =IF(D96=الصيادين!$C$1,COUNTIF($D$5:D96,D96),"") ->  | B96: 92
A97: =IF(D97=الصيادين!$C$1,COUNTIF($D$5:D97,D97),"") ->  | B97: 93
A98: =IF(D98=الصيادين!$C$1,COUNTIF($D$5:D98,D98),"") ->  | B98: 94
A99: =IF(D99=الصيادين!$C$1,COUNTIF($D$5:D99,D99),"") ->  | B99: 95
A100: =IF(D100=الصيادين!$C$1,COUNTIF($D$5:D100,D100),"") ->  | B100: 96
A101: =IF(D101=الصيادين!$C$1,COUNTIF($D$5:D101,D101),"") ->  | B101: 97
A102: =IF(D102=الصيادين!$C$1,COUNTIF($D$5:D102,D102),"") ->  | B102: 98
A103: =IF(D103=الصيادين!$C$1,COUNTIF($D$5:D103,D103),"") ->  | B103: 99
A104: =IF(D104=الصيادين!$C$1,COUNTIF($D$5:D104,D104),"") ->  | B104: 100
G105: =SUM(G5:G104) -> 400 | H105: =SUM(H5:H104) -> 0 | I105: =SUM(I5:I104) -> 0 | J105: =SUM(J5:J104) -> 0
C106: النقدى | E106: 400
C107: الاستيفاء | E107: 10
C108: الايرادات | E108: =J105 -> 0
C109: المدخول | E109: =E106+E107+E108 -> 410
C110: المصروفات | E110: =H105+I105 -> 0
C111: صافى المدخول | E111: =E109-E110 -> 410

Sheet 4
C2: 2020-01-01
B3: م | C3: تاريخ | D3: الاسم | E3: الوصف | F3: رقم الفاتورة | G3: شتات | I3: المصروفات والايرادات | K3: الدلالة
G4: مستحقة | H4: سداد | I4: مصروفات | J4: ايرادات
A5: =IF(D5=الصيادين!$C$1,COUNTIF($D$5:D5,D5),"") ->  | B5: 1
A6: =IF(D6=الصيادين!$C$1,COUNTIF($D$5:D6,D6),"") ->  | B6: 2
A7: =IF(D7=الصيادين!$C$1,COUNTIF($D$5:D7,D7),"") ->  | B7: 3
A8: =IF(D8=الصيادين!$C$1,COUNTIF($D$5:D8,D8),"") ->  | B8: 4
A9: =IF(D9=الصيادين!$C$1,COUNTIF($D$5:D9,D9),"") ->  | B9: 5
A10: =IF(D10=الصيادين!$C$1,COUNTIF($D$5:D10,D10),"") ->  | B10: 6
A11: =IF(D11=الصيادين!$C$1,COUNTIF($D$5:D11,D11),"") ->  | B11: 7
A12: =IF(D12=الصيادين!$C$1,COUNTIF($D$5:D12,D12),"") ->  | B12: 8
A13: =IF(D13=الصيادين!$C$1,COUNTIF($D$5:D13,D13),"") ->  | B13: 9
A14: =IF(D14=الصيادين!$C$1,COUNTIF($D$5:D14,D14),"") ->  | B14: 10
A15: =IF(D15=الصيادين!$C$1,COUNTIF($D$5:D15,D15),"") ->  | B15: 11
A16: =IF(D16=الصيادين!$C$1,COUNTIF($D$5:D16,D16),"") ->  | B16: 12
A17: =IF(D17=الصيادين!$C$1,COUNTIF($D$5:D17,D17),"") ->  | B17: 13
A18: =IF(D18=الصيادين!$C$1,COUNTIF($D$5:D18,D18),"") ->  | B18: 14
A19: =IF(D19=الصيادين!$C$1,COUNTIF($D$5:D19,D19),"") ->  | B19: 15
A20: =IF(D20=الصيادين!$C$1,COUNTIF($D$5:D20,D20),"") ->  | B20: 16
A21: =IF(D21=الصيادين!$C$1,COUNTIF($D$5:D21,D21),"") ->  | B21: 17
A22: =IF(D22=الصيادين!$C$1,COUNTIF($D$5:D22,D22),"") ->  | B22: 18
A23: =IF(D23=الصيادين!$C$1,COUNTIF($D$5:D23,D23),"") ->  | B23: 19
A24: =IF(D24=الصيادين!$C$1,COUNTIF($D$5:D24,D24),"") ->  | B24: 20
A25: =IF(D25=الصيادين!$C$1,COUNTIF($D$5:D25,D25),"") ->  | B25: 21
A26: =IF(D26=الصيادين!$C$1,COUNTIF($D$5:D26,D26),"") ->  | B26: 22
A27: =IF(D27=الصيادين!$C$1,COUNTIF($D$5:D27,D27),"") ->  | B27: 23
A28: =IF(D28=الصيادين!$C$1,COUNTIF($D$5:D28,D28),"") ->  | B28: 24
A29: =IF(D29=الصيادين!$C$1,COUNTIF($D$5:D29,D29),"") ->  | B29: 25
A30: =IF(D30=الصيادين!$C$1,COUNTIF($D$5:D30,D30),"") ->  | B30: 26
A31: =IF(D31=الصيادين!$C$1,COUNTIF($D$5:D31,D31),"") ->  | B31: 27
A32: =IF(D32=الصيادين!$C$1,COUNTIF($D$5:D32,D32),"") ->  | B32: 28
A33: =IF(D33=الصيادين!$C$1,COUNTIF($D$5:D33,D33),"") ->  | B33: 29
A34: =IF(D34=الصيادين!$C$1,COUNTIF($D$5:D34,D34),"") ->  | B34: 30
A35: =IF(D35=الصيادين!$C$1,COUNTIF($D$5:D35,D35),"") ->  | B35: 31
A36: =IF(D36=الصيادين!$C$1,COUNTIF($D$5:D36,D36),"") ->  | B36: 32
A37: =IF(D37=الصيادين!$C$1,COUNTIF($D$5:D37,D37),"") ->  | B37: 33
A38: =IF(D38=الصيادين!$C$1,COUNTIF($D$5:D38,D38),"") ->  | B38: 34
A39: =IF(D39=الصيادين!$C$1,COUNTIF($D$5:D39,D39),"") ->  | B39: 35
A40: =IF(D40=الصيادين!$C$1,COUNTIF($D$5:D40,D40),"") ->  | B40: 36
A41: =IF(D41=الصيادين!$C$1,COUNTIF($D$5:D41,D41),"") ->  | B41: 37
A42: =IF(D42=الصيادين!$C$1,COUNTIF($D$5:D42,D42),"") ->  | B42: 38
A43: =IF(D43=الصيادين!$C$1,COUNTIF($D$5:D43,D43),"") ->  | B43: 39
A44: =IF(D44=الصيادين!$C$1,COUNTIF($D$5:D44,D44),"") ->  | B44: 40
A45: =IF(D45=الصيادين!$C$1,COUNTIF($D$5:D45,D45),"") ->  | B45: 41
A46: =IF(D46=الصيادين!$C$1,COUNTIF($D$5:D46,D46),"") ->  | B46: 42
A47: =IF(D47=الصيادين!$C$1,COUNTIF($D$5:D47,D47),"") ->  | B47: 43
A48: =IF(D48=الصيادين!$C$1,COUNTIF($D$5:D48,D48),"") ->  | B48: 44
A49: =IF(D49=الصيادين!$C$1,COUNTIF($D$5:D49,D49),"") ->  | B49: 45
A50: =IF(D50=الصيادين!$C$1,COUNTIF($D$5:D50,D50),"") ->  | B50: 46
A51: =IF(D51=الصيادين!$C$1,COUNTIF($D$5:D51,D51),"") ->  | B51: 47
A52: =IF(D52=الصيادين!$C$1,COUNTIF($D$5:D52,D52),"") ->  | B52: 48
A53: =IF(D53=الصيادين!$C$1,COUNTIF($D$5:D53,D53),"") ->  | B53: 49
A54: =IF(D54=الصيادين!$C$1,COUNTIF($D$5:D54,D54),"") ->  | B54: 50
A55: =IF(D55=الصيادين!$C$1,COUNTIF($D$5:D55,D55),"") ->  | B55: 51
A56: =IF(D56=الصيادين!$C$1,COUNTIF($D$5:D56,D56),"") ->  | B56: 52
A57: =IF(D57=الصيادين!$C$1,COUNTIF($D$5:D57,D57),"") ->  | B57: 53
A58: =IF(D58=الصيادين!$C$1,COUNTIF($D$5:D58,D58),"") ->  | B58: 54
A59: =IF(D59=الصيادين!$C$1,COUNTIF($D$5:D59,D59),"") ->  | B59: 55
A60: =IF(D60=الصيادين!$C$1,COUNTIF($D$5:D60,D60),"") ->  | B60: 56
A61: =IF(D61=الصيادين!$C$1,COUNTIF($D$5:D61,D61),"") ->  | B61: 57
A62: =IF(D62=الصيادين!$C$1,COUNTIF($D$5:D62,D62),"") ->  | B62: 58
A63: =IF(D63=الصيادين!$C$1,COUNTIF($D$5:D63,D63),"") ->  | B63: 59
A64: =IF(D64=الصيادين!$C$1,COUNTIF($D$5:D64,D64),"") ->  | B64: 60
A65: =IF(D65=الصيادين!$C$1,COUNTIF($D$5:D65,D65),"") ->  | B65: 61
A66: =IF(D66=الصيادين!$C$1,COUNTIF($D$5:D66,D66),"") ->  | B66: 62
A67: =IF(D67=الصيادين!$C$1,COUNTIF($D$5:D67,D67),"") ->  | B67: 63
A68: =IF(D68=الصيادين!$C$1,COUNTIF($D$5:D68,D68),"") ->  | B68: 64
A69: =IF(D69=الصيادين!$C$1,COUNTIF($D$5:D69,D69),"") ->  | B69: 65
A70: =IF(D70=الصيادين!$C$1,COUNTIF($D$5:D70,D70),"") ->  | B70: 66
A71: =IF(D71=الصيادين!$C$1,COUNTIF($D$5:D71,D71),"") ->  | B71: 67
A72: =IF(D72=الصيادين!$C$1,COUNTIF($D$5:D72,D72),"") ->  | B72: 68
A73: =IF(D73=الصيادين!$C$1,COUNTIF($D$5:D73,D73),"") ->  | B73: 69
A74: =IF(D74=الصيادين!$C$1,COUNTIF($D$5:D74,D74),"") ->  | B74: 70
A75: =IF(D75=الصيادين!$C$1,COUNTIF($D$5:D75,D75),"") ->  | B75: 71
A76: =IF(D76=الصيادين!$C$1,COUNTIF($D$5:D76,D76),"") ->  | B76: 72
A77: =IF(D77=الصيادين!$C$1,COUNTIF($D$5:D77,D77),"") ->  | B77: 73
A78: =IF(D78=الصيادين!$C$1,COUNTIF($D$5:D78,D78),"") ->  | B78: 74
A79: =IF(D79=الصيادين!$C$1,COUNTIF($D$5:D79,D79),"") ->  | B79: 75
A80: =IF(D80=الصيادين!$C$1,COUNTIF($D$5:D80,D80),"") ->  | B80: 76
A81: =IF(D81=الصيادين!$C$1,COUNTIF($D$5:D81,D81),"") ->  | B81: 77
A82: =IF(D82=الصيادين!$C$1,COUNTIF($D$5:D82,D82),"") ->  | B82: 78
A83: =IF(D83=الصيادين!$C$1,COUNTIF($D$5:D83,D83),"") ->  | B83: 79
A84: =IF(D84=الصيادين!$C$1,COUNTIF($D$5:D84,D84),"") ->  | B84: 80
A85: =IF(D85=الصيادين!$C$1,COUNTIF($D$5:D85,D85),"") ->  | B85: 81
A86: =IF(D86=الصيادين!$C$1,COUNTIF($D$5:D86,D86),"") ->  | B86: 82
A87: =IF(D87=الصيادين!$C$1,COUNTIF($D$5:D87,D87),"") ->  | B87: 83
A88: =IF(D88=الصيادين!$C$1,COUNTIF($D$5:D88,D88),"") ->  | B88: 84
A89: =IF(D89=الصيادين!$C$1,COUNTIF($D$5:D89,D89),"") ->  | B89: 85
A90: =IF(D90=الصيادين!$C$1,COUNTIF($D$5:D90,D90),"") ->  | B90: 86
A91: =IF(D91=الصيادين!$C$1,COUNTIF($D$5:D91,D91),"") ->  | B91: 87
A92: =IF(D92=الصيادين!$C$1,COUNTIF($D$5:D92,D92),"") ->  | B92: 88
A93: =IF(D93=الصيادين!$C$1,COUNTIF($D$5:D93,D93),"") ->  | B93: 89
A94: =IF(D94=الصيادين!$C$1,COUNTIF($D$5:D94,D94),"") ->  | B94: 90
A95: =IF(D95=الصيادين!$C$1,COUNTIF($D$5:D95,D95),"") ->  | B95: 91
A96: =IF(D96=الصيادين!$C$1,COUNTIF($D$5:D96,D96),"") ->  | B96: 92
A97: =IF(D97=الصيادين!$C$1,COUNTIF($D$5:D97,D97),"") ->  | B97: 93
A98: =IF(D98=الصيادين!$C$1,COUNTIF($D$5:D98,D98),"") ->  | B98: 94
A99: =IF(D99=الصيادين!$C$1,COUNTIF($D$5:D99,D99),"") ->  | B99: 95
A100: =IF(D100=الصيادين!$C$1,COUNTIF($D$5:D100,D100),"") ->  | B100: 96
A101: =IF(D101=الصيادين!$C$1,COUNTIF($D$5:D101,D101),"") ->  | B101: 97
A102: =IF(D102=الصيادين!$C$1,COUNTIF($D$5:D102,D102),"") ->  | B102: 98
A103: =IF(D103=الصيادين!$C$1,COUNTIF($D$5:D103,D103),"") ->  | B103: 99
A104: =IF(D104=الصيادين!$C$1,COUNTIF($D$5:D104,D104),"") ->  | B104: 100
G105: =SUM(G5:G104) -> 0 | H105: =SUM(H5:H104) -> 0 | I105: =SUM(I5:I104) -> 0 | J105: =SUM(J5:J104) -> 0
C106: النقدى | E106: 400
C107: الاستيفاء | E107: 10
C108: الايرادات | E108: =J105 -> 0
C109: المدخول | E109: =E106+E107+E108 -> 410
C110: المصروفات | E110: =H105+I105 -> 0
C111: صافى المدخول | E111: =E109-E110 -> 410

Sheet 5
C2: 2020-01-01
B3: م | C3: تاريخ | D3: الاسم | E3: الوصف | F3: رقم الفاتورة | G3: شتات | I3: المصروفات والايرادات | K3: الدلالة
G4: مستحقة | H4: سداد | I4: مصروفات | J4: ايرادات
A5: =IF(D5=الصيادين!$C$1,COUNTIF($D$5:D5,D5),"") ->  | B5: 1
A6: =IF(D6=الصيادين!$C$1,COUNTIF($D$5:D6,D6),"") ->  | B6: 2
A7: =IF(D7=الصيادين!$C$1,COUNTIF($D$5:D7,D7),"") ->  | B7: 3
A8: =IF(D8=الصيادين!$C$1,COUNTIF($D$5:D8,D8),"") ->  | B8: 4
A9: =IF(D9=الصيادين!$C$1,COUNTIF($D$5:D9,D9),"") ->  | B9: 5
A10: =IF(D10=الصيادين!$C$1,COUNTIF($D$5:D10,D10),"") ->  | B10: 6
A11: =IF(D11=الصيادين!$C$1,COUNTIF($D$5:D11,D11),"") ->  | B11: 7
A12: =IF(D12=الصيادين!$C$1,COUNTIF($D$5:D12,D12),"") ->  | B12: 8
A13: =IF(D13=الصيادين!$C$1,COUNTIF($D$5:D13,D13),"") ->  | B13: 9
A14: =IF(D14=الصيادين!$C$1,COUNTIF($D$5:D14,D14),"") ->  | B14: 10
A15: =IF(D15=الصيادين!$C$1,COUNTIF($D$5:D15,D15),"") ->  | B15: 11
A16: =IF(D16=الصيادين!$C$1,COUNTIF($D$5:D16,D16),"") ->  | B16: 12
A17: =IF(D17=الصيادين!$C$1,COUNTIF($D$5:D17,D17),"") ->  | B17: 13
A18: =IF(D18=الصيادين!$C$1,COUNTIF($D$5:D18,D18),"") ->  | B18: 14
A19: =IF(D19=الصيادين!$C$1,COUNTIF($D$5:D19,D19),"") ->  | B19: 15
A20: =IF(D20=الصيادين!$C$1,COUNTIF($D$5:D20,D20),"") ->  | B20: 16
A21: =IF(D21=الصيادين!$C$1,COUNTIF($D$5:D21,D21),"") ->  | B21: 17
A22: =IF(D22=الصيادين!$C$1,COUNTIF($D$5:D22,D22),"") ->  | B22: 18
A23: =IF(D23=الصيادين!$C$1,COUNTIF($D$5:D23,D23),"") ->  | B23: 19
A24: =IF(D24=الصيادين!$C$1,COUNTIF($D$5:D24,D24),"") ->  | B24: 20
A25: =IF(D25=الصيادين!$C$1,COUNTIF($D$5:D25,D25),"") ->  | B25: 21
A26: =IF(D26=الصيادين!$C$1,COUNTIF($D$5:D26,D26),"") ->  | B26: 22
A27: =IF(D27=الصيادين!$C$1,COUNTIF($D$5:D27,D27),"") ->  | B27: 23
A28: =IF(D28=الصيادين!$C$1,COUNTIF($D$5:D28,D28),"") ->  | B28: 24
A29: =IF(D29=الصيادين!$C$1,COUNTIF($D$5:D29,D29),"") ->  | B29: 25
A30: =IF(D30=الصيادين!$C$1,COUNTIF($D$5:D30,D30),"") ->  | B30: 26
A31: =IF(D31=الصيادين!$C$1,COUNTIF($D$5:D31,D31),"") ->  | B31: 27
A32: =IF(D32=الصيادين!$C$1,COUNTIF($D$5:D32,D32),"") ->  | B32: 28
A33: =IF(D33=الصيادين!$C$1,COUNTIF($D$5:D33,D33),"") ->  | B33: 29
A34: =IF(D34=الصيادين!$C$1,COUNTIF($D$5:D34,D34),"") ->  | B34: 30
A35: =IF(D35=الصيادين!$C$1,COUNTIF($D$5:D35,D35),"") ->  | B35: 31
A36: =IF(D36=الصيادين!$C$1,COUNTIF($D$5:D36,D36),"") ->  | B36: 32
A37: =IF(D37=الصيادين!$C$1,COUNTIF($D$5:D37,D37),"") ->  | B37: 33
A38: =IF(D38=الصيادين!$C$1,COUNTIF($D$5:D38,D38),"") ->  | B38: 34
A39: =IF(D39=الصيادين!$C$1,COUNTIF($D$5:D39,D39),"") ->  | B39: 35
A40: =IF(D40=الصيادين!$C$1,COUNTIF($D$5:D40,D40),"") ->  | B40: 36
A41: =IF(D41=الصيادين!$C$1,COUNTIF($D$5:D41,D41),"") ->  | B41: 37
A42: =IF(D42=الصيادين!$C$1,COUNTIF($D$5:D42,D42),"") ->  | B42: 38
A43: =IF(D43=الصيادين!$C$1,COUNTIF($D$5:D43,D43),"") ->  | B43: 39
A44: =IF(D44=الصيادين!$C$1,COUNTIF($D$5:D44,D44),"") ->  | B44: 40
A45: =IF(D45=الصيادين!$C$1,COUNTIF($D$5:D45,D45),"") ->  | B45: 41
A46: =IF(D46=الصيادين!$C$1,COUNTIF($D$5:D46,D46),"") ->  | B46: 42
A47: =IF(D47=الصيادين!$C$1,COUNTIF($D$5:D47,D47),"") ->  | B47: 43
A48: =IF(D48=الصيادين!$C$1,COUNTIF($D$5:D48,D48),"") ->  | B48: 44
A49: =IF(D49=الصيادين!$C$1,COUNTIF($D$5:D49,D49),"") ->  | B49: 45
A50: =IF(D50=الصيادين!$C$1,COUNTIF($D$5:D50,D50),"") ->  | B50: 46
A51: =IF(D51=الصيادين!$C$1,COUNTIF($D$5:D51,D51),"") ->  | B51: 47
A52: =IF(D52=الصيادين!$C$1,COUNTIF($D$5:D52,D52),"") ->  | B52: 48
A53: =IF(D53=الصيادين!$C$1,COUNTIF($D$5:D53,D53),"") ->  | B53: 49
A54: =IF(D54=الصيادين!$C$1,COUNTIF($D$5:D54,D54),"") ->  | B54: 50
A55: =IF(D55=الصيادين!$C$1,COUNTIF($D$5:D55,D55),"") ->  | B55: 51
A56: =IF(D56=الصيادين!$C$1,COUNTIF($D$5:D56,D56),"") ->  | B56: 52
A57: =IF(D57=الصيادين!$C$1,COUNTIF($D$5:D57,D57),"") ->  | B57: 53
A58: =IF(D58=الصيادين!$C$1,COUNTIF($D$5:D58,D58),"") ->  | B58: 54
A59: =IF(D59=الصيادين!$C$1,COUNTIF($D$5:D59,D59),"") ->  | B59: 55
A60: =IF(D60=الصيادين!$C$1,COUNTIF($D$5:D60,D60),"") ->  | B60: 56
A61: =IF(D61=الصيادين!$C$1,COUNTIF($D$5:D61,D61),"") ->  | B61: 57
A62: =IF(D62=الصيادين!$C$1,COUNTIF($D$5:D62,D62),"") ->  | B62: 58
A63: =IF(D63=الصيادين!$C$1,COUNTIF($D$5:D63,D63),"") ->  | B63: 59
A64: =IF(D64=الصيادين!$C$1,COUNTIF($D$5:D64,D64),"") ->  | B64: 60
A65: =IF(D65=الصيادين!$C$1,COUNTIF($D$5:D65,D65),"") ->  | B65: 61
A66: =IF(D66=الصيادين!$C$1,COUNTIF($D$5:D66,D66),"") ->  | B66: 62
A67: =IF(D67=الصيادين!$C$1,COUNTIF($D$5:D67,D67),"") ->  | B67: 63
A68: =IF(D68=الصيادين!$C$1,COUNTIF($D$5:D68,D68),"") ->  | B68: 64
A69: =IF(D69=الصيادين!$C$1,COUNTIF($D$5:D69,D69),"") ->  | B69: 65
A70: =IF(D70=الصيادين!$C$1,COUNTIF($D$5:D70,D70),"") ->  | B70: 66
A71: =IF(D71=الصيادين!$C$1,COUNTIF($D$5:D71,D71),"") ->  | B71: 67
A72: =IF(D72=الصيادين!$C$1,COUNTIF($D$5:D72,D72),"") ->  | B72: 68
A73: =IF(D73=الصيادين!$C$1,COUNTIF($D$5:D73,D73),"") ->  | B73: 69
A74: =IF(D74=الصيادين!$C$1,COUNTIF($D$5:D74,D74),"") ->  | B74: 70
A75: =IF(D75=الصيادين!$C$1,COUNTIF($D$5:D75,D75),"") ->  | B75: 71
A76: =IF(D76=الصيادين!$C$1,COUNTIF($D$5:D76,D76),"") ->  | B76: 72
A77: =IF(D77=الصيادين!$C$1,COUNTIF($D$5:D77,D77),"") ->  | B77: 73
A78: =IF(D78=الصيادين!$C$1,COUNTIF($D$5:D78,D78),"") ->  | B78: 74
A79: =IF(D79=الصيادين!$C$1,COUNTIF($D$5:D79,D79),"") ->  | B79: 75
A80: =IF(D80=الصيادين!$C$1,COUNTIF($D$5:D80,D80),"") ->  | B80: 76
A81: =IF(D81=الصيادين!$C$1,COUNTIF($D$5:D81,D81),"") ->  | B81: 77
A82: =IF(D82=الصيادين!$C$1,COUNTIF($D$5:D82,D82),"") ->  | B82: 78
A83: =IF(D83=الصيادين!$C$1,COUNTIF($D$5:D83,D83),"") ->  | B83: 79
A84: =IF(D84=الصيادين!$C$1,COUNTIF($D$5:D84,D84),"") ->  | B84: 80
A85: =IF(D85=الصيادين!$C$1,COUNTIF($D$5:D85,D85),"") ->  | B85: 81
A86: =IF(D86=الصيادين!$C$1,COUNTIF($D$5:D86,D86),"") ->  | B86: 82
A87: =IF(D87=الصيادين!$C$1,COUNTIF($D$5:D87,D87),"") ->  | B87: 83
A88: =IF(D88=الصيادين!$C$1,COUNTIF($D$5:D88,D88),"") ->  | B88: 84
A89: =IF(D89=الصيادين!$C$1,COUNTIF($D$5:D89,D89),"") ->  | B89: 85
A90: =IF(D90=الصيادين!$C$1,COUNTIF($D$5:D90,D90),"") ->  | B90: 86
A91: =IF(D91=الصيادين!$C$1,COUNTIF($D$5:D91,D91),"") ->  | B91: 87
A92: =IF(D92=الصيادين!$C$1,COUNTIF($D$5:D92,D92),"") ->  | B92: 88
A93: =IF(D93=الصيادين!$C$1,COUNTIF($D$5:D93,D93),"") ->  | B93: 89
A94: =IF(D94=الصيادين!$C$1,COUNTIF($D$5:D94,D94),"") ->  | B94: 90
A95: =IF(D95=الصيادين!$C$1,COUNTIF($D$5:D95,D95),"") ->  | B95: 91
A96: =IF(D96=الصيادين!$C$1,COUNTIF($D$5:D96,D96),"") ->  | B96: 92
A97: =IF(D97=الصيادين!$C$1,COUNTIF($D$5:D97,D97),"") ->  | B97: 93
A98: =IF(D98=الصيادين!$C$1,COUNTIF($D$5:D98,D98),"") ->  | B98: 94
A99: =IF(D99=الصيادين!$C$1,COUNTIF($D$5:D99,D99),"") ->  | B99: 95
A100: =IF(D100=الصيادين!$C$1,COUNTIF($D$5:D100,D100),"") ->  | B100: 96
A101: =IF(D101=الصيادين!$C$1,COUNTIF($D$5:D101,D101),"") ->  | B101: 97
A102: =IF(D102=الصيادين!$C$1,COUNTIF($D$5:D102,D102),"") ->  | B102: 98
A103: =IF(D103=الصيادين!$C$1,COUNTIF($D$5:D103,D103),"") ->  | B103: 99
A104: =IF(D104=الصيادين!$C$1,COUNTIF($D$5:D104,D104),"") ->  | B104: 100
G105: =SUM(G5:G104) -> 0 | H105: =SUM(H5:H104) -> 0 | I105: =SUM(I5:I104) -> 0 | J105: =SUM(J5:J104) -> 0
C106: النقدى | E106: 400
C107: الاستيفاء | E107: 10
C108: الايرادات | E108: =J105 -> 0
C109: المدخول | E109: =E106+E107+E108 -> 410
C110: المصروفات | E110: =H105+I105 -> 0
C111: صافى المدخول | E111: =E109-E110 -> 410

Sheet 6
C2: 2020-01-01
B3: م | C3: تاريخ | D3: الاسم | E3: الوصف | F3: رقم الفاتورة | G3: شتات | I3: المصروفات والايرادات | K3: الدلالة
G4: مستحقة | H4: سداد | I4: مصروفات | J4: ايرادات
A5: =IF(D5=الصيادين!$C$1,COUNTIF($D$5:D5,D5),"") ->  | B5: 1
A6: =IF(D6=الصيادين!$C$1,COUNTIF($D$5:D6,D6),"") ->  | B6: 2
A7: =IF(D7=الصيادين!$C$1,COUNTIF($D$5:D7,D7),"") ->  | B7: 3
A8: =IF(D8=الصيادين!$C$1,COUNTIF($D$5:D8,D8),"") ->  | B8: 4
A9: =IF(D9=الصيادين!$C$1,COUNTIF($D$5:D9,D9),"") ->  | B9: 5
A10: =IF(D10=الصيادين!$C$1,COUNTIF($D$5:D10,D10),"") ->  | B10: 6
A11: =IF(D11=الصيادين!$C$1,COUNTIF($D$5:D11,D11),"") ->  | B11: 7
A12: =IF(D12=الصيادين!$C$1,COUNTIF($D$5:D12,D12),"") ->  | B12: 8
A13: =IF(D13=الصيادين!$C$1,COUNTIF($D$5:D13,D13),"") ->  | B13: 9
A14: =IF(D14=الصيادين!$C$1,COUNTIF($D$5:D14,D14),"") ->  | B14: 10
A15: =IF(D15=الصيادين!$C$1,COUNTIF($D$5:D15,D15),"") ->  | B15: 11
A16: =IF(D16=الصيادين!$C$1,COUNTIF($D$5:D16,D16),"") ->  | B16: 12
A17: =IF(D17=الصيادين!$C$1,COUNTIF($D$5:D17,D17),"") ->  | B17: 13
A18: =IF(D18=الصيادين!$C$1,COUNTIF($D$5:D18,D18),"") ->  | B18: 14
A19: =IF(D19=الصيادين!$C$1,COUNTIF($D$5:D19,D19),"") ->  | B19: 15
A20: =IF(D20=الصيادين!$C$1,COUNTIF($D$5:D20,D20),"") ->  | B20: 16
A21: =IF(D21=الصيادين!$C$1,COUNTIF($D$5:D21,D21),"") ->  | B21: 17
A22: =IF(D22=الصيادين!$C$1,COUNTIF($D$5:D22,D22),"") ->  | B22: 18
A23: =IF(D23=الصيادين!$C$1,COUNTIF($D$5:D23,D23),"") ->  | B23: 19
A24: =IF(D24=الصيادين!$C$1,COUNTIF($D$5:D24,D24),"") ->  | B24: 20
A25: =IF(D25=الصيادين!$C$1,COUNTIF($D$5:D25,D25),"") ->  | B25: 21
A26: =IF(D26=الصيادين!$C$1,COUNTIF($D$5:D26,D26),"") ->  | B26: 22
A27: =IF(D27=الصيادين!$C$1,COUNTIF($D$5:D27,D27),"") ->  | B27: 23
A28: =IF(D28=الصيادين!$C$1,COUNTIF($D$5:D28,D28),"") ->  | B28: 24
A29: =IF(D29=الصيادين!$C$1,COUNTIF($D$5:D29,D29),"") ->  | B29: 25
A30: =IF(D30=الصيادين!$C$1,COUNTIF($D$5:D30,D30),"") ->  | B30: 26
A31: =IF(D31=الصيادين!$C$1,COUNTIF($D$5:D31,D31),"") ->  | B31: 27
A32: =IF(D32=الصيادين!$C$1,COUNTIF($D$5:D32,D32),"") ->  | B32: 28
A33: =IF(D33=الصيادين!$C$1,COUNTIF($D$5:D33,D33),"") ->  | B33: 29
A34: =IF(D34=الصيادين!$C$1,COUNTIF($D$5:D34,D34),"") ->  | B34: 30
A35: =IF(D35=الصيادين!$C$1,COUNTIF($D$5:D35,D35),"") ->  | B35: 31
A36: =IF(D36=الصيادين!$C$1,COUNTIF($D$5:D36,D36),"") ->  | B36: 32
A37: =IF(D37=الصيادين!$C$1,COUNTIF($D$5:D37,D37),"") ->  | B37: 33
A38: =IF(D38=الصيادين!$C$1,COUNTIF($D$5:D38,D38),"") ->  | B38: 34
A39: =IF(D39=الصيادين!$C$1,COUNTIF($D$5:D39,D39),"") ->  | B39: 35
A40: =IF(D40=الصيادين!$C$1,COUNTIF($D$5:D40,D40),"") ->  | B40: 36
A41: =IF(D41=الصيادين!$C$1,COUNTIF($D$5:D41,D41),"") ->  | B41: 37
A42: =IF(D42=الصيادين!$C$1,COUNTIF($D$5:D42,D42),"") ->  | B42: 38
A43: =IF(D43=الصيادين!$C$1,COUNTIF($D$5:D43,D43),"") ->  | B43: 39
A44: =IF(D44=الصيادين!$C$1,COUNTIF($D$5:D44,D44),"") ->  | B44: 40
A45: =IF(D45=الصيادين!$C$1,COUNTIF($D$5:D45,D45),"") ->  | B45: 41
A46: =IF(D46=الصيادين!$C$1,COUNTIF($D$5:D46,D46),"") ->  | B46: 42
A47: =IF(D47=الصيادين!$C$1,COUNTIF($D$5:D47,D47),"") ->  | B47: 43
A48: =IF(D48=الصيادين!$C$1,COUNTIF($D$5:D48,D48),"") ->  | B48: 44
A49: =IF(D49=الصيادين!$C$1,COUNTIF($D$5:D49,D49),"") ->  | B49: 45
A50: =IF(D50=الصيادين!$C$1,COUNTIF($D$5:D50,D50),"") ->  | B50: 46
A51: =IF(D51=الصيادين!$C$1,COUNTIF($D$5:D51,D51),"") ->  | B51: 47
A52: =IF(D52=الصيادين!$C$1,COUNTIF($D$5:D52,D52),"") ->  | B52: 48
A53: =IF(D53=الصيادين!$C$1,COUNTIF($D$5:D53,D53),"") ->  | B53: 49
A54: =IF(D54=الصيادين!$C$1,COUNTIF($D$5:D54,D54),"") ->  | B54: 50
A55: =IF(D55=الصيادين!$C$1,COUNTIF($D$5:D55,D55),"") ->  | B55: 51
A56: =IF(D56=الصيادين!$C$1,COUNTIF($D$5:D56,D56),"") ->  | B56: 52
A57: =IF(D57=الصيادين!$C$1,COUNTIF($D$5:D57,D57),"") ->  | B57: 53
A58: =IF(D58=الصيادين!$C$1,COUNTIF($D$5:D58,D58),"") ->  | B58: 54
A59: =IF(D59=الصيادين!$C$1,COUNTIF($D$5:D59,D59),"") ->  | B59: 55
A60: =IF(D60=الصيادين!$C$1,COUNTIF($D$5:D60,D60),"") ->  | B60: 56
A61: =IF(D61=الصيادين!$C$1,COUNTIF($D$5:D61,D61),"") ->  | B61: 57
A62: =IF(D62=الصيادين!$C$1,COUNTIF($D$5:D62,D62),"") ->  | B62: 58
A63: =IF(D63=الصيادين!$C$1,COUNTIF($D$5:D63,D63),"") ->  | B63: 59
A64: =IF(D64=الصيادين!$C$1,COUNTIF($D$5:D64,D64),"") ->  | B64: 60
A65: =IF(D65=الصيادين!$C$1,COUNTIF($D$5:D65,D65),"") ->  | B65: 61
A66: =IF(D66=الصيادين!$C$1,COUNTIF($D$5:D66,D66),"") ->  | B66: 62
A67: =IF(D67=الصيادين!$C$1,COUNTIF($D$5:D67,D67),"") ->  | B67: 63
A68: =IF(D68=الصيادين!$C$1,COUNTIF($D$5:D68,D68),"") ->  | B68: 64
A69: =IF(D69=الصيادين!$C$1,COUNTIF($D$5:D69,D69),"") ->  | B69: 65
A70: =IF(D70=الصيادين!$C$1,COUNTIF($D$5:D70,D70),"") ->  | B70: 66
A71: =IF(D71=الصيادين!$C$1,COUNTIF($D$5:D71,D71),"") ->  | B71: 67
A72: =IF(D72=الصيادين!$C$1,COUNTIF($D$5:D72,D72),"") ->  | B72: 68
A73: =IF(D73=الصيادين!$C$1,COUNTIF($D$5:D73,D73),"") ->  | B73: 69
A74: =IF(D74=الصيادين!$C$1,COUNTIF($D$5:D74,D74),"") ->  | B74: 70
A75: =IF(D75=الصيادين!$C$1,COUNTIF($D$5:D75,D75),"") ->  | B75: 71
A76: =IF(D76=الصيادين!$C$1,COUNTIF($D$5:D76,D76),"") ->  | B76: 72
A77: =IF(D77=الصيادين!$C$1,COUNTIF($D$5:D77,D77),"") ->  | B77: 73
A78: =IF(D78=الصيادين!$C$1,COUNTIF($D$5:D78,D78),"") ->  | B78: 74
A79: =IF(D79=الصيادين!$C$1,COUNTIF($D$5:D79,D79),"") ->  | B79: 75
A80: =IF(D80=الصيادين!$C$1,COUNTIF($D$5:D80,D80),"") ->  | B80: 76
A81: =IF(D81=الصيادين!$C$1,COUNTIF($D$5:D81,D81),"") ->  | B81: 77
A82: =IF(D82=الصيادين!$C$1,COUNTIF($D$5:D82,D82),"") ->  | B82: 78
A83: =IF(D83=الصيادين!$C$1,COUNTIF($D$5:D83,D83),"") ->  | B83: 79
A84: =IF(D84=الصيادين!$C$1,COUNTIF($D$5:D84,D84),"") ->  | B84: 80
A85: =IF(D85=الصيادين!$C$1,COUNTIF($D$5:D85,D85),"") ->  | B85: 81
A86: =IF(D86=الصيادين!$C$1,COUNTIF($D$5:D86,D86),"") ->  | B86: 82
A87: =IF(D87=الصيادين!$C$1,COUNTIF($D$5:D87,D87),"") ->  | B87: 83
A88: =IF(D88=الصيادين!$C$1,COUNTIF($D$5:D88,D88),"") ->  | B88: 84
A89: =IF(D89=الصيادين!$C$1,COUNTIF($D$5:D89,D89),"") ->  | B89: 85
A90: =IF(D90=الصيادين!$C$1,COUNTIF($D$5:D90,D90),"") ->  | B90: 86
A91: =IF(D91=الصيادين!$C$1,COUNTIF($D$5:D91,D91),"") ->  | B91: 87
A92: =IF(D92=الصيادين!$C$1,COUNTIF($D$5:D92,D92),"") ->  | B92: 88
A93: =IF(D93=الصيادين!$C$1,COUNTIF($D$5:D93,D93),"") ->  | B93: 89
A94: =IF(D94=الصيادين!$C$1,COUNTIF($D$5:D94,D94),"") ->  | B94: 90
A95: =IF(D95=الصيادين!$C$1,COUNTIF($D$5:D95,D95),"") ->  | B95: 91
A96: =IF(D96=الصيادين!$C$1,COUNTIF($D$5:D96,D96),"") ->  | B96: 92
A97: =IF(D97=الصيادين!$C$1,COUNTIF($D$5:D97,D97),"") ->  | B97: 93
A98: =IF(D98=الصيادين!$C$1,COUNTIF($D$5:D98,D98),"") ->  | B98: 94
A99: =IF(D99=الصيادين!$C$1,COUNTIF($D$5:D99,D99),"") ->  | B99: 95
A100: =IF(D100=الصيادين!$C$1,COUNTIF($D$5:D100,D100),"") ->  | B100: 96
A101: =IF(D101=الصيادين!$C$1,COUNTIF($D$5:D101,D101),"") ->  | B101: 97
A102: =IF(D102=الصيادين!$C$1,COUNTIF($D$5:D102,D102),"") ->  | B102: 98
A103: =IF(D103=الصيادين!$C$1,COUNTIF($D$5:D103,D103),"") ->  | B103: 99
A104: =IF(D104=الصيادين!$C$1,COUNTIF($D$5:D104,D104),"") ->  | B104: 100
G105: =SUM(G5:G104) -> 0 | H105: =SUM(H5:H104) -> 0 | I105: =SUM(I5:I104) -> 0 | J105: =SUM(J5:J104) -> 0
C106: النقدى | E106: 400
C107: الاستيفاء | E107: 10
C108: الايرادات | E108: =J105 -> 0
C109: المدخول | E109: =E106+E107+E108 -> 410
C110: المصروفات | E110: =H105+I105 -> 0
C111: صافى المدخول | E111: =E109-E110 -> 410

Sheet 7
C2: 2020-01-01
B3: م | C3: تاريخ | D3: الاسم | E3: الوصف | F3: رقم الفاتورة | G3: شتات | I3: المصروفات والايرادات | K3: الدلالة
G4: مستحقة | H4: سداد | I4: مصروفات | J4: ايرادات
A5: =IF(D5=الصيادين!$C$1,COUNTIF($D$5:D5,D5),"") ->  | B5: 1
A6: =IF(D6=الصيادين!$C$1,COUNTIF($D$5:D6,D6),"") ->  | B6: 2
A7: =IF(D7=الصيادين!$C$1,COUNTIF($D$5:D7,D7),"") ->  | B7: 3
A8: =IF(D8=الصيادين!$C$1,COUNTIF($D$5:D8,D8),"") ->  | B8: 4
A9: =IF(D9=الصيادين!$C$1,COUNTIF($D$5:D9,D9),"") ->  | B9: 5
A10: =IF(D10=الصيادين!$C$1,COUNTIF($D$5:D10,D10),"") ->  | B10: 6
A11: =IF(D11=الصيادين!$C$1,COUNTIF($D$5:D11,D11),"") ->  | B11: 7
A12: =IF(D12=الصيادين!$C$1,COUNTIF($D$5:D12,D12),"") ->  | B12: 8
A13: =IF(D13=الصيادين!$C$1,COUNTIF($D$5:D13,D13),"") ->  | B13: 9
A14: =IF(D14=الصيادين!$C$1,COUNTIF($D$5:D14,D14),"") ->  | B14: 10
A15: =IF(D15=الصيادين!$C$1,COUNTIF($D$5:D15,D15),"") ->  | B15: 11
A16: =IF(D16=الصيادين!$C$1,COUNTIF($D$5:D16,D16),"") ->  | B16: 12
A17: =IF(D17=الصيادين!$C$1,COUNTIF($D$5:D17,D17),"") ->  | B17: 13
A18: =IF(D18=الصيادين!$C$1,COUNTIF($D$5:D18,D18),"") ->  | B18: 14
A19: =IF(D19=الصيادين!$C$1,COUNTIF($D$5:D19,D19),"") ->  | B19: 15
A20: =IF(D20=الصيادين!$C$1,COUNTIF($D$5:D20,D20),"") ->  | B20: 16
A21: =IF(D21=الصيادين!$C$1,COUNTIF($D$5:D21,D21),"") ->  | B21: 17
A22: =IF(D22=الصيادين!$C$1,COUNTIF($D$5:D22,D22),"") ->  | B22: 18
A23: =IF(D23=الصيادين!$C$1,COUNTIF($D$5:D23,D23),"") ->  | B23: 19
A24: =IF(D24=الصيادين!$C$1,COUNTIF($D$5:D24,D24),"") ->  | B24: 20
A25: =IF(D25=الصيادين!$C$1,COUNTIF($D$5:D25,D25),"") ->  | B25: 21
A26: =IF(D26=الصيادين!$C$1,COUNTIF($D$5:D26,D26),"") ->  | B26: 22
A27: =IF(D27=الصيادين!$C$1,COUNTIF($D$5:D27,D27),"") ->  | B27: 23
A28: =IF(D28=الصيادين!$C$1,COUNTIF($D$5:D28,D28),"") ->  | B28: 24
A29: =IF(D29=الصيادين!$C$1,COUNTIF($D$5:D29,D29),"") ->  | B29: 25
A30: =IF(D30=الصيادين!$C$1,COUNTIF($D$5:D30,D30),"") ->  | B30: 26
A31: =IF(D31=الصيادين!$C$1,COUNTIF($D$5:D31,D31),"") ->  | B31: 27
A32: =IF(D32=الصيادين!$C$1,COUNTIF($D$5:D32,D32),"") ->  | B32: 28
A33: =IF(D33=الصيادين!$C$1,COUNTIF($D$5:D33,D33),"") ->  | B33: 29
A34: =IF(D34=الصيادين!$C$1,COUNTIF($D$5:D34,D34),"") ->  | B34: 30
A35: =IF(D35=الصيادين!$C$1,COUNTIF($D$5:D35,D35),"") ->  | B35: 31
A36: =IF(D36=الصيادين!$C$1,COUNTIF($D$5:D36,D36),"") ->  | B36: 32
A37: =IF(D37=الصيادين!$C$1,COUNTIF($D$5:D37,D37),"") ->  | B37: 33
A38: =IF(D38=الصيادين!$C$1,COUNTIF($D$5:D38,D38),"") ->  | B38: 34
A39: =IF(D39=الصيادين!$C$1,COUNTIF($D$5:D39,D39),"") ->  | B39: 35
A40: =IF(D40=الصيادين!$C$1,COUNTIF($D$5:D40,D40),"") ->  | B40: 36
A41: =IF(D41=الصيادين!$C$1,COUNTIF($D$5:D41,D41),"") ->  | B41: 37
A42: =IF(D42=الصيادين!$C$1,COUNTIF($D$5:D42,D42),"") ->  | B42: 38
A43: =IF(D43=الصيادين!$C$1,COUNTIF($D$5:D43,D43),"") ->  | B43: 39
A44: =IF(D44=الصيادين!$C$1,COUNTIF($D$5:D44,D44),"") ->  | B44: 40
A45: =IF(D45=الصيادين!$C$1,COUNTIF($D$5:D45,D45),"") ->  | B45: 41
A46: =IF(D46=الصيادين!$C$1,COUNTIF($D$5:D46,D46),"") ->  | B46: 42
A47: =IF(D47=الصيادين!$C$1,COUNTIF($D$5:D47,D47),"") ->  | B47: 43
A48: =IF(D48=الصيادين!$C$1,COUNTIF($D$5:D48,D48),"") ->  | B48: 44
A49: =IF(D49=الصيادين!$C$1,COUNTIF($D$5:D49,D49),"") ->  | B49: 45
A50: =IF(D50=الصيادين!$C$1,COUNTIF($D$5:D50,D50),"") ->  | B50: 46
A51: =IF(D51=الصيادين!$C$1,COUNTIF($D$5:D51,D51),"") ->  | B51: 47
A52: =IF(D52=الصيادين!$C$1,COUNTIF($D$5:D52,D52),"") ->  | B52: 48
A53: =IF(D53=الصيادين!$C$1,COUNTIF($D$5:D53,D53),"") ->  | B53: 49
A54: =IF(D54=الصيادين!$C$1,COUNTIF($D$5:D54,D54),"") ->  | B54: 50
A55: =IF(D55=الصيادين!$C$1,COUNTIF($D$5:D55,D55),"") ->  | B55: 51
A56: =IF(D56=الصيادين!$C$1,COUNTIF($D$5:D56,D56),"") ->  | B56: 52
A57: =IF(D57=الصيادين!$C$1,COUNTIF($D$5:D57,D57),"") ->  | B57: 53
A58: =IF(D58=الصيادين!$C$1,COUNTIF($D$5:D58,D58),"") ->  | B58: 54
A59: =IF(D59=الصيادين!$C$1,COUNTIF($D$5:D59,D59),"") ->  | B59: 55
A60: =IF(D60=الصيادين!$C$1,COUNTIF($D$5:D60,D60),"") ->  | B60: 56
A61: =IF(D61=الصيادين!$C$1,COUNTIF($D$5:D61,D61),"") ->  | B61: 57
A62: =IF(D62=الصيادين!$C$1,COUNTIF($D$5:D62,D62),"") ->  | B62: 58
A63: =IF(D63=الصيادين!$C$1,COUNTIF($D$5:D63,D63),"") ->  | B63: 59
A64: =IF(D64=الصيادين!$C$1,COUNTIF($D$5:D64,D64),"") ->  | B64: 60
A65: =IF(D65=الصيادين!$C$1,COUNTIF($D$5:D65,D65),"") ->  | B65: 61
A66: =IF(D66=الصيادين!$C$1,COUNTIF($D$5:D66,D66),"") ->  | B66: 62
A67: =IF(D67=الصيادين!$C$1,COUNTIF($D$5:D67,D67),"") ->  | B67: 63
A68: =IF(D68=الصيادين!$C$1,COUNTIF($D$5:D68,D68),"") ->  | B68: 64
A69: =IF(D69=الصيادين!$C$1,COUNTIF($D$5:D69,D69),"") ->  | B69: 65
A70: =IF(D70=الصيادين!$C$1,COUNTIF($D$5:D70,D70),"") ->  | B70: 66
A71: =IF(D71=الصيادين!$C$1,COUNTIF($D$5:D71,D71),"") ->  | B71: 67
A72: =IF(D72=الصيادين!$C$1,COUNTIF($D$5:D72,D72),"") ->  | B72: 68
A73: =IF(D73=الصيادين!$C$1,COUNTIF($D$5:D73,D73),"") ->  | B73: 69
A74: =IF(D74=الصيادين!$C$1,COUNTIF($D$5:D74,D74),"") ->  | B74: 70
A75: =IF(D75=الصيادين!$C$1,COUNTIF($D$5:D75,D75),"") ->  | B75: 71
A76: =IF(D76=الصيادين!$C$1,COUNTIF($D$5:D76,D76),"") ->  | B76: 72
A77: =IF(D77=الصيادين!$C$1,COUNTIF($D$5:D77,D77),"") ->  | B77: 73
A78: =IF(D78=الصيادين!$C$1,COUNTIF($D$5:D78,D78),"") ->  | B78: 74
A79: =IF(D79=الصيادين!$C$1,COUNTIF($D$5:D79,D79),"") ->  | B79: 75
A80: =IF(D80=الصيادين!$C$1,COUNTIF($D$5:D80,D80),"") ->  | B80: 76
A81: =IF(D81=الصيادين!$C$1,COUNTIF($D$5:D81,D81),"") ->  | B81: 77
A82: =IF(D82=الصيادين!$C$1,COUNTIF($D$5:D82,D82),"") ->  | B82: 78
A83: =IF(D83=الصيادين!$C$1,COUNTIF($D$5:D83,D83),"") ->  | B83: 79
A84: =IF(D84=الصيادين!$C$1,COUNTIF($D$5:D84,D84),"") ->  | B84: 80
A85: =IF(D85=الصيادين!$C$1,COUNTIF($D$5:D85,D85),"") ->  | B85: 81
A86: =IF(D86=الصيادين!$C$1,COUNTIF($D$5:D86,D86),"") ->  | B86: 82
A87: =IF(D87=الصيادين!$C$1,COUNTIF($D$5:D87,D87),"") ->  | B87: 83
A88: =IF(D88=الصيادين!$C$1,COUNTIF($D$5:D88,D88),"") ->  | B88: 84
A89: =IF(D89=الصيادين!$C$1,COUNTIF($D$5:D89,D89),"") ->  | B89: 85
A90: =IF(D90=الصيادين!$C$1,COUNTIF($D$5:D90,D90),"") ->  | B90: 86
A91: =IF(D91=الصيادين!$C$1,COUNTIF($D$5:D91,D91),"") ->  | B91: 87
A92: =IF(D92=الصيادين!$C$1,COUNTIF($D$5:D92,D92),"") ->  | B92: 88
A93: =IF(D93=الصيادين!$C$1,COUNTIF($D$5:D93,D93),"") ->  | B93: 89
A94: =IF(D94=الصيادين!$C$1,COUNTIF($D$5:D94,D94),"") ->  | B94: 90
A95: =IF(D95=الصيادين!$C$1,COUNTIF($D$5:D95,D95),"") ->  | B95: 91
A96: =IF(D96=الصيادين!$C$1,COUNTIF($D$5:D96,D96),"") ->  | B96: 92
A97: =IF(D97=الصيادين!$C$1,COUNTIF($D$5:D97,D97),"") ->  | B97: 93
A98: =IF(D98=الصيادين!$C$1,COUNTIF($D$5:D98,D98),"") ->  | B98: 94
A99: =IF(D99=الصيادين!$C$1,COUNTIF($D$5:D99,D99),"") ->  | B99: 95
A100: =IF(D100=الصيادين!$C$1,COUNTIF($D$5:D100,D100),"") ->  | B100: 96
A101: =IF(D101=الصيادين!$C$1,COUNTIF($D$5:D101,D101),"") ->  | B101: 97
A102: =IF(D102=الصيادين!$C$1,COUNTIF($D$5:D102,D102),"") ->  | B102: 98
A103: =IF(D103=الصيادين!$C$1,COUNTIF($D$5:D103,D103),"") ->  | B103: 99
A104: =IF(D104=الصيادين!$C$1,COUNTIF($D$5:D104,D104),"") ->  | B104: 100
G105: =SUM(G5:G104) -> 0 | H105: =SUM(H5:H104) -> 0 | I105: =SUM(I5:I104) -> 0 | J105: =SUM(J5:J104) -> 0
C106: النقدى | E106: 400
C107: الاستيفاء | E107: 10
C108: الايرادات | E108: =J105 -> 0
C109: المدخول | E109: =E106+E107+E108 -> 410
C110: المصروفات | E110: =H105+I105 -> 0
C111: صافى المدخول | E111: =E109-E110 -> 410

Sheet 8
C2: 2020-01-01
B3: م | C3: تاريخ | D3: الاسم | E3: الوصف | F3: رقم الفاتورة | G3: شتات | I3: المصروفات والايرادات | K3: الدلالة
G4: مستحقة | H4: سداد | I4: مصروفات | J4: ايرادات
A5: =IF(D5=الصيادين!$C$1,COUNTIF($D$5:D5,D5),"") ->  | B5: 1
A6: =IF(D6=الصيادين!$C$1,COUNTIF($D$5:D6,D6),"") ->  | B6: 2
A7: =IF(D7=الصيادين!$C$1,COUNTIF($D$5:D7,D7),"") ->  | B7: 3
A8: =IF(D8=الصيادين!$C$1,COUNTIF($D$5:D8,D8),"") ->  | B8: 4
A9: =IF(D9=الصيادين!$C$1,COUNTIF($D$5:D9,D9),"") ->  | B9: 5
A10: =IF(D10=الصيادين!$C$1,COUNTIF($D$5:D10,D10),"") ->  | B10: 6
A11: =IF(D11=الصيادين!$C$1,COUNTIF($D$5:D11,D11),"") ->  | B11: 7
A12: =IF(D12=الصيادين!$C$1,COUNTIF($D$5:D12,D12),"") ->  | B12: 8
A13: =IF(D13=الصيادين!$C$1,COUNTIF($D$5:D13,D13),"") ->  | B13: 9
A14: =IF(D14=الصيادين!$C$1,COUNTIF($D$5:D14,D14),"") ->  | B14: 10
A15: =IF(D15=الصيادين!$C$1,COUNTIF($D$5:D15,D15),"") ->  | B15: 11
A16: =IF(D16=الصيادين!$C$1,COUNTIF($D$5:D16,D16),"") ->  | B16: 12
A17: =IF(D17=الصيادين!$C$1,COUNTIF($D$5:D17,D17),"") ->  | B17: 13
A18: =IF(D18=الصيادين!$C$1,COUNTIF($D$5:D18,D18),"") ->  | B18: 14
A19: =IF(D19=الصيادين!$C$1,COUNTIF($D$5:D19,D19),"") ->  | B19: 15
A20: =IF(D20=الصيادين!$C$1,COUNTIF($D$5:D20,D20),"") ->  | B20: 16
A21: =IF(D21=الصيادين!$C$1,COUNTIF($D$5:D21,D21),"") ->  | B21: 17
A22: =IF(D22=الصيادين!$C$1,COUNTIF($D$5:D22,D22),"") ->  | B22: 18
A23: =IF(D23=الصيادين!$C$1,COUNTIF($D$5:D23,D23),"") ->  | B23: 19
A24: =IF(D24=الصيادين!$C$1,COUNTIF($D$5:D24,D24),"") ->  | B24: 20
A25: =IF(D25=الصيادين!$C$1,COUNTIF($D$5:D25,D25),"") ->  | B25: 21
A26: =IF(D26=الصيادين!$C$1,COUNTIF($D$5:D26,D26),"") ->  | B26: 22
A27: =IF(D27=الصيادين!$C$1,COUNTIF($D$5:D27,D27),"") ->  | B27: 23
A28: =IF(D28=الصيادين!$C$1,COUNTIF($D$5:D28,D28),"") ->  | B28: 24
A29: =IF(D29=الصيادين!$C$1,COUNTIF($D$5:D29,D29),"") ->  | B29: 25
A30: =IF(D30=الصيادين!$C$1,COUNTIF($D$5:D30,D30),"") ->  | B30: 26
A31: =IF(D31=الصيادين!$C$1,COUNTIF($D$5:D31,D31),"") ->  | B31: 27
A32: =IF(D32=الصيادين!$C$1,COUNTIF($D$5:D32,D32),"") ->  | B32: 28
A33: =IF(D33=الصيادين!$C$1,COUNTIF($D$5:D33,D33),"") ->  | B33: 29
A34: =IF(D34=الصيادين!$C$1,COUNTIF($D$5:D34,D34),"") ->  | B34: 30
A35: =IF(D35=الصيادين!$C$1,COUNTIF($D$5:D35,D35),"") ->  | B35: 31
A36: =IF(D36=الصيادين!$C$1,COUNTIF($D$5:D36,D36),"") ->  | B36: 32
A37: =IF(D37=الصيادين!$C$1,COUNTIF($D$5:D37,D37),"") ->  | B37: 33
A38: =IF(D38=الصيادين!$C$1,COUNTIF($D$5:D38,D38),"") ->  | B38: 34
A39: =IF(D39=الصيادين!$C$1,COUNTIF($D$5:D39,D39),"") ->  | B39: 35
A40: =IF(D40=الصيادين!$C$1,COUNTIF($D$5:D40,D40),"") ->  | B40: 36
A41: =IF(D41=الصيادين!$C$1,COUNTIF($D$5:D41,D41),"") ->  | B41: 37
A42: =IF(D42=الصيادين!$C$1,COUNTIF($D$5:D42,D42),"") ->  | B42: 38
A43: =IF(D43=الصيادين!$C$1,COUNTIF($D$5:D43,D43),"") ->  | B43: 39
A44: =IF(D44=الصيادين!$C$1,COUNTIF($D$5:D44,D44),"") ->  | B44: 40
A45: =IF(D45=الصيادين!$C$1,COUNTIF($D$5:D45,D45),"") ->  | B45: 41
A46: =IF(D46=الصيادين!$C$1,COUNTIF($D$5:D46,D46),"") ->  | B46: 42
A47: =IF(D47=الصيادين!$C$1,COUNTIF($D$5:D47,D47),"") ->  | B47: 43
A48: =IF(D48=الصيادين!$C$1,COUNTIF($D$5:D48,D48),"") ->  | B48: 44
A49: =IF(D49=الصيادين!$C$1,COUNTIF($D$5:D49,D49),"") ->  | B49: 45
A50: =IF(D50=الصيادين!$C$1,COUNTIF($D$5:D50,D50),"") ->  | B50: 46
A51: =IF(D51=الصيادين!$C$1,COUNTIF($D$5:D51,D51),"") ->  | B51: 47
A52: =IF(D52=الصيادين!$C$1,COUNTIF($D$5:D52,D52),"") ->  | B52: 48
A53: =IF(D53=الصيادين!$C$1,COUNTIF($D$5:D53,D53),"") ->  | B53: 49
A54: =IF(D54=الصيادين!$C$1,COUNTIF($D$5:D54,D54),"") ->  | B54: 50
A55: =IF(D55=الصيادين!$C$1,COUNTIF($D$5:D55,D55),"") ->  | B55: 51
A56: =IF(D56=الصيادين!$C$1,COUNTIF($D$5:D56,D56),"") ->  | B56: 52
A57: =IF(D57=الصيادين!$C$1,COUNTIF($D$5:D57,D57),"") ->  | B57: 53
A58: =IF(D58=الصيادين!$C$1,COUNTIF($D$5:D58,D58),"") ->  | B58: 54
A59: =IF(D59=الصيادين!$C$1,COUNTIF($D$5:D59,D59),"") ->  | B59: 55
A60: =IF(D60=الصيادين!$C$1,COUNTIF($D$5:D60,D60),"") ->  | B60: 56
A61: =IF(D61=الصيادين!$C$1,COUNTIF($D$5:D61,D61),"") ->  | B61: 57
A62: =IF(D62=الصيادين!$C$1,COUNTIF($D$5:D62,D62),"") ->  | B62: 58
A63: =IF(D63=الصيادين!$C$1,COUNTIF($D$5:D63,D63),"") ->  | B63: 59
A64: =IF(D64=الصيادين!$C$1,COUNTIF($D$5:D64,D64),"") ->  | B64: 60
A65: =IF(D65=الصيادين!$C$1,COUNTIF($D$5:D65,D65),"") ->  | B65: 61
A66: =IF(D66=الصيادين!$C$1,COUNTIF($D$5:D66,D66),"") ->  | B66: 62
A67: =IF(D67=الصيادين!$C$1,COUNTIF($D$5:D67,D67),"") ->  | B67: 63
A68: =IF(D68=الصيادين!$C$1,COUNTIF($D$5:D68,D68),"") ->  | B68: 64
A69: =IF(D69=الصيادين!$C$1,COUNTIF($D$5:D69,D69),"") ->  | B69: 65
A70: =IF(D70=الصيادين!$C$1,COUNTIF($D$5:D70,D70),"") ->  | B70: 66
A71: =IF(D71=الصيادين!$C$1,COUNTIF($D$5:D71,D71),"") ->  | B71: 67
A72: =IF(D72=الصيادين!$C$1,COUNTIF($D$5:D72,D72),"") ->  | B72: 68
A73: =IF(D73=الصيادين!$C$1,COUNTIF($D$5:D73,D73),"") ->  | B73: 69
A74: =IF(D74=الصيادين!$C$1,COUNTIF($D$5:D74,D74),"") ->  | B74: 70
A75: =IF(D75=الصيادين!$C$1,COUNTIF($D$5:D75,D75),"") ->  | B75: 71
A76: =IF(D76=الصيادين!$C$1,COUNTIF($D$5:D76,D76),"") ->  | B76: 72
A77: =IF(D77=الصيادين!$C$1,COUNTIF($D$5:D77,D77),"") ->  | B77: 73
A78: =IF(D78=الصيادين!$C$1,COUNTIF($D$5:D78,D78),"") ->  | B78: 74
A79: =IF(D79=الصيادين!$C$1,COUNTIF($D$5:D79,D79),"") ->  | B79: 75
A80: =IF(D80=الصيادين!$C$1,COUNTIF($D$5:D80,D80),"") ->  | B80: 76
A81: =IF(D81=الصيادين!$C$1,COUNTIF($D$5:D81,D81),"") ->  | B81: 77
A82: =IF(D82=الصيادين!$C$1,COUNTIF($D$5:D82,D82),"") ->  | B82: 78
A83: =IF(D83=الصيادين!$C$1,COUNTIF($D$5:D83,D83),"") ->  | B83: 79
A84: =IF(D84=الصيادين!$C$1,COUNTIF($D$5:D84,D84),"") ->  | B84: 80
A85: =IF(D85=الصيادين!$C$1,COUNTIF($D$5:D85,D85),"") ->  | B85: 81
A86: =IF(D86=الصيادين!$C$1,COUNTIF($D$5:D86,D86),"") ->  | B86: 82
A87: =IF(D87=الصيادين!$C$1,COUNTIF($D$5:D87,D87),"") ->  | B87: 83
A88: =IF(D88=الصيادين!$C$1,COUNTIF($D$5:D88,D88),"") ->  | B88: 84
A89: =IF(D89=الصيادين!$C$1,COUNTIF($D$5:D89,D89),"") ->  | B89: 85
A90: =IF(D90=الصيادين!$C$1,COUNTIF($D$5:D90,D90),"") ->  | B90: 86
A91: =IF(D91=الصيادين!$C$1,COUNTIF($D$5:D91,D91),"") ->  | B91: 87
A92: =IF(D92=الصيادين!$C$1,COUNTIF($D$5:D92,D92),"") ->  | B92: 88
A93: =IF(D93=الصيادين!$C$1,COUNTIF($D$5:D93,D93),"") ->  | B93: 89
A94: =IF(D94=الصيادين!$C$1,COUNTIF($D$5:D94,D94),"") ->  | B94: 90
A95: =IF(D95=الصيادين!$C$1,COUNTIF($D$5:D95,D95),"") ->  | B95: 91
A96: =IF(D96=الصيادين!$C$1,COUNTIF($D$5:D96,D96),"") ->  | B96: 92
A97: =IF(D97=الصيادين!$C$1,COUNTIF($D$5:D97,D97),"") ->  | B97: 93
A98: =IF(D98=الصيادين!$C$1,COUNTIF($D$5:D98,D98),"") ->  | B98: 94
A99: =IF(D99=الصيادين!$C$1,COUNTIF($D$5:D99,D99),"") ->  | B99: 95
A100: =IF(D100=الصيادين!$C$1,COUNTIF($D$5:D100,D100),"") ->  | B100: 96
A101: =IF(D101=الصيادين!$C$1,COUNTIF($D$5:D101,D101),"") ->  | B101: 97
A102: =IF(D102=الصيادين!$C$1,COUNTIF($D$5:D102,D102),"") ->  | B102: 98
A103: =IF(D103=الصيادين!$C$1,COUNTIF($D$5:D103,D103),"") ->  | B103: 99
A104: =IF(D104=الصيادين!$C$1,COUNTIF($D$5:D104,D104),"") ->  | B104: 100
G105: =SUM(G5:G104) -> 0 | H105: =SUM(H5:H104) -> 0 | I105: =SUM(I5:I104) -> 0 | J105: =SUM(J5:J104) -> 0
C106: النقدى | E106: 400
C107: الاستيفاء | E107: 10
C108: الايرادات | E108: =J105 -> 0
C109: المدخول | E109: =E106+E107+E108 -> 410
C110: المصروفات | E110: =H105+I105 -> 0
C111: صافى المدخول | E111: =E109-E110 -> 410

Sheet 9
C2: 2020-01-01
B3: م | C3: تاريخ | D3: الاسم | E3: الوصف | F3: رقم الفاتورة | G3: شتات | I3: المصروفات والايرادات | K3: الدلالة
G4: مستحقة | H4: سداد | I4: مصروفات | J4: ايرادات
A5: =IF(D5=الصيادين!$C$1,COUNTIF($D$5:D5,D5),"") -> 1 | B5: 1 | C5: 2019-10-01 | D5: محمد | E5: فاتورة بيع | F5: 250 | G5: 8 | H5: 9 | I5: 11 | J5: 28 | K5: 2
A6: =IF(D6=الصيادين!$C$1,COUNTIF($D$5:D6,D6),"") ->  | B6: 2
A7: =IF(D7=الصيادين!$C$1,COUNTIF($D$5:D7,D7),"") ->  | B7: 3
A8: =IF(D8=الصيادين!$C$1,COUNTIF($D$5:D8,D8),"") ->  | B8: 4
A9: =IF(D9=الصيادين!$C$1,COUNTIF($D$5:D9,D9),"") ->  | B9: 5
A10: =IF(D10=الصيادين!$C$1,COUNTIF($D$5:D10,D10),"") ->  | B10: 6
A11: =IF(D11=الصيادين!$C$1,COUNTIF($D$5:D11,D11),"") ->  | B11: 7
A12: =IF(D12=الصيادين!$C$1,COUNTIF($D$5:D12,D12),"") ->  | B12: 8
A13: =IF(D13=الصيادين!$C$1,COUNTIF($D$5:D13,D13),"") ->  | B13: 9
A14: =IF(D14=الصيادين!$C$1,COUNTIF($D$5:D14,D14),"") ->  | B14: 10
A15: =IF(D15=الصيادين!$C$1,COUNTIF($D$5:D15,D15),"") ->  | B15: 11
A16: =IF(D16=الصيادين!$C$1,COUNTIF($D$5:D16,D16),"") ->  | B16: 12
A17: =IF(D17=الصيادين!$C$1,COUNTIF($D$5:D17,D17),"") ->  | B17: 13
A18: =IF(D18=الصيادين!$C$1,COUNTIF($D$5:D18,D18),"") ->  | B18: 14
A19: =IF(D19=الصيادين!$C$1,COUNTIF($D$5:D19,D19),"") ->  | B19: 15
A20: =IF(D20=الصيادين!$C$1,COUNTIF($D$5:D20,D20),"") ->  | B20: 16
A21: =IF(D21=الصيادين!$C$1,COUNTIF($D$5:D21,D21),"") ->  | B21: 17
A22: =IF(D22=الصيادين!$C$1,COUNTIF($D$5:D22,D22),"") ->  | B22: 18
A23: =IF(D23=الصيادين!$C$1,COUNTIF($D$5:D23,D23),"") ->  | B23: 19
A24: =IF(D24=الصيادين!$C$1,COUNTIF($D$5:D24,D24),"") ->  | B24: 20
A25: =IF(D25=الصيادين!$C$1,COUNTIF($D$5:D25,D25),"") ->  | B25: 21
A26: =IF(D26=الصيادين!$C$1,COUNTIF($D$5:D26,D26),"") ->  | B26: 22
A27: =IF(D27=الصيادين!$C$1,COUNTIF($D$5:D27,D27),"") ->  | B27: 23
A28: =IF(D28=الصيادين!$C$1,COUNTIF($D$5:D28,D28),"") ->  | B28: 24
A29: =IF(D29=الصيادين!$C$1,COUNTIF($D$5:D29,D29),"") ->  | B29: 25
A30: =IF(D30=الصيادين!$C$1,COUNTIF($D$5:D30,D30),"") ->  | B30: 26
A31: =IF(D31=الصيادين!$C$1,COUNTIF($D$5:D31,D31),"") ->  | B31: 27
A32: =IF(D32=الصيادين!$C$1,COUNTIF($D$5:D32,D32),"") ->  | B32: 28
A33: =IF(D33=الصيادين!$C$1,COUNTIF($D$5:D33,D33),"") ->  | B33: 29
A34: =IF(D34=الصيادين!$C$1,COUNTIF($D$5:D34,D34),"") ->  | B34: 30
A35: =IF(D35=الصيادين!$C$1,COUNTIF($D$5:D35,D35),"") ->  | B35: 31
A36: =IF(D36=الصيادين!$C$1,COUNTIF($D$5:D36,D36),"") ->  | B36: 32
A37: =IF(D37=الصيادين!$C$1,COUNTIF($D$5:D37,D37),"") ->  | B37: 33
A38: =IF(D38=الصيادين!$C$1,COUNTIF($D$5:D38,D38),"") ->  | B38: 34
A39: =IF(D39=الصيادين!$C$1,COUNTIF($D$5:D39,D39),"") ->  | B39: 35
A40: =IF(D40=الصيادين!$C$1,COUNTIF($D$5:D40,D40),"") ->  | B40: 36
A41: =IF(D41=الصيادين!$C$1,COUNTIF($D$5:D41,D41),"") ->  | B41: 37
A42: =IF(D42=الصيادين!$C$1,COUNTIF($D$5:D42,D42),"") ->  | B42: 38
A43: =IF(D43=الصيادين!$C$1,COUNTIF($D$5:D43,D43),"") ->  | B43: 39
A44: =IF(D44=الصيادين!$C$1,COUNTIF($D$5:D44,D44),"") ->  | B44: 40
A45: =IF(D45=الصيادين!$C$1,COUNTIF($D$5:D45,D45),"") ->  | B45: 41
A46: =IF(D46=الصيادين!$C$1,COUNTIF($D$5:D46,D46),"") ->  | B46: 42
A47: =IF(D47=الصيادين!$C$1,COUNTIF($D$5:D47,D47),"") ->  | B47: 43
A48: =IF(D48=الصيادين!$C$1,COUNTIF($D$5:D48,D48),"") ->  | B48: 44
A49: =IF(D49=الصيادين!$C$1,COUNTIF($D$5:D49,D49),"") ->  | B49: 45
A50: =IF(D50=الصيادين!$C$1,COUNTIF($D$5:D50,D50),"") ->  | B50: 46
A51: =IF(D51=الصيادين!$C$1,COUNTIF($D$5:D51,D51),"") ->  | B51: 47
A52: =IF(D52=الصيادين!$C$1,COUNTIF($D$5:D52,D52),"") ->  | B52: 48
A53: =IF(D53=الصيادين!$C$1,COUNTIF($D$5:D53,D53),"") ->  | B53: 49
A54: =IF(D54=الصيادين!$C$1,COUNTIF($D$5:D54,D54),"") ->  | B54: 50
A55: =IF(D55=الصيادين!$C$1,COUNTIF($D$5:D55,D55),"") ->  | B55: 51
A56: =IF(D56=الصيادين!$C$1,COUNTIF($D$5:D56,D56),"") ->  | B56: 52
A57: =IF(D57=الصيادين!$C$1,COUNTIF($D$5:D57,D57),"") ->  | B57: 53
A58: =IF(D58=الصيادين!$C$1,COUNTIF($D$5:D58,D58),"") ->  | B58: 54
A59: =IF(D59=الصيادين!$C$1,COUNTIF($D$5:D59,D59),"") ->  | B59: 55
A60: =IF(D60=الصيادين!$C$1,COUNTIF($D$5:D60,D60),"") ->  | B60: 56
A61: =IF(D61=الصيادين!$C$1,COUNTIF($D$5:D61,D61),"") ->  | B61: 57
A62: =IF(D62=الصيادين!$C$1,COUNTIF($D$5:D62,D62),"") ->  | B62: 58
A63: =IF(D63=الصيادين!$C$1,COUNTIF($D$5:D63,D63),"") ->  | B63: 59
A64: =IF(D64=الصيادين!$C$1,COUNTIF($D$5:D64,D64),"") ->  | B64: 60
A65: =IF(D65=الصيادين!$C$1,COUNTIF($D$5:D65,D65),"") ->  | B65: 61
A66: =IF(D66=الصيادين!$C$1,COUNTIF($D$5:D66,D66),"") ->  | B66: 62
A67: =IF(D67=الصيادين!$C$1,COUNTIF($D$5:D67,D67),"") ->  | B67: 63
A68: =IF(D68=الصيادين!$C$1,COUNTIF($D$5:D68,D68),"") ->  | B68: 64
A69: =IF(D69=الصيادين!$C$1,COUNTIF($D$5:D69,D69),"") ->  | B69: 65
A70: =IF(D70=الصيادين!$C$1,COUNTIF($D$5:D70,D70),"") ->  | B70: 66
A71: =IF(D71=الصيادين!$C$1,COUNTIF($D$5:D71,D71),"") ->  | B71: 67
A72: =IF(D72=الصيادين!$C$1,COUNTIF($D$5:D72,D72),"") ->  | B72: 68
A73: =IF(D73=الصيادين!$C$1,COUNTIF($D$5:D73,D73),"") ->  | B73: 69
A74: =IF(D74=الصيادين!$C$1,COUNTIF($D$5:D74,D74),"") ->  | B74: 70
A75: =IF(D75=الصيادين!$C$1,COUNTIF($D$5:D75,D75),"") ->  | B75: 71
A76: =IF(D76=الصيادين!$C$1,COUNTIF($D$5:D76,D76),"") ->  | B76: 72
A77: =IF(D77=الصيادين!$C$1,COUNTIF($D$5:D77,D77),"") ->  | B77: 73
A78: =IF(D78=الصيادين!$C$1,COUNTIF($D$5:D78,D78),"") ->  | B78: 74
A79: =IF(D79=الصيادين!$C$1,COUNTIF($D$5:D79,D79),"") ->  | B79: 75
A80: =IF(D80=الصيادين!$C$1,COUNTIF($D$5:D80,D80),"") ->  | B80: 76
A81: =IF(D81=الصيادين!$C$1,COUNTIF($D$5:D81,D81),"") ->  | B81: 77
A82: =IF(D82=الصيادين!$C$1,COUNTIF($D$5:D82,D82),"") ->  | B82: 78
A83: =IF(D83=الصيادين!$C$1,COUNTIF($D$5:D83,D83),"") ->  | B83: 79
A84: =IF(D84=الصيادين!$C$1,COUNTIF($D$5:D84,D84),"") ->  | B84: 80
A85: =IF(D85=الصيادين!$C$1,COUNTIF($D$5:D85,D85),"") ->  | B85: 81
A86: =IF(D86=الصيادين!$C$1,COUNTIF($D$5:D86,D86),"") ->  | B86: 82
A87: =IF(D87=الصيادين!$C$1,COUNTIF($D$5:D87,D87),"") ->  | B87: 83
A88: =IF(D88=الصيادين!$C$1,COUNTIF($D$5:D88,D88),"") ->  | B88: 84
A89: =IF(D89=الصيادين!$C$1,COUNTIF($D$5:D89,D89),"") ->  | B89: 85
A90: =IF(D90=الصيادين!$C$1,COUNTIF($D$5:D90,D90),"") ->  | B90: 86
A91: =IF(D91=الصيادين!$C$1,COUNTIF($D$5:D91,D91),"") ->  | B91: 87
A92: =IF(D92=الصيادين!$C$1,COUNTIF($D$5:D92,D92),"") ->  | B92: 88
A93: =IF(D93=الصيادين!$C$1,COUNTIF($D$5:D93,D93),"") ->  | B93: 89
A94: =IF(D94=الصيادين!$C$1,COUNTIF($D$5:D94,D94),"") ->  | B94: 90
A95: =IF(D95=الصيادين!$C$1,COUNTIF($D$5:D95,D95),"") ->  | B95: 91
A96: =IF(D96=الصيادين!$C$1,COUNTIF($D$5:D96,D96),"") ->  | B96: 92
A97: =IF(D97=الصيادين!$C$1,COUNTIF($D$5:D97,D97),"") ->  | B97: 93
A98: =IF(D98=الصيادين!$C$1,COUNTIF($D$5:D98,D98),"") ->  | B98: 94
A99: =IF(D99=الصيادين!$C$1,COUNTIF($D$5:D99,D99),"") ->  | B99: 95
A100: =IF(D100=الصيادين!$C$1,COUNTIF($D$5:D100,D100),"") ->  | B100: 96
A101: =IF(D101=الصيادين!$C$1,COUNTIF($D$5:D101,D101),"") ->  | B101: 97
A102: =IF(D102=الصيادين!$C$1,COUNTIF($D$5:D102,D102),"") ->  | B102: 98
A103: =IF(D103=الصيادين!$C$1,COUNTIF($D$5:D103,D103),"") ->  | B103: 99
A104: =IF(D104=الصيادين!$C$1,COUNTIF($D$5:D104,D104),"") ->  | B104: 100
G105: =SUM(G5:G104) -> 8 | H105: =SUM(H5:H104) -> 9 | I105: =SUM(I5:I104) -> 11 | J105: =SUM(J5:J104) -> 28
C106: النقدى | E106: 400
C107: الاستيفاء | E107: 10
C108: الايرادات | E108: =J105 -> 28
C109: المدخول | E109: =E106+E107+E108 -> 438
C110: المصروفات | E110: =H105+I105 -> 20
C111: صافى المدخول | E111: =E109-E110 -> 418

Sheet 10
C2: 2020-01-01
B3: م | C3: تاريخ | D3: الاسم | E3: الوصف | F3: رقم الفاتورة | G3: شتات | I3: المصروفات والايرادات | K3: الدلالة
G4: مستحقة | H4: سداد | I4: مصروفات | J4: ايرادات
A5: =IF(D5=الصيادين!$C$1,COUNTIF($D$5:D5,D5),"") ->  | B5: 1
A6: =IF(D6=الصيادين!$C$1,COUNTIF($D$5:D6,D6),"") ->  | B6: 2
A7: =IF(D7=الصيادين!$C$1,COUNTIF($D$5:D7,D7),"") ->  | B7: 3
A8: =IF(D8=الصيادين!$C$1,COUNTIF($D$5:D8,D8),"") ->  | B8: 4
A9: =IF(D9=الصيادين!$C$1,COUNTIF($D$5:D9,D9),"") ->  | B9: 5
A10: =IF(D10=الصيادين!$C$1,COUNTIF($D$5:D10,D10),"") ->  | B10: 6
A11: =IF(D11=الصيادين!$C$1,COUNTIF($D$5:D11,D11),"") ->  | B11: 7
A12: =IF(D12=الصيادين!$C$1,COUNTIF($D$5:D12,D12),"") ->  | B12: 8
A13: =IF(D13=الصيادين!$C$1,COUNTIF($D$5:D13,D13),"") ->  | B13: 9
A14: =IF(D14=الصيادين!$C$1,COUNTIF($D$5:D14,D14),"") ->  | B14: 10
A15: =IF(D15=الصيادين!$C$1,COUNTIF($D$5:D15,D15),"") ->  | B15: 11
A16: =IF(D16=الصيادين!$C$1,COUNTIF($D$5:D16,D16),"") ->  | B16: 12
A17: =IF(D17=الصيادين!$C$1,COUNTIF($D$5:D17,D17),"") ->  | B17: 13
A18: =IF(D18=الصيادين!$C$1,COUNTIF($D$5:D18,D18),"") ->  | B18: 14
A19: =IF(D19=الصيادين!$C$1,COUNTIF($D$5:D19,D19),"") ->  | B19: 15
A20: =IF(D20=الصيادين!$C$1,COUNTIF($D$5:D20,D20),"") ->  | B20: 16
A21: =IF(D21=الصيادين!$C$1,COUNTIF($D$5:D21,D21),"") ->  | B21: 17
A22: =IF(D22=الصيادين!$C$1,COUNTIF($D$5:D22,D22),"") ->  | B22: 18
A23: =IF(D23=الصيادين!$C$1,COUNTIF($D$5:D23,D23),"") ->  | B23: 19
A24: =IF(D24=الصيادين!$C$1,COUNTIF($D$5:D24,D24),"") ->  | B24: 20
A25: =IF(D25=الصيادين!$C$1,COUNTIF($D$5:D25,D25),"") ->  | B25: 21
A26: =IF(D26=الصيادين!$C$1,COUNTIF($D$5:D26,D26),"") ->  | B26: 22
A27: =IF(D27=الصيادين!$C$1,COUNTIF($D$5:D27,D27),"") ->  | B27: 23
A28: =IF(D28=الصيادين!$C$1,COUNTIF($D$5:D28,D28),"") ->  | B28: 24
A29: =IF(D29=الصيادين!$C$1,COUNTIF($D$5:D29,D29),"") ->  | B29: 25
A30: =IF(D30=الصيادين!$C$1,COUNTIF($D$5:D30,D30),"") ->  | B30: 26
A31: =IF(D31=الصيادين!$C$1,COUNTIF($D$5:D31,D31),"") ->  | B31: 27
A32: =IF(D32=الصيادين!$C$1,COUNTIF($D$5:D32,D32),"") ->  | B32: 28
A33: =IF(D33=الصيادين!$C$1,COUNTIF($D$5:D33,D33),"") ->  | B33: 29
A34: =IF(D34=الصيادين!$C$1,COUNTIF($D$5:D34,D34),"") ->  | B34: 30
A35: =IF(D35=الصيادين!$C$1,COUNTIF($D$5:D35,D35),"") ->  | B35: 31
A36: =IF(D36=الصيادين!$C$1,COUNTIF($D$5:D36,D36),"") ->  | B36: 32
A37: =IF(D37=الصيادين!$C$1,COUNTIF($D$5:D37,D37),"") ->  | B37: 33
A38: =IF(D38=الصيادين!$C$1,COUNTIF($D$5:D38,D38),"") ->  | B38: 34
A39: =IF(D39=الصيادين!$C$1,COUNTIF($D$5:D39,D39),"") ->  | B39: 35
A40: =IF(D40=الصيادين!$C$1,COUNTIF($D$5:D40,D40),"") ->  | B40: 36
A41: =IF(D41=الصيادين!$C$1,COUNTIF($D$5:D41,D41),"") ->  | B41: 37
A42: =IF(D42=الصيادين!$C$1,COUNTIF($D$5:D42,D42),"") ->  | B42: 38
A43: =IF(D43=الصيادين!$C$1,COUNTIF($D$5:D43,D43),"") ->  | B43: 39
A44: =IF(D44=الصيادين!$C$1,COUNTIF($D$5:D44,D44),"") ->  | B44: 40
A45: =IF(D45=الصيادين!$C$1,COUNTIF($D$5:D45,D45),"") ->  | B45: 41
A46: =IF(D46=الصيادين!$C$1,COUNTIF($D$5:D46,D46),"") ->  | B46: 42
A47: =IF(D47=الصيادين!$C$1,COUNTIF($D$5:D47,D47),"") ->  | B47: 43
A48: =IF(D48=الصيادين!$C$1,COUNTIF($D$5:D48,D48),"") ->  | B48: 44
A49: =IF(D49=الصيادين!$C$1,COUNTIF($D$5:D49,D49),"") ->  | B49: 45
A50: =IF(D50=الصيادين!$C$1,COUNTIF($D$5:D50,D50),"") ->  | B50: 46
A51: =IF(D51=الصيادين!$C$1,COUNTIF($D$5:D51,D51),"") ->  | B51: 47
A52: =IF(D52=الصيادين!$C$1,COUNTIF($D$5:D52,D52),"") ->  | B52: 48
A53: =IF(D53=الصيادين!$C$1,COUNTIF($D$5:D53,D53),"") ->  | B53: 49
A54: =IF(D54=الصيادين!$C$1,COUNTIF($D$5:D54,D54),"") ->  | B54: 50
A55: =IF(D55=الصيادين!$C$1,COUNTIF($D$5:D55,D55),"") ->  | B55: 51
A56: =IF(D56=الصيادين!$C$1,COUNTIF($D$5:D56,D56),"") ->  | B56: 52
A57: =IF(D57=الصيادين!$C$1,COUNTIF($D$5:D57,D57),"") ->  | B57: 53
A58: =IF(D58=الصيادين!$C$1,COUNTIF($D$5:D58,D58),"") ->  | B58: 54
A59: =IF(D59=الصيادين!$C$1,COUNTIF($D$5:D59,D59),"") ->  | B59: 55
A60: =IF(D60=الصيادين!$C$1,COUNTIF($D$5:D60,D60),"") ->  | B60: 56
A61: =IF(D61=الصيادين!$C$1,COUNTIF($D$5:D61,D61),"") ->  | B61: 57
A62: =IF(D62=الصيادين!$C$1,COUNTIF($D$5:D62,D62),"") ->  | B62: 58
A63: =IF(D63=الصيادين!$C$1,COUNTIF($D$5:D63,D63),"") ->  | B63: 59
A64: =IF(D64=الصيادين!$C$1,COUNTIF($D$5:D64,D64),"") ->  | B64: 60
A65: =IF(D65=الصيادين!$C$1,COUNTIF($D$5:D65,D65),"") ->  | B65: 61
A66: =IF(D66=الصيادين!$C$1,COUNTIF($D$5:D66,D66),"") ->  | B66: 62
A67: =IF(D67=الصيادين!$C$1,COUNTIF($D$5:D67,D67),"") ->  | B67: 63
A68: =IF(D68=الصيادين!$C$1,COUNTIF($D$5:D68,D68),"") ->  | B68: 64
A69: =IF(D69=الصيادين!$C$1,COUNTIF($D$5:D69,D69),"") ->  | B69: 65
A70: =IF(D70=الصيادين!$C$1,COUNTIF($D$5:D70,D70),"") ->  | B70: 66
A71: =IF(D71=الصيادين!$C$1,COUNTIF($D$5:D71,D71),"") ->  | B71: 67
A72: =IF(D72=الصيادين!$C$1,COUNTIF($D$5:D72,D72),"") ->  | B72: 68
A73: =IF(D73=الصيادين!$C$1,COUNTIF($D$5:D73,D73),"") ->  | B73: 69
A74: =IF(D74=الصيادين!$C$1,COUNTIF($D$5:D74,D74),"") ->  | B74: 70
A75: =IF(D75=الصيادين!$C$1,COUNTIF($D$5:D75,D75),"") ->  | B75: 71
A76: =IF(D76=الصيادين!$C$1,COUNTIF($D$5:D76,D76),"") ->  | B76: 72
A77: =IF(D77=الصيادين!$C$1,COUNTIF($D$5:D77,D77),"") ->  | B77: 73
A78: =IF(D78=الصيادين!$C$1,COUNTIF($D$5:D78,D78),"") ->  | B78: 74
A79: =IF(D79=الصيادين!$C$1,COUNTIF($D$5:D79,D79),"") ->  | B79: 75
A80: =IF(D80=الصيادين!$C$1,COUNTIF($D$5:D80,D80),"") ->  | B80: 76
A81: =IF(D81=الصيادين!$C$1,COUNTIF($D$5:D81,D81),"") ->  | B81: 77
A82: =IF(D82=الصيادين!$C$1,COUNTIF($D$5:D82,D82),"") ->  | B82: 78
A83: =IF(D83=الصيادين!$C$1,COUNTIF($D$5:D83,D83),"") ->  | B83: 79
A84: =IF(D84=الصيادين!$C$1,COUNTIF($D$5:D84,D84),"") ->  | B84: 80
A85: =IF(D85=الصيادين!$C$1,COUNTIF($D$5:D85,D85),"") ->  | B85: 81
A86: =IF(D86=الصيادين!$C$1,COUNTIF($D$5:D86,D86),"") ->  | B86: 82
A87: =IF(D87=الصيادين!$C$1,COUNTIF($D$5:D87,D87),"") ->  | B87: 83
A88: =IF(D88=الصيادين!$C$1,COUNTIF($D$5:D88,D88),"") ->  | B88: 84
A89: =IF(D89=الصيادين!$C$1,COUNTIF($D$5:D89,D89),"") ->  | B89: 85
A90: =IF(D90=الصيادين!$C$1,COUNTIF($D$5:D90,D90),"") ->  | B90: 86
A91: =IF(D91=الصيادين!$C$1,COUNTIF($D$5:D91,D91),"") ->  | B91: 87
A92: =IF(D92=الصيادين!$C$1,COUNTIF($D$5:D92,D92),"") ->  | B92: 88
A93: =IF(D93=الصيادين!$C$1,COUNTIF($D$5:D93,D93),"") ->  | B93: 89
A94: =IF(D94=الصيادين!$C$1,COUNTIF($D$5:D94,D94),"") ->  | B94: 90
A95: =IF(D95=الصيادين!$C$1,COUNTIF($D$5:D95,D95),"") ->  | B95: 91
A96: =IF(D96=الصيادين!$C$1,COUNTIF($D$5:D96,D96),"") ->  | B96: 92
A97: =IF(D97=الصيادين!$C$1,COUNTIF($D$5:D97,D97),"") ->  | B97: 93
A98: =IF(D98=الصيادين!$C$1,COUNTIF($D$5:D98,D98),"") ->  | B98: 94
A99: =IF(D99=الصيادين!$C$1,COUNTIF($D$5:D99,D99),"") ->  | B99: 95
A100: =IF(D100=الصيادين!$C$1,COUNTIF($D$5:D100,D100),"") ->  | B100: 96
A101: =IF(D101=الصيادين!$C$1,COUNTIF($D$5:D101,D101),"") ->  | B101: 97
A102: =IF(D102=الصيادين!$C$1,COUNTIF($D$5:D102,D102),"") ->  | B102: 98
A103: =IF(D103=الصيادين!$C$1,COUNTIF($D$5:D103,D103),"") ->  | B103: 99
A104: =IF(D104=الصيادين!$C$1,COUNTIF($D$5:D104,D104),"") ->  | B104: 100
G105: =SUM(G5:G104) -> 0 | H105: =SUM(H5:H104) -> 0 | I105: =SUM(I5:I104) -> 0 | J105: =SUM(J5:J104) -> 0
C106: النقدى | E106: 400
C107: الاستيفاء | E107: 10
C108: الايرادات | E108: =J105 -> 0
C109: المدخول | E109: =E106+E107+E108 -> 410
C110: المصروفات | E110: =H105+I105 -> 0
C111: صافى المدخول | E111: =E109-E110 -> 410

Sheet 11
C2: 2020-01-01
B3: م | C3: تاريخ | D3: الاسم | E3: الوصف | F3: رقم الفاتورة | G3: شتات | I3: المصروفات والايرادات | K3: الدلالة
G4: مستحقة | H4: سداد | I4: مصروفات | J4: ايرادات
A5: =IF(D5=الصيادين!$C$1,COUNTIF($D$5:D5,D5),"") ->  | B5: 1
A6: =IF(D6=الصيادين!$C$1,COUNTIF($D$5:D6,D6),"") ->  | B6: 2
A7: =IF(D7=الصيادين!$C$1,COUNTIF($D$5:D7,D7),"") ->  | B7: 3
A8: =IF(D8=الصيادين!$C$1,COUNTIF($D$5:D8,D8),"") ->  | B8: 4
A9: =IF(D9=الصيادين!$C$1,COUNTIF($D$5:D9,D9),"") ->  | B9: 5
A10: =IF(D10=الصيادين!$C$1,COUNTIF($D$5:D10,D10),"") ->  | B10: 6
A11: =IF(D11=الصيادين!$C$1,COUNTIF($D$5:D11,D11),"") ->  | B11: 7
A12: =IF(D12=الصيادين!$C$1,COUNTIF($D$5:D12,D12),"") ->  | B12: 8
A13: =IF(D13=الصيادين!$C$1,COUNTIF($D$5:D13,D13),"") ->  | B13: 9
A14: =IF(D14=الصيادين!$C$1,COUNTIF($D$5:D14,D14),"") ->  | B14: 10
A15: =IF(D15=الصيادين!$C$1,COUNTIF($D$5:D15,D15),"") ->  | B15: 11
A16: =IF(D16=الصيادين!$C$1,COUNTIF($D$5:D16,D16),"") ->  | B16: 12
A17: =IF(D17=الصيادين!$C$1,COUNTIF($D$5:D17,D17),"") ->  | B17: 13
A18: =IF(D18=الصيادين!$C$1,COUNTIF($D$5:D18,D18),"") ->  | B18: 14
A19: =IF(D19=الصيادين!$C$1,COUNTIF($D$5:D19,D19),"") ->  | B19: 15
A20: =IF(D20=الصيادين!$C$1,COUNTIF($D$5:D20,D20),"") ->  | B20: 16
A21: =IF(D21=الصيادين!$C$1,COUNTIF($D$5:D21,D21),"") ->  | B21: 17
A22: =IF(D22=الصيادين!$C$1,COUNTIF($D$5:D22,D22),"") ->  | B22: 18
A23: =IF(D23=الصيادين!$C$1,COUNTIF($D$5:D23,D23),"") ->  | B23: 19
A24: =IF(D24=الصيادين!$C$1,COUNTIF($D$5:D24,D24),"") ->  | B24: 20
A25: =IF(D25=الصيادين!$C$1,COUNTIF($D$5:D25,D25),"") ->  | B25: 21
A26: =IF(D26=الصيادين!$C$1,COUNTIF($D$5:D26,D26),"") ->  | B26: 22
A27: =IF(D27=الصيادين!$C$1,COUNTIF($D$5:D27,D27),"") ->  | B27: 23
A28: =IF(D28=الصيادين!$C$1,COUNTIF($D$5:D28,D28),"") ->  | B28: 24
A29: =IF(D29=الصيادين!$C$1,COUNTIF($D$5:D29,D29),"") ->  | B29: 25
A30: =IF(D30=الصيادين!$C$1,COUNTIF($D$5:D30,D30),"") ->  | B30: 26
A31: =IF(D31=الصيادين!$C$1,COUNTIF($D$5:D31,D31),"") ->  | B31: 27
A32: =IF(D32=الصيادين!$C$1,COUNTIF($D$5:D32,D32),"") ->  | B32: 28
A33: =IF(D33=الصيادين!$C$1,COUNTIF($D$5:D33,D33),"") ->  | B33: 29
A34: =IF(D34=الصيادين!$C$1,COUNTIF($D$5:D34,D34),"") ->  | B34: 30
A35: =IF(D35=الصيادين!$C$1,COUNTIF($D$5:D35,D35),"") ->  | B35: 31
A36: =IF(D36=الصيادين!$C$1,COUNTIF($D$5:D36,D36),"") ->  | B36: 32
A37: =IF(D37=الصيادين!$C$1,COUNTIF($D$5:D37,D37),"") ->  | B37: 33
A38: =IF(D38=الصيادين!$C$1,COUNTIF($D$5:D38,D38),"") ->  | B38: 34
A39: =IF(D39=الصيادين!$C$1,COUNTIF($D$5:D39,D39),"") ->  | B39: 35
A40: =IF(D40=الصيادين!$C$1,COUNTIF($D$5:D40,D40),"") ->  | B40: 36
A41: =IF(D41=الصيادين!$C$1,COUNTIF($D$5:D41,D41),"") ->  | B41: 37
A42: =IF(D42=الصيادين!$C$1,COUNTIF($D$5:D42,D42),"") ->  | B42: 38
A43: =IF(D43=الصيادين!$C$1,COUNTIF($D$5:D43,D43),"") ->  | B43: 39
A44: =IF(D44=الصيادين!$C$1,COUNTIF($D$5:D44,D44),"") ->  | B44: 40
A45: =IF(D45=الصيادين!$C$1,COUNTIF($D$5:D45,D45),"") ->  | B45: 41
A46: =IF(D46=الصيادين!$C$1,COUNTIF($D$5:D46,D46),"") ->  | B46: 42
A47: =IF(D47=الصيادين!$C$1,COUNTIF($D$5:D47,D47),"") ->  | B47: 43
A48: =IF(D48=الصيادين!$C$1,COUNTIF($D$5:D48,D48),"") ->  | B48: 44
A49: =IF(D49=الصيادين!$C$1,COUNTIF($D$5:D49,D49),"") ->  | B49: 45
A50: =IF(D50=الصيادين!$C$1,COUNTIF($D$5:D50,D50),"") ->  | B50: 46
A51: =IF(D51=الصيادين!$C$1,COUNTIF($D$5:D51,D51),"") ->  | B51: 47
A52: =IF(D52=الصيادين!$C$1,COUNTIF($D$5:D52,D52),"") ->  | B52: 48
A53: =IF(D53=الصيادين!$C$1,COUNTIF($D$5:D53,D53),"") ->  | B53: 49
A54: =IF(D54=الصيادين!$C$1,COUNTIF($D$5:D54,D54),"") ->  | B54: 50
A55: =IF(D55=الصيادين!$C$1,COUNTIF($D$5:D55,D55),"") ->  | B55: 51
A56: =IF(D56=الصيادين!$C$1,COUNTIF($D$5:D56,D56),"") ->  | B56: 52
A57: =IF(D57=الصيادين!$C$1,COUNTIF($D$5:D57,D57),"") ->  | B57: 53
A58: =IF(D58=الصيادين!$C$1,COUNTIF($D$5:D58,D58),"") ->  | B58: 54
A59: =IF(D59=الصيادين!$C$1,COUNTIF($D$5:D59,D59),"") ->  | B59: 55
A60: =IF(D60=الصيادين!$C$1,COUNTIF($D$5:D60,D60),"") ->  | B60: 56
A61: =IF(D61=الصيادين!$C$1,COUNTIF($D$5:D61,D61),"") ->  | B61: 57
A62: =IF(D62=الصيادين!$C$1,COUNTIF($D$5:D62,D62),"") ->  | B62: 58
A63: =IF(D63=الصيادين!$C$1,COUNTIF($D$5:D63,D63),"") ->  | B63: 59
A64: =IF(D64=الصيادين!$C$1,COUNTIF($D$5:D64,D64),"") ->  | B64: 60
A65: =IF(D65=الصيادين!$C$1,COUNTIF($D$5:D65,D65),"") ->  | B65: 61
A66: =IF(D66=الصيادين!$C$1,COUNTIF($D$5:D66,D66),"") ->  | B66: 62
A67: =IF(D67=الصيادين!$C$1,COUNTIF($D$5:D67,D67),"") ->  | B67: 63
A68: =IF(D68=الصيادين!$C$1,COUNTIF($D$5:D68,D68),"") ->  | B68: 64
A69: =IF(D69=الصيادين!$C$1,COUNTIF($D$5:D69,D69),"") ->  | B69: 65
A70: =IF(D70=الصيادين!$C$1,COUNTIF($D$5:D70,D70),"") ->  | B70: 66
A71: =IF(D71=الصيادين!$C$1,COUNTIF($D$5:D71,D71),"") ->  | B71: 67
A72: =IF(D72=الصيادين!$C$1,COUNTIF($D$5:D72,D72),"") ->  | B72: 68
A73: =IF(D73=الصيادين!$C$1,COUNTIF($D$5:D73,D73),"") ->  | B73: 69
A74: =IF(D74=الصيادين!$C$1,COUNTIF($D$5:D74,D74),"") ->  | B74: 70
A75: =IF(D75=الصيادين!$C$1,COUNTIF($D$5:D75,D75),"") ->  | B75: 71
A76: =IF(D76=الصيادين!$C$1,COUNTIF($D$5:D76,D76),"") ->  | B76: 72
A77: =IF(D77=الصيادين!$C$1,COUNTIF($D$5:D77,D77),"") ->  | B77: 73
A78: =IF(D78=الصيادين!$C$1,COUNTIF($D$5:D78,D78),"") ->  | B78: 74
A79: =IF(D79=الصيادين!$C$1,COUNTIF($D$5:D79,D79),"") ->  | B79: 75
A80: =IF(D80=الصيادين!$C$1,COUNTIF($D$5:D80,D80),"") ->  | B80: 76
A81: =IF(D81=الصيادين!$C$1,COUNTIF($D$5:D81,D81),"") ->  | B81: 77
A82: =IF(D82=الصيادين!$C$1,COUNTIF($D$5:D82,D82),"") ->  | B82: 78
A83: =IF(D83=الصيادين!$C$1,COUNTIF($D$5:D83,D83),"") ->  | B83: 79
A84: =IF(D84=الصيادين!$C$1,COUNTIF($D$5:D84,D84),"") ->  | B84: 80
A85: =IF(D85=الصيادين!$C$1,COUNTIF($D$5:D85,D85),"") ->  | B85: 81
A86: =IF(D86=الصيادين!$C$1,COUNTIF($D$5:D86,D86),"") ->  | B86: 82
A87: =IF(D87=الصيادين!$C$1,COUNTIF($D$5:D87,D87),"") ->  | B87: 83
A88: =IF(D88=الصيادين!$C$1,COUNTIF($D$5:D88,D88),"") ->  | B88: 84
A89: =IF(D89=الصيادين!$C$1,COUNTIF($D$5:D89,D89),"") ->  | B89: 85
A90: =IF(D90=الصيادين!$C$1,COUNTIF($D$5:D90,D90),"") ->  | B90: 86
A91: =IF(D91=الصيادين!$C$1,COUNTIF($D$5:D91,D91),"") ->  | B91: 87
A92: =IF(D92=الصيادين!$C$1,COUNTIF($D$5:D92,D92),"") ->  | B92: 88
A93: =IF(D93=الصيادين!$C$1,COUNTIF($D$5:D93,D93),"") ->  | B93: 89
A94: =IF(D94=الصيادين!$C$1,COUNTIF($D$5:D94,D94),"") ->  | B94: 90
A95: =IF(D95=الصيادين!$C$1,COUNTIF($D$5:D95,D95),"") ->  | B95: 91
A96: =IF(D96=الصيادين!$C$1,COUNTIF($D$5:D96,D96),"") ->  | B96: 92
A97: =IF(D97=الصيادين!$C$1,COUNTIF($D$5:D97,D97),"") ->  | B97: 93
A98: =IF(D98=الصيادين!$C$1,COUNTIF($D$5:D98,D98),"") ->  | B98: 94
A99: =IF(D99=الصيادين!$C$1,COUNTIF($D$5:D99,D99),"") ->  | B99: 95
A100: =IF(D100=الصيادين!$C$1,COUNTIF($D$5:D100,D100),"") ->  | B100: 96
A101: =IF(D101=الصيادين!$C$1,COUNTIF($D$5:D101,D101),"") ->  | B101: 97
A102: =IF(D102=الصيادين!$C$1,COUNTIF($D$5:D102,D102),"") ->  | B102: 98
A103: =IF(D103=الصيادين!$C$1,COUNTIF($D$5:D103,D103),"") ->  | B103: 99
A104: =IF(D104=الصيادين!$C$1,COUNTIF($D$5:D104,D104),"") ->  | B104: 100
G105: =SUM(G5:G104) -> 0 | H105: =SUM(H5:H104) -> 0 | I105: =SUM(I5:I104) -> 0 | J105: =SUM(J5:J104) -> 0
C106: النقدى | E106: 400
C107: الاستيفاء | E107: 10
C108: الايرادات | E108: =J105 -> 0
C109: المدخول | E109: =E106+E107+E108 -> 410
C110: المصروفات | E110: =H105+I105 -> 0
C111: صافى المدخول | E111: =E109-E110 -> 410

Sheet 12
C2: 2020-01-01
B3: م | C3: تاريخ | D3: الاسم | E3: الوصف | F3: رقم الفاتورة | G3: شتات | I3: المصروفات والايرادات | K3: الدلالة
G4: مستحقة | H4: سداد | I4: مصروفات | J4: ايرادات
A5: =IF(D5=الصيادين!$C$1,COUNTIF($D$5:D5,D5),"") ->  | B5: 1
A6: =IF(D6=الصيادين!$C$1,COUNTIF($D$5:D6,D6),"") ->  | B6: 2
A7: =IF(D7=الصيادين!$C$1,COUNTIF($D$5:D7,D7),"") ->  | B7: 3
A8: =IF(D8=الصيادين!$C$1,COUNTIF($D$5:D8,D8),"") ->  | B8: 4
A9: =IF(D9=الصيادين!$C$1,COUNTIF($D$5:D9,D9),"") ->  | B9: 5
A10: =IF(D10=الصيادين!$C$1,COUNTIF($D$5:D10,D10),"") ->  | B10: 6
A11: =IF(D11=الصيادين!$C$1,COUNTIF($D$5:D11,D11),"") ->  | B11: 7
A12: =IF(D12=الصيادين!$C$1,COUNTIF($D$5:D12,D12),"") ->  | B12: 8
A13: =IF(D13=الصيادين!$C$1,COUNTIF($D$5:D13,D13),"") ->  | B13: 9
A14: =IF(D14=الصيادين!$C$1,COUNTIF($D$5:D14,D14),"") ->  | B14: 10
A15: =IF(D15=الصيادين!$C$1,COUNTIF($D$5:D15,D15),"") ->  | B15: 11
A16: =IF(D16=الصيادين!$C$1,COUNTIF($D$5:D16,D16),"") ->  | B16: 12
A17: =IF(D17=الصيادين!$C$1,COUNTIF($D$5:D17,D17),"") ->  | B17: 13
A18: =IF(D18=الصيادين!$C$1,COUNTIF($D$5:D18,D18),"") ->  | B18: 14
A19: =IF(D19=الصيادين!$C$1,COUNTIF($D$5:D19,D19),"") ->  | B19: 15
A20: =IF(D20=الصيادين!$C$1,COUNTIF($D$5:D20,D20),"") ->  | B20: 16
A21: =IF(D21=الصيادين!$C$1,COUNTIF($D$5:D21,D21),"") ->  | B21: 17
A22: =IF(D22=الصيادين!$C$1,COUNTIF($D$5:D22,D22),"") ->  | B22: 18
A23: =IF(D23=الصيادين!$C$1,COUNTIF($D$5:D23,D23),"") ->  | B23: 19
A24: =IF(D24=الصيادين!$C$1,COUNTIF($D$5:D24,D24),"") ->  | B24: 20
A25: =IF(D25=الصيادين!$C$1,COUNTIF($D$5:D25,D25),"") ->  | B25: 21
A26: =IF(D26=الصيادين!$C$1,COUNTIF($D$5:D26,D26),"") ->  | B26: 22
A27: =IF(D27=الصيادين!$C$1,COUNTIF($D$5:D27,D27),"") ->  | B27: 23
A28: =IF(D28=الصيادين!$C$1,COUNTIF($D$5:D28,D28),"") ->  | B28: 24
A29: =IF(D29=الصيادين!$C$1,COUNTIF($D$5:D29,D29),"") ->  | B29: 25
A30: =IF(D30=الصيادين!$C$1,COUNTIF($D$5:D30,D30),"") ->  | B30: 26
A31: =IF(D31=الصيادين!$C$1,COUNTIF($D$5:D31,D31),"") ->  | B31: 27
A32: =IF(D32=الصيادين!$C$1,COUNTIF($D$5:D32,D32),"") ->  | B32: 28
A33: =IF(D33=الصيادين!$C$1,COUNTIF($D$5:D33,D33),"") ->  | B33: 29
A34: =IF(D34=الصيادين!$C$1,COUNTIF($D$5:D34,D34),"") ->  | B34: 30
A35: =IF(D35=الصيادين!$C$1,COUNTIF($D$5:D35,D35),"") ->  | B35: 31
A36: =IF(D36=الصيادين!$C$1,COUNTIF($D$5:D36,D36),"") ->  | B36: 32
A37: =IF(D37=الصيادين!$C$1,COUNTIF($D$5:D37,D37),"") ->  | B37: 33
A38: =IF(D38=الصيادين!$C$1,COUNTIF($D$5:D38,D38),"") ->  | B38: 34
A39: =IF(D39=الصيادين!$C$1,COUNTIF($D$5:D39,D39),"") ->  | B39: 35
A40: =IF(D40=الصيادين!$C$1,COUNTIF($D$5:D40,D40),"") ->  | B40: 36
A41: =IF(D41=الصيادين!$C$1,COUNTIF($D$5:D41,D41),"") ->  | B41: 37
A42: =IF(D42=الصيادين!$C$1,COUNTIF($D$5:D42,D42),"") ->  | B42: 38
A43: =IF(D43=الصيادين!$C$1,COUNTIF($D$5:D43,D43),"") ->  | B43: 39
A44: =IF(D44=الصيادين!$C$1,COUNTIF($D$5:D44,D44),"") ->  | B44: 40
A45: =IF(D45=الصيادين!$C$1,COUNTIF($D$5:D45,D45),"") ->  | B45: 41
A46: =IF(D46=الصيادين!$C$1,COUNTIF($D$5:D46,D46),"") ->  | B46: 42
A47: =IF(D47=الصيادين!$C$1,COUNTIF($D$5:D47,D47),"") ->  | B47: 43
A48: =IF(D48=الصيادين!$C$1,COUNTIF($D$5:D48,D48),"") ->  | B48: 44
A49: =IF(D49=الصيادين!$C$1,COUNTIF($D$5:D49,D49),"") ->  | B49: 45
A50: =IF(D50=الصيادين!$C$1,COUNTIF($D$5:D50,D50),"") ->  | B50: 46
A51: =IF(D51=الصيادين!$C$1,COUNTIF($D$5:D51,D51),"") ->  | B51: 47
A52: =IF(D52=الصيادين!$C$1,COUNTIF($D$5:D52,D52),"") ->  | B52: 48
A53: =IF(D53=الصيادين!$C$1,COUNTIF($D$5:D53,D53),"") ->  | B53: 49
A54: =IF(D54=الصيادين!$C$1,COUNTIF($D$5:D54,D54),"") ->  | B54: 50
A55: =IF(D55=الصيادين!$C$1,COUNTIF($D$5:D55,D55),"") ->  | B55: 51
A56: =IF(D56=الصيادين!$C$1,COUNTIF($D$5:D56,D56),"") ->  | B56: 52
A57: =IF(D57=الصيادين!$C$1,COUNTIF($D$5:D57,D57),"") ->  | B57: 53
A58: =IF(D58=الصيادين!$C$1,COUNTIF($D$5:D58,D58),"") ->  | B58: 54
A59: =IF(D59=الصيادين!$C$1,COUNTIF($D$5:D59,D59),"") ->  | B59: 55
A60: =IF(D60=الصيادين!$C$1,COUNTIF($D$5:D60,D60),"") ->  | B60: 56
A61: =IF(D61=الصيادين!$C$1,COUNTIF($D$5:D61,D61),"") ->  | B61: 57
A62: =IF(D62=الصيادين!$C$1,COUNTIF($D$5:D62,D62),"") ->  | B62: 58
A63: =IF(D63=الصيادين!$C$1,COUNTIF($D$5:D63,D63),"") ->  | B63: 59
A64: =IF(D64=الصيادين!$C$1,COUNTIF($D$5:D64,D64),"") ->  | B64: 60
A65: =IF(D65=الصيادين!$C$1,COUNTIF($D$5:D65,D65),"") ->  | B65: 61
A66: =IF(D66=الصيادين!$C$1,COUNTIF($D$5:D66,D66),"") ->  | B66: 62
A67: =IF(D67=الصيادين!$C$1,COUNTIF($D$5:D67,D67),"") ->  | B67: 63
A68: =IF(D68=الصيادين!$C$1,COUNTIF($D$5:D68,D68),"") ->  | B68: 64
A69: =IF(D69=الصيادين!$C$1,COUNTIF($D$5:D69,D69),"") ->  | B69: 65
A70: =IF(D70=الصيادين!$C$1,COUNTIF($D$5:D70,D70),"") ->  | B70: 66
A71: =IF(D71=الصيادين!$C$1,COUNTIF($D$5:D71,D71),"") ->  | B71: 67
A72: =IF(D72=الصيادين!$C$1,COUNTIF($D$5:D72,D72),"") ->  | B72: 68
A73: =IF(D73=الصيادين!$C$1,COUNTIF($D$5:D73,D73),"") ->  | B73: 69
A74: =IF(D74=الصيادين!$C$1,COUNTIF($D$5:D74,D74),"") ->  | B74: 70
A75: =IF(D75=الصيادين!$C$1,COUNTIF($D$5:D75,D75),"") ->  | B75: 71
A76: =IF(D76=الصيادين!$C$1,COUNTIF($D$5:D76,D76),"") ->  | B76: 72
A77: =IF(D77=الصيادين!$C$1,COUNTIF($D$5:D77,D77),"") ->  | B77: 73
A78: =IF(D78=الصيادين!$C$1,COUNTIF($D$5:D78,D78),"") ->  | B78: 74
A79: =IF(D79=الصيادين!$C$1,COUNTIF($D$5:D79,D79),"") ->  | B79: 75
A80: =IF(D80=الصيادين!$C$1,COUNTIF($D$5:D80,D80),"") ->  | B80: 76
A81: =IF(D81=الصيادين!$C$1,COUNTIF($D$5:D81,D81),"") ->  | B81: 77
A82: =IF(D82=الصيادين!$C$1,COUNTIF($D$5:D82,D82),"") ->  | B82: 78
A83: =IF(D83=الصيادين!$C$1,COUNTIF($D$5:D83,D83),"") ->  | B83: 79
A84: =IF(D84=الصيادين!$C$1,COUNTIF($D$5:D84,D84),"") ->  | B84: 80
A85: =IF(D85=الصيادين!$C$1,COUNTIF($D$5:D85,D85),"") ->  | B85: 81
A86: =IF(D86=الصيادين!$C$1,COUNTIF($D$5:D86,D86),"") ->  | B86: 82
A87: =IF(D87=الصيادين!$C$1,COUNTIF($D$5:D87,D87),"") ->  | B87: 83
A88: =IF(D88=الصيادين!$C$1,COUNTIF($D$5:D88,D88),"") ->  | B88: 84
A89: =IF(D89=الصيادين!$C$1,COUNTIF($D$5:D89,D89),"") ->  | B89: 85
A90: =IF(D90=الصيادين!$C$1,COUNTIF($D$5:D90,D90),"") ->  | B90: 86
A91: =IF(D91=الصيادين!$C$1,COUNTIF($D$5:D91,D91),"") ->  | B91: 87
A92: =IF(D92=الصيادين!$C$1,COUNTIF($D$5:D92,D92),"") ->  | B92: 88
A93: =IF(D93=الصيادين!$C$1,COUNTIF($D$5:D93,D93),"") ->  | B93: 89
A94: =IF(D94=الصيادين!$C$1,COUNTIF($D$5:D94,D94),"") ->  | B94: 90
A95: =IF(D95=الصيادين!$C$1,COUNTIF($D$5:D95,D95),"") ->  | B95: 91
A96: =IF(D96=الصيادين!$C$1,COUNTIF($D$5:D96,D96),"") ->  | B96: 92
A97: =IF(D97=الصيادين!$C$1,COUNTIF($D$5:D97,D97),"") ->  | B97: 93
A98: =IF(D98=الصيادين!$C$1,COUNTIF($D$5:D98,D98),"") ->  | B98: 94
A99: =IF(D99=الصيادين!$C$1,COUNTIF($D$5:D99,D99),"") ->  | B99: 95
A100: =IF(D100=الصيادين!$C$1,COUNTIF($D$5:D100,D100),"") ->  | B100: 96
A101: =IF(D101=الصيادين!$C$1,COUNTIF($D$5:D101,D101),"") ->  | B101: 97
A102: =IF(D102=الصيادين!$C$1,COUNTIF($D$5:D102,D102),"") ->  | B102: 98
A103: =IF(D103=الصيادين!$C$1,COUNTIF($D$5:D103,D103),"") ->  | B103: 99
A104: =IF(D104=الصيادين!$C$1,COUNTIF($D$5:D104,D104),"") ->  | B104: 100
G105: =SUM(G5:G104) -> 0 | H105: =SUM(H5:H104) -> 0 | I105: =SUM(I5:I104) -> 0 | J105: =SUM(J5:J104) -> 0
C106: النقدى | E106: 400
C107: الاستيفاء | E107: 10
C108: الايرادات | E108: =J105 -> 0
C109: المدخول | E109: =E106+E107+E108 -> 410
C110: المصروفات | E110: =H105+I105 -> 0
C111: صافى المدخول | E111: =E109-E110 -> 410

Sheet 13
C2: 2020-01-01
B3: م | C3: تاريخ | D3: الاسم | E3: الوصف | F3: رقم الفاتورة | G3: شتات | I3: المصروفات والايرادات | K3: الدلالة
G4: مستحقة | H4: سداد | I4: مصروفات | J4: ايرادات
A5: =IF(D5=الصيادين!$C$1,COUNTIF($D$5:D5,D5),"") ->  | B5: 1
A6: =IF(D6=الصيادين!$C$1,COUNTIF($D$5:D6,D6),"") ->  | B6: 2
A7: =IF(D7=الصيادين!$C$1,COUNTIF($D$5:D7,D7),"") ->  | B7: 3
A8: =IF(D8=الصيادين!$C$1,COUNTIF($D$5:D8,D8),"") ->  | B8: 4
A9: =IF(D9=الصيادين!$C$1,COUNTIF($D$5:D9,D9),"") ->  | B9: 5
A10: =IF(D10=الصيادين!$C$1,COUNTIF($D$5:D10,D10),"") ->  | B10: 6
A11: =IF(D11=الصيادين!$C$1,COUNTIF($D$5:D11,D11),"") ->  | B11: 7
A12: =IF(D12=الصيادين!$C$1,COUNTIF($D$5:D12,D12),"") ->  | B12: 8
A13: =IF(D13=الصيادين!$C$1,COUNTIF($D$5:D13,D13),"") ->  | B13: 9
A14: =IF(D14=الصيادين!$C$1,COUNTIF($D$5:D14,D14),"") ->  | B14: 10
A15: =IF(D15=الصيادين!$C$1,COUNTIF($D$5:D15,D15),"") ->  | B15: 11
A16: =IF(D16=الصيادين!$C$1,COUNTIF($D$5:D16,D16),"") ->  | B16: 12
A17: =IF(D17=الصيادين!$C$1,COUNTIF($D$5:D17,D17),"") ->  | B17: 13
A18: =IF(D18=الصيادين!$C$1,COUNTIF($D$5:D18,D18),"") ->  | B18: 14
A19: =IF(D19=الصيادين!$C$1,COUNTIF($D$5:D19,D19),"") ->  | B19: 15
A20: =IF(D20=الصيادين!$C$1,COUNTIF($D$5:D20,D20),"") ->  | B20: 16
A21: =IF(D21=الصيادين!$C$1,COUNTIF($D$5:D21,D21),"") ->  | B21: 17
A22: =IF(D22=الصيادين!$C$1,COUNTIF($D$5:D22,D22),"") ->  | B22: 18
A23: =IF(D23=الصيادين!$C$1,COUNTIF($D$5:D23,D23),"") ->  | B23: 19
A24: =IF(D24=الصيادين!$C$1,COUNTIF($D$5:D24,D24),"") ->  | B24: 20
A25: =IF(D25=الصيادين!$C$1,COUNTIF($D$5:D25,D25),"") ->  | B25: 21
A26: =IF(D26=الصيادين!$C$1,COUNTIF($D$5:D26,D26),"") ->  | B26: 22
A27: =IF(D27=الصيادين!$C$1,COUNTIF($D$5:D27,D27),"") ->  | B27: 23
A28: =IF(D28=الصيادين!$C$1,COUNTIF($D$5:D28,D28),"") ->  | B28: 24
A29: =IF(D29=الصيادين!$C$1,COUNTIF($D$5:D29,D29),"") ->  | B29: 25
A30: =IF(D30=الصيادين!$C$1,COUNTIF($D$5:D30,D30),"") ->  | B30: 26
A31: =IF(D31=الصيادين!$C$1,COUNTIF($D$5:D31,D31),"") ->  | B31: 27
A32: =IF(D32=الصيادين!$C$1,COUNTIF($D$5:D32,D32),"") ->  | B32: 28
A33: =IF(D33=الصيادين!$C$1,COUNTIF($D$5:D33,D33),"") ->  | B33: 29
A34: =IF(D34=الصيادين!$C$1,COUNTIF($D$5:D34,D34),"") ->  | B34: 30
A35: =IF(D35=الصيادين!$C$1,COUNTIF($D$5:D35,D35),"") ->  | B35: 31
A36: =IF(D36=الصيادين!$C$1,COUNTIF($D$5:D36,D36),"") ->  | B36: 32
A37: =IF(D37=الصيادين!$C$1,COUNTIF($D$5:D37,D37),"") ->  | B37: 33
A38: =IF(D38=الصيادين!$C$1,COUNTIF($D$5:D38,D38),"") ->  | B38: 34
A39: =IF(D39=الصيادين!$C$1,COUNTIF($D$5:D39,D39),"") ->  | B39: 35
A40: =IF(D40=الصيادين!$C$1,COUNTIF($D$5:D40,D40),"") ->  | B40: 36
A41: =IF(D41=الصيادين!$C$1,COUNTIF($D$5:D41,D41),"") ->  | B41: 37
A42: =IF(D42=الصيادين!$C$1,COUNTIF($D$5:D42,D42),"") ->  | B42: 38
A43: =IF(D43=الصيادين!$C$1,COUNTIF($D$5:D43,D43),"") ->  | B43: 39
A44: =IF(D44=الصيادين!$C$1,COUNTIF($D$5:D44,D44),"") ->  | B44: 40
A45: =IF(D45=الصيادين!$C$1,COUNTIF($D$5:D45,D45),"") ->  | B45: 41
A46: =IF(D46=الصيادين!$C$1,COUNTIF($D$5:D46,D46),"") ->  | B46: 42
A47: =IF(D47=الصيادين!$C$1,COUNTIF($D$5:D47,D47),"") ->  | B47: 43
A48: =IF(D48=الصيادين!$C$1,COUNTIF($D$5:D48,D48),"") ->  | B48: 44
A49: =IF(D49=الصيادين!$C$1,COUNTIF($D$5:D49,D49),"") ->  | B49: 45
A50: =IF(D50=الصيادين!$C$1,COUNTIF($D$5:D50,D50),"") ->  | B50: 46
A51: =IF(D51=الصيادين!$C$1,COUNTIF($D$5:D51,D51),"") ->  | B51: 47
A52: =IF(D52=الصيادين!$C$1,COUNTIF($D$5:D52,D52),"") ->  | B52: 48
A53: =IF(D53=الصيادين!$C$1,COUNTIF($D$5:D53,D53),"") ->  | B53: 49
A54: =IF(D54=الصيادين!$C$1,COUNTIF($D$5:D54,D54),"") ->  | B54: 50
A55: =IF(D55=الصيادين!$C$1,COUNTIF($D$5:D55,D55),"") ->  | B55: 51
A56: =IF(D56=الصيادين!$C$1,COUNTIF($D$5:D56,D56),"") ->  | B56: 52
A57: =IF(D57=الصيادين!$C$1,COUNTIF($D$5:D57,D57),"") ->  | B57: 53
A58: =IF(D58=الصيادين!$C$1,COUNTIF($D$5:D58,D58),"") ->  | B58: 54
A59: =IF(D59=الصيادين!$C$1,COUNTIF($D$5:D59,D59),"") ->  | B59: 55
A60: =IF(D60=الصيادين!$C$1,COUNTIF($D$5:D60,D60),"") ->  | B60: 56
A61: =IF(D61=الصيادين!$C$1,COUNTIF($D$5:D61,D61),"") ->  | B61: 57
A62: =IF(D62=الصيادين!$C$1,COUNTIF($D$5:D62,D62),"") ->  | B62: 58
A63: =IF(D63=الصيادين!$C$1,COUNTIF($D$5:D63,D63),"") ->  | B63: 59
A64: =IF(D64=الصيادين!$C$1,COUNTIF($D$5:D64,D64),"") ->  | B64: 60
A65: =IF(D65=الصيادين!$C$1,COUNTIF($D$5:D65,D65),"") ->  | B65: 61
A66: =IF(D66=الصيادين!$C$1,COUNTIF($D$5:D66,D66),"") ->  | B66: 62
A67: =IF(D67=الصيادين!$C$1,COUNTIF($D$5:D67,D67),"") ->  | B67: 63
A68: =IF(D68=الصيادين!$C$1,COUNTIF($D$5:D68,D68),"") ->  | B68: 64
A69: =IF(D69=الصيادين!$C$1,COUNTIF($D$5:D69,D69),"") ->  | B69: 65
A70: =IF(D70=الصيادين!$C$1,COUNTIF($D$5:D70,D70),"") ->  | B70: 66
A71: =IF(D71=الصيادين!$C$1,COUNTIF($D$5:D71,D71),"") ->  | B71: 67
A72: =IF(D72=الصيادين!$C$1,COUNTIF($D$5:D72,D72),"") ->  | B72: 68
A73: =IF(D73=الصيادين!$C$1,COUNTIF($D$5:D73,D73),"") ->  | B73: 69
A74: =IF(D74=الصيادين!$C$1,COUNTIF($D$5:D74,D74),"") ->  | B74: 70
A75: =IF(D75=الصيادين!$C$1,COUNTIF($D$5:D75,D75),"") ->  | B75: 71
A76: =IF(D76=الصيادين!$C$1,COUNTIF($D$5:D76,D76),"") ->  | B76: 72
A77: =IF(D77=الصيادين!$C$1,COUNTIF($D$5:D77,D77),"") ->  | B77: 73
A78: =IF(D78=الصيادين!$C$1,COUNTIF($D$5:D78,D78),"") ->  | B78: 74
A79: =IF(D79=الصيادين!$C$1,COUNTIF($D$5:D79,D79),"") ->  | B79: 75
A80: =IF(D80=الصيادين!$C$1,COUNTIF($D$5:D80,D80),"") ->  | B80: 76
A81: =IF(D81=الصيادين!$C$1,COUNTIF($D$5:D81,D81),"") ->  | B81: 77
A82: =IF(D82=الصيادين!$C$1,COUNTIF($D$5:D82,D82),"") ->  | B82: 78
A83: =IF(D83=الصيادين!$C$1,COUNTIF($D$5:D83,D83),"") ->  | B83: 79
A84: =IF(D84=الصيادين!$C$1,COUNTIF($D$5:D84,D84),"") ->  | B84: 80
A85: =IF(D85=الصيادين!$C$1,COUNTIF($D$5:D85,D85),"") ->  | B85: 81
A86: =IF(D86=الصيادين!$C$1,COUNTIF($D$5:D86,D86),"") ->  | B86: 82
A87: =IF(D87=الصيادين!$C$1,COUNTIF($D$5:D87,D87),"") ->  | B87: 83
A88: =IF(D88=الصيادين!$C$1,COUNTIF($D$5:D88,D88),"") ->  | B88: 84
A89: =IF(D89=الصيادين!$C$1,COUNTIF($D$5:D89,D89),"") ->  | B89: 85
A90: =IF(D90=الصيادين!$C$1,COUNTIF($D$5:D90,D90),"") ->  | B90: 86
A91: =IF(D91=الصيادين!$C$1,COUNTIF($D$5:D91,D91),"") ->  | B91: 87
A92: =IF(D92=الصيادين!$C$1,COUNTIF($D$5:D92,D92),"") ->  | B92: 88
A93: =IF(D93=الصيادين!$C$1,COUNTIF($D$5:D93,D93),"") ->  | B93: 89
A94: =IF(D94=الصيادين!$C$1,COUNTIF($D$5:D94,D94),"") ->  | B94: 90
A95: =IF(D95=الصيادين!$C$1,COUNTIF($D$5:D95,D95),"") ->  | B95: 91
A96: =IF(D96=الصيادين!$C$1,COUNTIF($D$5:D96,D96),"") ->  | B96: 92
A97: =IF(D97=الصيادين!$C$1,COUNTIF($D$5:D97,D97),"") ->  | B97: 93
A98: =IF(D98=الصيادين!$C$1,COUNTIF($D$5:D98,D98),"") ->  | B98: 94
A99: =IF(D99=الصيادين!$C$1,COUNTIF($D$5:D99,D99),"") ->  | B99: 95
A100: =IF(D100=الصيادين!$C$1,COUNTIF($D$5:D100,D100),"") ->  | B100: 96
A101: =IF(D101=الصيادين!$C$1,COUNTIF($D$5:D101,D101),"") ->  | B101: 97
A102: =IF(D102=الصيادين!$C$1,COUNTIF($D$5:D102,D102),"") ->  | B102: 98
A103: =IF(D103=الصيادين!$C$1,COUNTIF($D$5:D103,D103),"") ->  | B103: 99
A104: =IF(D104=الصيادين!$C$1,COUNTIF($D$5:D104,D104),"") ->  | B104: 100
G105: =SUM(G5:G104) -> 0 | H105: =SUM(H5:H104) -> 0 | I105: =SUM(I5:I104) -> 0 | J105: =SUM(J5:J104) -> 0
C106: النقدى | E106: 400
C107: الاستيفاء | E107: 10
C108: الايرادات | E108: =J105 -> 0
C109: المدخول | E109: =E106+E107+E108 -> 410
C110: المصروفات | E110: =H105+I105 -> 0
C111: صافى المدخول | E111: =E109-E110 -> 410

Sheet 14
C2: 2020-01-01
B3: م | C3: تاريخ | D3: الاسم | E3: الوصف | F3: رقم الفاتورة | G3: شتات | I3: المصروفات والايرادات | K3: الدلالة
G4: مستحقة | H4: سداد | I4: مصروفات | J4: ايرادات
A5: =IF(D5=الصيادين!$C$1,COUNTIF($D$5:D5,D5),"") ->  | B5: 1
A6: =IF(D6=الصيادين!$C$1,COUNTIF($D$5:D6,D6),"") ->  | B6: 2
A7: =IF(D7=الصيادين!$C$1,COUNTIF($D$5:D7,D7),"") ->  | B7: 3
A8: =IF(D8=الصيادين!$C$1,COUNTIF($D$5:D8,D8),"") ->  | B8: 4
A9: =IF(D9=الصيادين!$C$1,COUNTIF($D$5:D9,D9),"") ->  | B9: 5
A10: =IF(D10=الصيادين!$C$1,COUNTIF($D$5:D10,D10),"") ->  | B10: 6
A11: =IF(D11=الصيادين!$C$1,COUNTIF($D$5:D11,D11),"") ->  | B11: 7
A12: =IF(D12=الصيادين!$C$1,COUNTIF($D$5:D12,D12),"") ->  | B12: 8
A13: =IF(D13=الصيادين!$C$1,COUNTIF($D$5:D13,D13),"") ->  | B13: 9
A14: =IF(D14=الصيادين!$C$1,COUNTIF($D$5:D14,D14),"") ->  | B14: 10
A15: =IF(D15=الصيادين!$C$1,COUNTIF($D$5:D15,D15),"") ->  | B15: 11
A16: =IF(D16=الصيادين!$C$1,COUNTIF($D$5:D16,D16),"") ->  | B16: 12
A17: =IF(D17=الصيادين!$C$1,COUNTIF($D$5:D17,D17),"") ->  | B17: 13
A18: =IF(D18=الصيادين!$C$1,COUNTIF($D$5:D18,D18),"") ->  | B18: 14
A19: =IF(D19=الصيادين!$C$1,COUNTIF($D$5:D19,D19),"") ->  | B19: 15
A20: =IF(D20=الصيادين!$C$1,COUNTIF($D$5:D20,D20),"") ->  | B20: 16
A21: =IF(D21=الصيادين!$C$1,COUNTIF($D$5:D21,D21),"") ->  | B21: 17
A22: =IF(D22=الصيادين!$C$1,COUNTIF($D$5:D22,D22),"") ->  | B22: 18
A23: =IF(D23=الصيادين!$C$1,COUNTIF($D$5:D23,D23),"") ->  | B23: 19
A24: =IF(D24=الصيادين!$C$1,COUNTIF($D$5:D24,D24),"") ->  | B24: 20
A25: =IF(D25=الصيادين!$C$1,COUNTIF($D$5:D25,D25),"") ->  | B25: 21
A26: =IF(D26=الصيادين!$C$1,COUNTIF($D$5:D26,D26),"") ->  | B26: 22
A27: =IF(D27=الصيادين!$C$1,COUNTIF($D$5:D27,D27),"") ->  | B27: 23
A28: =IF(D28=الصيادين!$C$1,COUNTIF($D$5:D28,D28),"") ->  | B28: 24
A29: =IF(D29=الصيادين!$C$1,COUNTIF($D$5:D29,D29),"") ->  | B29: 25
A30: =IF(D30=الصيادين!$C$1,COUNTIF($D$5:D30,D30),"") ->  | B30: 26
A31: =IF(D31=الصيادين!$C$1,COUNTIF($D$5:D31,D31),"") ->  | B31: 27
A32: =IF(D32=الصيادين!$C$1,COUNTIF($D$5:D32,D32),"") ->  | B32: 28
A33: =IF(D33=الصيادين!$C$1,COUNTIF($D$5:D33,D33),"") ->  | B33: 29
A34: =IF(D34=الصيادين!$C$1,COUNTIF($D$5:D34,D34),"") ->  | B34: 30
A35: =IF(D35=الصيادين!$C$1,COUNTIF($D$5:D35,D35),"") ->  | B35: 31
A36: =IF(D36=الصيادين!$C$1,COUNTIF($D$5:D36,D36),"") ->  | B36: 32
A37: =IF(D37=الصيادين!$C$1,COUNTIF($D$5:D37,D37),"") ->  | B37: 33
A38: =IF(D38=الصيادين!$C$1,COUNTIF($D$5:D38,D38),"") ->  | B38: 34
A39: =IF(D39=الصيادين!$C$1,COUNTIF($D$5:D39,D39),"") ->  | B39: 35
A40: =IF(D40=الصيادين!$C$1,COUNTIF($D$5:D40,D40),"") ->  | B40: 36
A41: =IF(D41=الصيادين!$C$1,COUNTIF($D$5:D41,D41),"") ->  | B41: 37
A42: =IF(D42=الصيادين!$C$1,COUNTIF($D$5:D42,D42),"") ->  | B42: 38
A43: =IF(D43=الصيادين!$C$1,COUNTIF($D$5:D43,D43),"") ->  | B43: 39
A44: =IF(D44=الصيادين!$C$1,COUNTIF($D$5:D44,D44),"") ->  | B44: 40
A45: =IF(D45=الصيادين!$C$1,COUNTIF($D$5:D45,D45),"") ->  | B45: 41
A46: =IF(D46=الصيادين!$C$1,COUNTIF($D$5:D46,D46),"") ->  | B46: 42
A47: =IF(D47=الصيادين!$C$1,COUNTIF($D$5:D47,D47),"") ->  | B47: 43
A48: =IF(D48=الصيادين!$C$1,COUNTIF($D$5:D48,D48),"") ->  | B48: 44
A49: =IF(D49=الصيادين!$C$1,COUNTIF($D$5:D49,D49),"") ->  | B49: 45
A50: =IF(D50=الصيادين!$C$1,COUNTIF($D$5:D50,D50),"") ->  | B50: 46
A51: =IF(D51=الصيادين!$C$1,COUNTIF($D$5:D51,D51),"") ->  | B51: 47
A52: =IF(D52=الصيادين!$C$1,COUNTIF($D$5:D52,D52),"") ->  | B52: 48
A53: =IF(D53=الصيادين!$C$1,COUNTIF($D$5:D53,D53),"") ->  | B53: 49
A54: =IF(D54=الصيادين!$C$1,COUNTIF($D$5:D54,D54),"") ->  | B54: 50
A55: =IF(D55=الصيادين!$C$1,COUNTIF($D$5:D55,D55),"") ->  | B55: 51
A56: =IF(D56=الصيادين!$C$1,COUNTIF($D$5:D56,D56),"") ->  | B56: 52
A57: =IF(D57=الصيادين!$C$1,COUNTIF($D$5:D57,D57),"") ->  | B57: 53
A58: =IF(D58=الصيادين!$C$1,COUNTIF($D$5:D58,D58),"") ->  | B58: 54
A59: =IF(D59=الصيادين!$C$1,COUNTIF($D$5:D59,D59),"") ->  | B59: 55
A60: =IF(D60=الصيادين!$C$1,COUNTIF($D$5:D60,D60),"") ->  | B60: 56
A61: =IF(D61=الصيادين!$C$1,COUNTIF($D$5:D61,D61),"") ->  | B61: 57
A62: =IF(D62=الصيادين!$C$1,COUNTIF($D$5:D62,D62),"") ->  | B62: 58
A63: =IF(D63=الصيادين!$C$1,COUNTIF($D$5:D63,D63),"") ->  | B63: 59
A64: =IF(D64=الصيادين!$C$1,COUNTIF($D$5:D64,D64),"") ->  | B64: 60
A65: =IF(D65=الصيادين!$C$1,COUNTIF($D$5:D65,D65),"") ->  | B65: 61
A66: =IF(D66=الصيادين!$C$1,COUNTIF($D$5:D66,D66),"") ->  | B66: 62
A67: =IF(D67=الصيادين!$C$1,COUNTIF($D$5:D67,D67),"") ->  | B67: 63
A68: =IF(D68=الصيادين!$C$1,COUNTIF($D$5:D68,D68),"") ->  | B68: 64
A69: =IF(D69=الصيادين!$C$1,COUNTIF($D$5:D69,D69),"") ->  | B69: 65
A70: =IF(D70=الصيادين!$C$1,COUNTIF($D$5:D70,D70),"") ->  | B70: 66
A71: =IF(D71=الصيادين!$C$1,COUNTIF($D$5:D71,D71),"") ->  | B71: 67
A72: =IF(D72=الصيادين!$C$1,COUNTIF($D$5:D72,D72),"") ->  | B72: 68
A73: =IF(D73=الصيادين!$C$1,COUNTIF($D$5:D73,D73),"") ->  | B73: 69
A74: =IF(D74=الصيادين!$C$1,COUNTIF($D$5:D74,D74),"") ->  | B74: 70
A75: =IF(D75=الصيادين!$C$1,COUNTIF($D$5:D75,D75),"") ->  | B75: 71
A76: =IF(D76=الصيادين!$C$1,COUNTIF($D$5:D76,D76),"") ->  | B76: 72
A77: =IF(D77=الصيادين!$C$1,COUNTIF($D$5:D77,D77),"") ->  | B77: 73
A78: =IF(D78=الصيادين!$C$1,COUNTIF($D$5:D78,D78),"") ->  | B78: 74
A79: =IF(D79=الصيادين!$C$1,COUNTIF($D$5:D79,D79),"") ->  | B79: 75
A80: =IF(D80=الصيادين!$C$1,COUNTIF($D$5:D80,D80),"") ->  | B80: 76
A81: =IF(D81=الصيادين!$C$1,COUNTIF($D$5:D81,D81),"") ->  | B81: 77
A82: =IF(D82=الصيادين!$C$1,COUNTIF($D$5:D82,D82),"") ->  | B82: 78
A83: =IF(D83=الصيادين!$C$1,COUNTIF($D$5:D83,D83),"") ->  | B83: 79
A84: =IF(D84=الصيادين!$C$1,COUNTIF($D$5:D84,D84),"") ->  | B84: 80
A85: =IF(D85=الصيادين!$C$1,COUNTIF($D$5:D85,D85),"") ->  | B85: 81
A86: =IF(D86=الصيادين!$C$1,COUNTIF($D$5:D86,D86),"") ->  | B86: 82
A87: =IF(D87=الصيادين!$C$1,COUNTIF($D$5:D87,D87),"") ->  | B87: 83
A88: =IF(D88=الصيادين!$C$1,COUNTIF($D$5:D88,D88),"") ->  | B88: 84
A89: =IF(D89=الصيادين!$C$1,COUNTIF($D$5:D89,D89),"") ->  | B89: 85
A90: =IF(D90=الصيادين!$C$1,COUNTIF($D$5:D90,D90),"") ->  | B90: 86
A91: =IF(D91=الصيادين!$C$1,COUNTIF($D$5:D91,D91),"") ->  | B91: 87
A92: =IF(D92=الصيادين!$C$1,COUNTIF($D$5:D92,D92),"") ->  | B92: 88
A93: =IF(D93=الصيادين!$C$1,COUNTIF($D$5:D93,D93),"") ->  | B93: 89
A94: =IF(D94=الصيادين!$C$1,COUNTIF($D$5:D94,D94),"") ->  | B94: 90
A95: =IF(D95=الصيادين!$C$1,COUNTIF($D$5:D95,D95),"") ->  | B95: 91
A96: =IF(D96=الصيادين!$C$1,COUNTIF($D$5:D96,D96),"") ->  | B96: 92
A97: =IF(D97=الصيادين!$C$1,COUNTIF($D$5:D97,D97),"") ->  | B97: 93
A98: =IF(D98=الصيادين!$C$1,COUNTIF($D$5:D98,D98),"") ->  | B98: 94
A99: =IF(D99=الصيادين!$C$1,COUNTIF($D$5:D99,D99),"") ->  | B99: 95
A100: =IF(D100=الصيادين!$C$1,COUNTIF($D$5:D100,D100),"") ->  | B100: 96
A101: =IF(D101=الصيادين!$C$1,COUNTIF($D$5:D101,D101),"") ->  | B101: 97
A102: =IF(D102=الصيادين!$C$1,COUNTIF($D$5:D102,D102),"") ->  | B102: 98
A103: =IF(D103=الصيادين!$C$1,COUNTIF($D$5:D103,D103),"") ->  | B103: 99
A104: =IF(D104=الصيادين!$C$1,COUNTIF($D$5:D104,D104),"") ->  | B104: 100
G105: =SUM(G5:G104) -> 0 | H105: =SUM(H5:H104) -> 0 | I105: =SUM(I5:I104) -> 0 | J105: =SUM(J5:J104) -> 0
C106: النقدى | E106: 400
C107: الاستيفاء | E107: 10
C108: الايرادات | E108: =J105 -> 0
C109: المدخول | E109: =E106+E107+E108 -> 410
C110: المصروفات | E110: =H105+I105 -> 0
C111: صافى المدخول | E111: =E109-E110 -> 410

Sheet 15
C2: 2020-01-01
B3: م | C3: تاريخ | D3: الاسم | E3: الوصف | F3: رقم الفاتورة | G3: شتات | I3: المصروفات والايرادات | K3: الدلالة
G4: مستحقة | H4: سداد | I4: مصروفات | J4: ايرادات
A5: =IF(D5=الصيادين!$C$1,COUNTIF($D$5:D5,D5),"") ->  | B5: 1
A6: =IF(D6=الصيادين!$C$1,COUNTIF($D$5:D6,D6),"") ->  | B6: 2
A7: =IF(D7=الصيادين!$C$1,COUNTIF($D$5:D7,D7),"") ->  | B7: 3
A8: =IF(D8=الصيادين!$C$1,COUNTIF($D$5:D8,D8),"") ->  | B8: 4
A9: =IF(D9=الصيادين!$C$1,COUNTIF($D$5:D9,D9),"") ->  | B9: 5
A10: =IF(D10=الصيادين!$C$1,COUNTIF($D$5:D10,D10),"") ->  | B10: 6
A11: =IF(D11=الصيادين!$C$1,COUNTIF($D$5:D11,D11),"") ->  | B11: 7
A12: =IF(D12=الصيادين!$C$1,COUNTIF($D$5:D12,D12),"") ->  | B12: 8
A13: =IF(D13=الصيادين!$C$1,COUNTIF($D$5:D13,D13),"") ->  | B13: 9
A14: =IF(D14=الصيادين!$C$1,COUNTIF($D$5:D14,D14),"") ->  | B14: 10
A15: =IF(D15=الصيادين!$C$1,COUNTIF($D$5:D15,D15),"") ->  | B15: 11
A16: =IF(D16=الصيادين!$C$1,COUNTIF($D$5:D16,D16),"") ->  | B16: 12
A17: =IF(D17=الصيادين!$C$1,COUNTIF($D$5:D17,D17),"") ->  | B17: 13
A18: =IF(D18=الصيادين!$C$1,COUNTIF($D$5:D18,D18),"") ->  | B18: 14
A19: =IF(D19=الصيادين!$C$1,COUNTIF($D$5:D19,D19),"") ->  | B19: 15
A20: =IF(D20=الصيادين!$C$1,COUNTIF($D$5:D20,D20),"") ->  | B20: 16
A21: =IF(D21=الصيادين!$C$1,COUNTIF($D$5:D21,D21),"") ->  | B21: 17
A22: =IF(D22=الصيادين!$C$1,COUNTIF($D$5:D22,D22),"") ->  | B22: 18
A23: =IF(D23=الصيادين!$C$1,COUNTIF($D$5:D23,D23),"") ->  | B23: 19
A24: =IF(D24=الصيادين!$C$1,COUNTIF($D$5:D24,D24),"") ->  | B24: 20
A25: =IF(D25=الصيادين!$C$1,COUNTIF($D$5:D25,D25),"") ->  | B25: 21
A26: =IF(D26=الصيادين!$C$1,COUNTIF($D$5:D26,D26),"") ->  | B26: 22
A27: =IF(D27=الصيادين!$C$1,COUNTIF($D$5:D27,D27),"") ->  | B27: 23
A28: =IF(D28=الصيادين!$C$1,COUNTIF($D$5:D28,D28),"") ->  | B28: 24
A29: =IF(D29=الصيادين!$C$1,COUNTIF($D$5:D29,D29),"") ->  | B29: 25
A30: =IF(D30=الصيادين!$C$1,COUNTIF($D$5:D30,D30),"") ->  | B30: 26
A31: =IF(D31=الصيادين!$C$1,COUNTIF($D$5:D31,D31),"") ->  | B31: 27
A32: =IF(D32=الصيادين!$C$1,COUNTIF($D$5:D32,D32),"") ->  | B32: 28
A33: =IF(D33=الصيادين!$C$1,COUNTIF($D$5:D33,D33),"") ->  | B33: 29
A34: =IF(D34=الصيادين!$C$1,COUNTIF($D$5:D34,D34),"") ->  | B34: 30
A35: =IF(D35=الصيادين!$C$1,COUNTIF($D$5:D35,D35),"") ->  | B35: 31
A36: =IF(D36=الصيادين!$C$1,COUNTIF($D$5:D36,D36),"") ->  | B36: 32
A37: =IF(D37=الصيادين!$C$1,COUNTIF($D$5:D37,D37),"") ->  | B37: 33
A38: =IF(D38=الصيادين!$C$1,COUNTIF($D$5:D38,D38),"") ->  | B38: 34
A39: =IF(D39=الصيادين!$C$1,COUNTIF($D$5:D39,D39),"") ->  | B39: 35
A40: =IF(D40=الصيادين!$C$1,COUNTIF($D$5:D40,D40),"") ->  | B40: 36
A41: =IF(D41=الصيادين!$C$1,COUNTIF($D$5:D41,D41),"") ->  | B41: 37
A42: =IF(D42=الصيادين!$C$1,COUNTIF($D$5:D42,D42),"") ->  | B42: 38
A43: =IF(D43=الصيادين!$C$1,COUNTIF($D$5:D43,D43),"") ->  | B43: 39
A44: =IF(D44=الصيادين!$C$1,COUNTIF($D$5:D44,D44),"") ->  | B44: 40
A45: =IF(D45=الصيادين!$C$1,COUNTIF($D$5:D45,D45),"") ->  | B45: 41
A46: =IF(D46=الصيادين!$C$1,COUNTIF($D$5:D46,D46),"") ->  | B46: 42
A47: =IF(D47=الصيادين!$C$1,COUNTIF($D$5:D47,D47),"") ->  | B47: 43
A48: =IF(D48=الصيادين!$C$1,COUNTIF($D$5:D48,D48),"") ->  | B48: 44
A49: =IF(D49=الصيادين!$C$1,COUNTIF($D$5:D49,D49),"") ->  | B49: 45
A50: =IF(D50=الصيادين!$C$1,COUNTIF($D$5:D50,D50),"") ->  | B50: 46
A51: =IF(D51=الصيادين!$C$1,COUNTIF($D$5:D51,D51),"") ->  | B51: 47
A52: =IF(D52=الصيادين!$C$1,COUNTIF($D$5:D52,D52),"") ->  | B52: 48
A53: =IF(D53=الصيادين!$C$1,COUNTIF($D$5:D53,D53),"") ->  | B53: 49
A54: =IF(D54=الصيادين!$C$1,COUNTIF($D$5:D54,D54),"") ->  | B54: 50
A55: =IF(D55=الصيادين!$C$1,COUNTIF($D$5:D55,D55),"") ->  | B55: 51
A56: =IF(D56=الصيادين!$C$1,COUNTIF($D$5:D56,D56),"") ->  | B56: 52
A57: =IF(D57=الصيادين!$C$1,COUNTIF($D$5:D57,D57),"") ->  | B57: 53
A58: =IF(D58=الصيادين!$C$1,COUNTIF($D$5:D58,D58),"") ->  | B58: 54
A59: =IF(D59=الصيادين!$C$1,COUNTIF($D$5:D59,D59),"") ->  | B59: 55
A60: =IF(D60=الصيادين!$C$1,COUNTIF($D$5:D60,D60),"") ->  | B60: 56
A61: =IF(D61=الصيادين!$C$1,COUNTIF($D$5:D61,D61),"") ->  | B61: 57
A62: =IF(D62=الصيادين!$C$1,COUNTIF($D$5:D62,D62),"") ->  | B62: 58
A63: =IF(D63=الصيادين!$C$1,COUNTIF($D$5:D63,D63),"") ->  | B63: 59
A64: =IF(D64=الصيادين!$C$1,COUNTIF($D$5:D64,D64),"") ->  | B64: 60
A65: =IF(D65=الصيادين!$C$1,COUNTIF($D$5:D65,D65),"") ->  | B65: 61
A66: =IF(D66=الصيادين!$C$1,COUNTIF($D$5:D66,D66),"") ->  | B66: 62
A67: =IF(D67=الصيادين!$C$1,COUNTIF($D$5:D67,D67),"") ->  | B67: 63
A68: =IF(D68=الصيادين!$C$1,COUNTIF($D$5:D68,D68),"") ->  | B68: 64
A69: =IF(D69=الصيادين!$C$1,COUNTIF($D$5:D69,D69),"") ->  | B69: 65
A70: =IF(D70=الصيادين!$C$1,COUNTIF($D$5:D70,D70),"") ->  | B70: 66
A71: =IF(D71=الصيادين!$C$1,COUNTIF($D$5:D71,D71),"") ->  | B71: 67
A72: =IF(D72=الصيادين!$C$1,COUNTIF($D$5:D72,D72),"") ->  | B72: 68
A73: =IF(D73=الصيادين!$C$1,COUNTIF($D$5:D73,D73),"") ->  | B73: 69
A74: =IF(D74=الصيادين!$C$1,COUNTIF($D$5:D74,D74),"") ->  | B74: 70
A75: =IF(D75=الصيادين!$C$1,COUNTIF($D$5:D75,D75),"") ->  | B75: 71
A76: =IF(D76=الصيادين!$C$1,COUNTIF($D$5:D76,D76),"") ->  | B76: 72
A77: =IF(D77=الصيادين!$C$1,COUNTIF($D$5:D77,D77),"") ->  | B77: 73
A78: =IF(D78=الصيادين!$C$1,COUNTIF($D$5:D78,D78),"") ->  | B78: 74
A79: =IF(D79=الصيادين!$C$1,COUNTIF($D$5:D79,D79),"") ->  | B79: 75
A80: =IF(D80=الصيادين!$C$1,COUNTIF($D$5:D80,D80),"") ->  | B80: 76
A81: =IF(D81=الصيادين!$C$1,COUNTIF($D$5:D81,D81),"") ->  | B81: 77
A82: =IF(D82=الصيادين!$C$1,COUNTIF($D$5:D82,D82),"") ->  | B82: 78
A83: =IF(D83=الصيادين!$C$1,COUNTIF($D$5:D83,D83),"") ->  | B83: 79
A84: =IF(D84=الصيادين!$C$1,COUNTIF($D$5:D84,D84),"") ->  | B84: 80
A85: =IF(D85=الصيادين!$C$1,COUNTIF($D$5:D85,D85),"") ->  | B85: 81
A86: =IF(D86=الصيادين!$C$1,COUNTIF($D$5:D86,D86),"") ->  | B86: 82
A87: =IF(D87=الصيادين!$C$1,COUNTIF($D$5:D87,D87),"") ->  | B87: 83
A88: =IF(D88=الصيادين!$C$1,COUNTIF($D$5:D88,D88),"") ->  | B88: 84
A89: =IF(D89=الصيادين!$C$1,COUNTIF($D$5:D89,D89),"") ->  | B89: 85
A90: =IF(D90=الصيادين!$C$1,COUNTIF($D$5:D90,D90),"") ->  | B90: 86
A91: =IF(D91=الصيادين!$C$1,COUNTIF($D$5:D91,D91),"") ->  | B91: 87
A92: =IF(D92=الصيادين!$C$1,COUNTIF($D$5:D92,D92),"") ->  | B92: 88
A93: =IF(D93=الصيادين!$C$1,COUNTIF($D$5:D93,D93),"") ->  | B93: 89
A94: =IF(D94=الصيادين!$C$1,COUNTIF($D$5:D94,D94),"") ->  | B94: 90
A95: =IF(D95=الصيادين!$C$1,COUNTIF($D$5:D95,D95),"") ->  | B95: 91
A96: =IF(D96=الصيادين!$C$1,COUNTIF($D$5:D96,D96),"") ->  | B96: 92
A97: =IF(D97=الصيادين!$C$1,COUNTIF($D$5:D97,D97),"") ->  | B97: 93
A98: =IF(D98=الصيادين!$C$1,COUNTIF($D$5:D98,D98),"") ->  | B98: 94
A99: =IF(D99=الصيادين!$C$1,COUNTIF($D$5:D99,D99),"") ->  | B99: 95
A100: =IF(D100=الصيادين!$C$1,COUNTIF($D$5:D100,D100),"") ->  | B100: 96
A101: =IF(D101=الصيادين!$C$1,COUNTIF($D$5:D101,D101),"") ->  | B101: 97
A102: =IF(D102=الصيادين!$C$1,COUNTIF($D$5:D102,D102),"") ->  | B102: 98
A103: =IF(D103=الصيادين!$C$1,COUNTIF($D$5:D103,D103),"") ->  | B103: 99
A104: =IF(D104=الصيادين!$C$1,COUNTIF($D$5:D104,D104),"") ->  | B104: 100
G105: =SUM(G5:G104) -> 0 | H105: =SUM(H5:H104) -> 0 | I105: =SUM(I5:I104) -> 0 | J105: =SUM(J5:J104) -> 0
C106: النقدى | E106: 400
C107: الاستيفاء | E107: 10
C108: الايرادات | E108: =J105 -> 0
C109: المدخول | E109: =E106+E107+E108 -> 410
C110: المصروفات | E110: =H105+I105 -> 0
C111: صافى المدخول | E111: =E109-E110 -> 410

Sheet 16
C2: 2020-01-01
B3: م | C3: تاريخ | D3: الاسم | E3: الوصف | F3: رقم الفاتورة | G3: شتات | I3: المصروفات والايرادات | K3: الدلالة
G4: مستحقة | H4: سداد | I4: مصروفات | J4: ايرادات
A5: =IF(D5=الصيادين!$C$1,COUNTIF($D$5:D5,D5),"") ->  | B5: 1
A6: =IF(D6=الصيادين!$C$1,COUNTIF($D$5:D6,D6),"") ->  | B6: 2
A7: =IF(D7=الصيادين!$C$1,COUNTIF($D$5:D7,D7),"") ->  | B7: 3
A8: =IF(D8=الصيادين!$C$1,COUNTIF($D$5:D8,D8),"") ->  | B8: 4
A9: =IF(D9=الصيادين!$C$1,COUNTIF($D$5:D9,D9),"") ->  | B9: 5
A10: =IF(D10=الصيادين!$C$1,COUNTIF($D$5:D10,D10),"") ->  | B10: 6
A11: =IF(D11=الصيادين!$C$1,COUNTIF($D$5:D11,D11),"") ->  | B11: 7
A12: =IF(D12=الصيادين!$C$1,COUNTIF($D$5:D12,D12),"") ->  | B12: 8
A13: =IF(D13=الصيادين!$C$1,COUNTIF($D$5:D13,D13),"") ->  | B13: 9
A14: =IF(D14=الصيادين!$C$1,COUNTIF($D$5:D14,D14),"") ->  | B14: 10
A15: =IF(D15=الصيادين!$C$1,COUNTIF($D$5:D15,D15),"") ->  | B15: 11
A16: =IF(D16=الصيادين!$C$1,COUNTIF($D$5:D16,D16),"") ->  | B16: 12
A17: =IF(D17=الصيادين!$C$1,COUNTIF($D$5:D17,D17),"") ->  | B17: 13
A18: =IF(D18=الصيادين!$C$1,COUNTIF($D$5:D18,D18),"") ->  | B18: 14
A19: =IF(D19=الصيادين!$C$1,COUNTIF($D$5:D19,D19),"") ->  | B19: 15
A20: =IF(D20=الصيادين!$C$1,COUNTIF($D$5:D20,D20),"") ->  | B20: 16
A21: =IF(D21=الصيادين!$C$1,COUNTIF($D$5:D21,D21),"") ->  | B21: 17
A22: =IF(D22=الصيادين!$C$1,COUNTIF($D$5:D22,D22),"") ->  | B22: 18
A23: =IF(D23=الصيادين!$C$1,COUNTIF($D$5:D23,D23),"") ->  | B23: 19
A24: =IF(D24=الصيادين!$C$1,COUNTIF($D$5:D24,D24),"") ->  | B24: 20
A25: =IF(D25=الصيادين!$C$1,COUNTIF($D$5:D25,D25),"") ->  | B25: 21
A26: =IF(D26=الصيادين!$C$1,COUNTIF($D$5:D26,D26),"") ->  | B26: 22
A27: =IF(D27=الصيادين!$C$1,COUNTIF($D$5:D27,D27),"") ->  | B27: 23
A28: =IF(D28=الصيادين!$C$1,COUNTIF($D$5:D28,D28),"") ->  | B28: 24
A29: =IF(D29=الصيادين!$C$1,COUNTIF($D$5:D29,D29),"") ->  | B29: 25
A30: =IF(D30=الصيادين!$C$1,COUNTIF($D$5:D30,D30),"") ->  | B30: 26
A31: =IF(D31=الصيادين!$C$1,COUNTIF($D$5:D31,D31),"") ->  | B31: 27
A32: =IF(D32=الصيادين!$C$1,COUNTIF($D$5:D32,D32),"") ->  | B32: 28
A33: =IF(D33=الصيادين!$C$1,COUNTIF($D$5:D33,D33),"") ->  | B33: 29
A34: =IF(D34=الصيادين!$C$1,COUNTIF($D$5:D34,D34),"") ->  | B34: 30
A35: =IF(D35=الصيادين!$C$1,COUNTIF($D$5:D35,D35),"") ->  | B35: 31
A36: =IF(D36=الصيادين!$C$1,COUNTIF($D$5:D36,D36),"") ->  | B36: 32
A37: =IF(D37=الصيادين!$C$1,COUNTIF($D$5:D37,D37),"") ->  | B37: 33
A38: =IF(D38=الصيادين!$C$1,COUNTIF($D$5:D38,D38),"") ->  | B38: 34
A39: =IF(D39=الصيادين!$C$1,COUNTIF($D$5:D39,D39),"") ->  | B39: 35
A40: =IF(D40=الصيادين!$C$1,COUNTIF($D$5:D40,D40),"") ->  | B40: 36
A41: =IF(D41=الصيادين!$C$1,COUNTIF($D$5:D41,D41),"") ->  | B41: 37
A42: =IF(D42=الصيادين!$C$1,COUNTIF($D$5:D42,D42),"") ->  | B42: 38
A43: =IF(D43=الصيادين!$C$1,COUNTIF($D$5:D43,D43),"") ->  | B43: 39
A44: =IF(D44=الصيادين!$C$1,COUNTIF($D$5:D44,D44),"") ->  | B44: 40
A45: =IF(D45=الصيادين!$C$1,COUNTIF($D$5:D45,D45),"") ->  | B45: 41
A46: =IF(D46=الصيادين!$C$1,COUNTIF($D$5:D46,D46),"") ->  | B46: 42
A47: =IF(D47=الصيادين!$C$1,COUNTIF($D$5:D47,D47),"") ->  | B47: 43
A48: =IF(D48=الصيادين!$C$1,COUNTIF($D$5:D48,D48),"") ->  | B48: 44
A49: =IF(D49=الصيادين!$C$1,COUNTIF($D$5:D49,D49),"") ->  | B49: 45
A50: =IF(D50=الصيادين!$C$1,COUNTIF($D$5:D50,D50),"") ->  | B50: 46
A51: =IF(D51=الصيادين!$C$1,COUNTIF($D$5:D51,D51),"") ->  | B51: 47
A52: =IF(D52=الصيادين!$C$1,COUNTIF($D$5:D52,D52),"") ->  | B52: 48
A53: =IF(D53=الصيادين!$C$1,COUNTIF($D$5:D53,D53),"") ->  | B53: 49
A54: =IF(D54=الصيادين!$C$1,COUNTIF($D$5:D54,D54),"") ->  | B54: 50
A55: =IF(D55=الصيادين!$C$1,COUNTIF($D$5:D55,D55),"") ->  | B55: 51
A56: =IF(D56=الصيادين!$C$1,COUNTIF($D$5:D56,D56),"") ->  | B56: 52
A57: =IF(D57=الصيادين!$C$1,COUNTIF($D$5:D57,D57),"") ->  | B57: 53
A58: =IF(D58=الصيادين!$C$1,COUNTIF($D$5:D58,D58),"") ->  | B58: 54
A59: =IF(D59=الصيادين!$C$1,COUNTIF($D$5:D59,D59),"") ->  | B59: 55
A60: =IF(D60=الصيادين!$C$1,COUNTIF($D$5:D60,D60),"") ->  | B60: 56
A61: =IF(D61=الصيادين!$C$1,COUNTIF($D$5:D61,D61),"") ->  | B61: 57
A62: =IF(D62=الصيادين!$C$1,COUNTIF($D$5:D62,D62),"") ->  | B62: 58
A63: =IF(D63=الصيادين!$C$1,COUNTIF($D$5:D63,D63),"") ->  | B63: 59
A64: =IF(D64=الصيادين!$C$1,COUNTIF($D$5:D64,D64),"") ->  | B64: 60
A65: =IF(D65=الصيادين!$C$1,COUNTIF($D$5:D65,D65),"") ->  | B65: 61
A66: =IF(D66=الصيادين!$C$1,COUNTIF($D$5:D66,D66),"") ->  | B66: 62
A67: =IF(D67=الصيادين!$C$1,COUNTIF($D$5:D67,D67),"") ->  | B67: 63
A68: =IF(D68=الصيادين!$C$1,COUNTIF($D$5:D68,D68),"") ->  | B68: 64
A69: =IF(D69=الصيادين!$C$1,COUNTIF($D$5:D69,D69),"") ->  | B69: 65
A70: =IF(D70=الصيادين!$C$1,COUNTIF($D$5:D70,D70),"") ->  | B70: 66
A71: =IF(D71=الصيادين!$C$1,COUNTIF($D$5:D71,D71),"") ->  | B71: 67
A72: =IF(D72=الصيادين!$C$1,COUNTIF($D$5:D72,D72),"") ->  | B72: 68
A73: =IF(D73=الصيادين!$C$1,COUNTIF($D$5:D73,D73),"") ->  | B73: 69
A74: =IF(D74=الصيادين!$C$1,COUNTIF($D$5:D74,D74),"") ->  | B74: 70
A75: =IF(D75=الصيادين!$C$1,COUNTIF($D$5:D75,D75),"") ->  | B75: 71
A76: =IF(D76=الصيادين!$C$1,COUNTIF($D$5:D76,D76),"") ->  | B76: 72
A77: =IF(D77=الصيادين!$C$1,COUNTIF($D$5:D77,D77),"") ->  | B77: 73
A78: =IF(D78=الصيادين!$C$1,COUNTIF($D$5:D78,D78),"") ->  | B78: 74
A79: =IF(D79=الصيادين!$C$1,COUNTIF($D$5:D79,D79),"") ->  | B79: 75
A80: =IF(D80=الصيادين!$C$1,COUNTIF($D$5:D80,D80),"") ->  | B80: 76
A81: =IF(D81=الصيادين!$C$1,COUNTIF($D$5:D81,D81),"") ->  | B81: 77
A82: =IF(D82=الصيادين!$C$1,COUNTIF($D$5:D82,D82),"") ->  | B82: 78
A83: =IF(D83=الصيادين!$C$1,COUNTIF($D$5:D83,D83),"") ->  | B83: 79
A84: =IF(D84=الصيادين!$C$1,COUNTIF($D$5:D84,D84),"") ->  | B84: 80
A85: =IF(D85=الصيادين!$C$1,COUNTIF($D$5:D85,D85),"") ->  | B85: 81
A86: =IF(D86=الصيادين!$C$1,COUNTIF($D$5:D86,D86),"") ->  | B86: 82
A87: =IF(D87=الصيادين!$C$1,COUNTIF($D$5:D87,D87),"") ->  | B87: 83
A88: =IF(D88=الصيادين!$C$1,COUNTIF($D$5:D88,D88),"") ->  | B88: 84
A89: =IF(D89=الصيادين!$C$1,COUNTIF($D$5:D89,D89),"") ->  | B89: 85
A90: =IF(D90=الصيادين!$C$1,COUNTIF($D$5:D90,D90),"") ->  | B90: 86
A91: =IF(D91=الصيادين!$C$1,COUNTIF($D$5:D91,D91),"") ->  | B91: 87
A92: =IF(D92=الصيادين!$C$1,COUNTIF($D$5:D92,D92),"") ->  | B92: 88
A93: =IF(D93=الصيادين!$C$1,COUNTIF($D$5:D93,D93),"") ->  | B93: 89
A94: =IF(D94=الصيادين!$C$1,COUNTIF($D$5:D94,D94),"") ->  | B94: 90
A95: =IF(D95=الصيادين!$C$1,COUNTIF($D$5:D95,D95),"") ->  | B95: 91
A96: =IF(D96=الصيادين!$C$1,COUNTIF($D$5:D96,D96),"") ->  | B96: 92
A97: =IF(D97=الصيادين!$C$1,COUNTIF($D$5:D97,D97),"") ->  | B97: 93
A98: =IF(D98=الصيادين!$C$1,COUNTIF($D$5:D98,D98),"") ->  | B98: 94
A99: =IF(D99=الصيادين!$C$1,COUNTIF($D$5:D99,D99),"") ->  | B99: 95
A100: =IF(D100=الصيادين!$C$1,COUNTIF($D$5:D100,D100),"") ->  | B100: 96
A101: =IF(D101=الصيادين!$C$1,COUNTIF($D$5:D101,D101),"") ->  | B101: 97
A102: =IF(D102=الصيادين!$C$1,COUNTIF($D$5:D102,D102),"") ->  | B102: 98
A103: =IF(D103=الصيادين!$C$1,COUNTIF($D$5:D103,D103),"") ->  | B103: 99
A104: =IF(D104=الصيادين!$C$1,COUNTIF($D$5:D104,D104),"") ->  | B104: 100
G105: =SUM(G5:G104) -> 0 | H105: =SUM(H5:H104) -> 0 | I105: =SUM(I5:I104) -> 0 | J105: =SUM(J5:J104) -> 0
C106: النقدى | E106: 400
C107: الاستيفاء | E107: 10
C108: الايرادات | E108: =J105 -> 0
C109: المدخول | E109: =E106+E107+E108 -> 410
C110: المصروفات | E110: =H105+I105 -> 0
C111: صافى المدخول | E111: =E109-E110 -> 410

Sheet 17
C2: 2020-01-01
B3: م | C3: تاريخ | D3: الاسم | E3: الوصف | F3: رقم الفاتورة | G3: شتات | I3: المصروفات والايرادات | K3: الدلالة
G4: مستحقة | H4: سداد | I4: مصروفات | J4: ايرادات
A5: =IF(D5=الصيادين!$C$1,COUNTIF($D$5:D5,D5),"") ->  | B5: 1
A6: =IF(D6=الصيادين!$C$1,COUNTIF($D$5:D6,D6),"") ->  | B6: 2
A7: =IF(D7=الصيادين!$C$1,COUNTIF($D$5:D7,D7),"") ->  | B7: 3
A8: =IF(D8=الصيادين!$C$1,COUNTIF($D$5:D8,D8),"") ->  | B8: 4
A9: =IF(D9=الصيادين!$C$1,COUNTIF($D$5:D9,D9),"") ->  | B9: 5
A10: =IF(D10=الصيادين!$C$1,COUNTIF($D$5:D10,D10),"") ->  | B10: 6
A11: =IF(D11=الصيادين!$C$1,COUNTIF($D$5:D11,D11),"") ->  | B11: 7
A12: =IF(D12=الصيادين!$C$1,COUNTIF($D$5:D12,D12),"") ->  | B12: 8
A13: =IF(D13=الصيادين!$C$1,COUNTIF($D$5:D13,D13),"") ->  | B13: 9
A14: =IF(D14=الصيادين!$C$1,COUNTIF($D$5:D14,D14),"") ->  | B14: 10
A15: =IF(D15=الصيادين!$C$1,COUNTIF($D$5:D15,D15),"") ->  | B15: 11
A16: =IF(D16=الصيادين!$C$1,COUNTIF($D$5:D16,D16),"") ->  | B16: 12
A17: =IF(D17=الصيادين!$C$1,COUNTIF($D$5:D17,D17),"") ->  | B17: 13
A18: =IF(D18=الصيادين!$C$1,COUNTIF($D$5:D18,D18),"") ->  | B18: 14
A19: =IF(D19=الصيادين!$C$1,COUNTIF($D$5:D19,D19),"") ->  | B19: 15
A20: =IF(D20=الصيادين!$C$1,COUNTIF($D$5:D20,D20),"") ->  | B20: 16
A21: =IF(D21=الصيادين!$C$1,COUNTIF($D$5:D21,D21),"") ->  | B21: 17
A22: =IF(D22=الصيادين!$C$1,COUNTIF($D$5:D22,D22),"") ->  | B22: 18
A23: =IF(D23=الصيادين!$C$1,COUNTIF($D$5:D23,D23),"") ->  | B23: 19
A24: =IF(D24=الصيادين!$C$1,COUNTIF($D$5:D24,D24),"") ->  | B24: 20
A25: =IF(D25=الصيادين!$C$1,COUNTIF($D$5:D25,D25),"") ->  | B25: 21
A26: =IF(D26=الصيادين!$C$1,COUNTIF($D$5:D26,D26),"") ->  | B26: 22
A27: =IF(D27=الصيادين!$C$1,COUNTIF($D$5:D27,D27),"") ->  | B27: 23
A28: =IF(D28=الصيادين!$C$1,COUNTIF($D$5:D28,D28),"") ->  | B28: 24
A29: =IF(D29=الصيادين!$C$1,COUNTIF($D$5:D29,D29),"") ->  | B29: 25
A30: =IF(D30=الصيادين!$C$1,COUNTIF($D$5:D30,D30),"") ->  | B30: 26
A31: =IF(D31=الصيادين!$C$1,COUNTIF($D$5:D31,D31),"") ->  | B31: 27
A32: =IF(D32=الصيادين!$C$1,COUNTIF($D$5:D32,D32),"") ->  | B32: 28
A33: =IF(D33=الصيادين!$C$1,COUNTIF($D$5:D33,D33),"") ->  | B33: 29
A34: =IF(D34=الصيادين!$C$1,COUNTIF($D$5:D34,D34),"") ->  | B34: 30
A35: =IF(D35=الصيادين!$C$1,COUNTIF($D$5:D35,D35),"") ->  | B35: 31
A36: =IF(D36=الصيادين!$C$1,COUNTIF($D$5:D36,D36),"") ->  | B36: 32
A37: =IF(D37=الصيادين!$C$1,COUNTIF($D$5:D37,D37),"") ->  | B37: 33
A38: =IF(D38=الصيادين!$C$1,COUNTIF($D$5:D38,D38),"") ->  | B38: 34
A39: =IF(D39=الصيادين!$C$1,COUNTIF($D$5:D39,D39),"") ->  | B39: 35
A40: =IF(D40=الصيادين!$C$1,COUNTIF($D$5:D40,D40),"") ->  | B40: 36
A41: =IF(D41=الصيادين!$C$1,COUNTIF($D$5:D41,D41),"") ->  | B41: 37
A42: =IF(D42=الصيادين!$C$1,COUNTIF($D$5:D42,D42),"") ->  | B42: 38
A43: =IF(D43=الصيادين!$C$1,COUNTIF($D$5:D43,D43),"") ->  | B43: 39
A44: =IF(D44=الصيادين!$C$1,COUNTIF($D$5:D44,D44),"") ->  | B44: 40
A45: =IF(D45=الصيادين!$C$1,COUNTIF($D$5:D45,D45),"") ->  | B45: 41
A46: =IF(D46=الصيادين!$C$1,COUNTIF($D$5:D46,D46),"") ->  | B46: 42
A47: =IF(D47=الصيادين!$C$1,COUNTIF($D$5:D47,D47),"") ->  | B47: 43
A48: =IF(D48=الصيادين!$C$1,COUNTIF($D$5:D48,D48),"") ->  | B48: 44
A49: =IF(D49=الصيادين!$C$1,COUNTIF($D$5:D49,D49),"") ->  | B49: 45
A50: =IF(D50=الصيادين!$C$1,COUNTIF($D$5:D50,D50),"") ->  | B50: 46
A51: =IF(D51=الصيادين!$C$1,COUNTIF($D$5:D51,D51),"") ->  | B51: 47
A52: =IF(D52=الصيادين!$C$1,COUNTIF($D$5:D52,D52),"") ->  | B52: 48
A53: =IF(D53=الصيادين!$C$1,COUNTIF($D$5:D53,D53),"") ->  | B53: 49
A54: =IF(D54=الصيادين!$C$1,COUNTIF($D$5:D54,D54),"") ->  | B54: 50
A55: =IF(D55=الصيادين!$C$1,COUNTIF($D$5:D55,D55),"") ->  | B55: 51
A56: =IF(D56=الصيادين!$C$1,COUNTIF($D$5:D56,D56),"") ->  | B56: 52
A57: =IF(D57=الصيادين!$C$1,COUNTIF($D$5:D57,D57),"") ->  | B57: 53
A58: =IF(D58=الصيادين!$C$1,COUNTIF($D$5:D58,D58),"") ->  | B58: 54
A59: =IF(D59=الصيادين!$C$1,COUNTIF($D$5:D59,D59),"") ->  | B59: 55
A60: =IF(D60=الصيادين!$C$1,COUNTIF($D$5:D60,D60),"") ->  | B60: 56
A61: =IF(D61=الصيادين!$C$1,COUNTIF($D$5:D61,D61),"") ->  | B61: 57
A62: =IF(D62=الصيادين!$C$1,COUNTIF($D$5:D62,D62),"") ->  | B62: 58
A63: =IF(D63=الصيادين!$C$1,COUNTIF($D$5:D63,D63),"") ->  | B63: 59
A64: =IF(D64=الصيادين!$C$1,COUNTIF($D$5:D64,D64),"") ->  | B64: 60
A65: =IF(D65=الصيادين!$C$1,COUNTIF($D$5:D65,D65),"") ->  | B65: 61
A66: =IF(D66=الصيادين!$C$1,COUNTIF($D$5:D66,D66),"") ->  | B66: 62
A67: =IF(D67=الصيادين!$C$1,COUNTIF($D$5:D67,D67),"") ->  | B67: 63
A68: =IF(D68=الصيادين!$C$1,COUNTIF($D$5:D68,D68),"") ->  | B68: 64
A69: =IF(D69=الصيادين!$C$1,COUNTIF($D$5:D69,D69),"") ->  | B69: 65
A70: =IF(D70=الصيادين!$C$1,COUNTIF($D$5:D70,D70),"") ->  | B70: 66
A71: =IF(D71=الصيادين!$C$1,COUNTIF($D$5:D71,D71),"") ->  | B71: 67
A72: =IF(D72=الصيادين!$C$1,COUNTIF($D$5:D72,D72),"") ->  | B72: 68
A73: =IF(D73=الصيادين!$C$1,COUNTIF($D$5:D73,D73),"") ->  | B73: 69
A74: =IF(D74=الصيادين!$C$1,COUNTIF($D$5:D74,D74),"") ->  | B74: 70
A75: =IF(D75=الصيادين!$C$1,COUNTIF($D$5:D75,D75),"") ->  | B75: 71
A76: =IF(D76=الصيادين!$C$1,COUNTIF($D$5:D76,D76),"") ->  | B76: 72
A77: =IF(D77=الصيادين!$C$1,COUNTIF($D$5:D77,D77),"") ->  | B77: 73
A78: =IF(D78=الصيادين!$C$1,COUNTIF($D$5:D78,D78),"") ->  | B78: 74
A79: =IF(D79=الصيادين!$C$1,COUNTIF($D$5:D79,D79),"") ->  | B79: 75
A80: =IF(D80=الصيادين!$C$1,COUNTIF($D$5:D80,D80),"") ->  | B80: 76
A81: =IF(D81=الصيادين!$C$1,COUNTIF($D$5:D81,D81),"") ->  | B81: 77
A82: =IF(D82=الصيادين!$C$1,COUNTIF($D$5:D82,D82),"") ->  | B82: 78
A83: =IF(D83=الصيادين!$C$1,COUNTIF($D$5:D83,D83),"") ->  | B83: 79
A84: =IF(D84=الصيادين!$C$1,COUNTIF($D$5:D84,D84),"") ->  | B84: 80
A85: =IF(D85=الصيادين!$C$1,COUNTIF($D$5:D85,D85),"") ->  | B85: 81
A86: =IF(D86=الصيادين!$C$1,COUNTIF($D$5:D86,D86),"") ->  | B86: 82
A87: =IF(D87=الصيادين!$C$1,COUNTIF($D$5:D87,D87),"") ->  | B87: 83
A88: =IF(D88=الصيادين!$C$1,COUNTIF($D$5:D88,D88),"") ->  | B88: 84
A89: =IF(D89=الصيادين!$C$1,COUNTIF($D$5:D89,D89),"") ->  | B89: 85
A90: =IF(D90=الصيادين!$C$1,COUNTIF($D$5:D90,D90),"") ->  | B90: 86
A91: =IF(D91=الصيادين!$C$1,COUNTIF($D$5:D91,D91),"") ->  | B91: 87
A92: =IF(D92=الصيادين!$C$1,COUNTIF($D$5:D92,D92),"") ->  | B92: 88
A93: =IF(D93=الصيادين!$C$1,COUNTIF($D$5:D93,D93),"") ->  | B93: 89
A94: =IF(D94=الصيادين!$C$1,COUNTIF($D$5:D94,D94),"") ->  | B94: 90
A95: =IF(D95=الصيادين!$C$1,COUNTIF($D$5:D95,D95),"") ->  | B95: 91
A96: =IF(D96=الصيادين!$C$1,COUNTIF($D$5:D96,D96),"") ->  | B96: 92
A97: =IF(D97=الصيادين!$C$1,COUNTIF($D$5:D97,D97),"") ->  | B97: 93
A98: =IF(D98=الصيادين!$C$1,COUNTIF($D$5:D98,D98),"") ->  | B98: 94
A99: =IF(D99=الصيادين!$C$1,COUNTIF($D$5:D99,D99),"") ->  | B99: 95
A100: =IF(D100=الصيادين!$C$1,COUNTIF($D$5:D100,D100),"") ->  | B100: 96
A101: =IF(D101=الصيادين!$C$1,COUNTIF($D$5:D101,D101),"") ->  | B101: 97
A102: =IF(D102=الصيادين!$C$1,COUNTIF($D$5:D102,D102),"") ->  | B102: 98
A103: =IF(D103=الصيادين!$C$1,COUNTIF($D$5:D103,D103),"") ->  | B103: 99
A104: =IF(D104=الصيادين!$C$1,COUNTIF($D$5:D104,D104),"") ->  | B104: 100
G105: =SUM(G5:G104) -> 0 | H105: =SUM(H5:H104) -> 0 | I105: =SUM(I5:I104) -> 0 | J105: =SUM(J5:J104) -> 0
C106: النقدى | E106: 400
C107: الاستيفاء | E107: 10
C108: الايرادات | E108: =J105 -> 0
C109: المدخول | E109: =E106+E107+E108 -> 410
C110: المصروفات | E110: =H105+I105 -> 0
C111: صافى المدخول | E111: =E109-E110 -> 410

Sheet 18
C2: 2020-01-01
B3: م | C3: تاريخ | D3: الاسم | E3: الوصف | F3: رقم الفاتورة | G3: شتات | I3: المصروفات والايرادات | K3: الدلالة
G4: مستحقة | H4: سداد | I4: مصروفات | J4: ايرادات
A5: =IF(D5=الصيادين!$C$1,COUNTIF($D$5:D5,D5),"") ->  | B5: 1
A6: =IF(D6=الصيادين!$C$1,COUNTIF($D$5:D6,D6),"") ->  | B6: 2
A7: =IF(D7=الصيادين!$C$1,COUNTIF($D$5:D7,D7),"") ->  | B7: 3
A8: =IF(D8=الصيادين!$C$1,COUNTIF($D$5:D8,D8),"") ->  | B8: 4
A9: =IF(D9=الصيادين!$C$1,COUNTIF($D$5:D9,D9),"") ->  | B9: 5
A10: =IF(D10=الصيادين!$C$1,COUNTIF($D$5:D10,D10),"") ->  | B10: 6
A11: =IF(D11=الصيادين!$C$1,COUNTIF($D$5:D11,D11),"") ->  | B11: 7
A12: =IF(D12=الصيادين!$C$1,COUNTIF($D$5:D12,D12),"") ->  | B12: 8
A13: =IF(D13=الصيادين!$C$1,COUNTIF($D$5:D13,D13),"") ->  | B13: 9
A14: =IF(D14=الصيادين!$C$1,COUNTIF($D$5:D14,D14),"") ->  | B14: 10
A15: =IF(D15=الصيادين!$C$1,COUNTIF($D$5:D15,D15),"") ->  | B15: 11
A16: =IF(D16=الصيادين!$C$1,COUNTIF($D$5:D16,D16),"") ->  | B16: 12
A17: =IF(D17=الصيادين!$C$1,COUNTIF($D$5:D17,D17),"") ->  | B17: 13
A18: =IF(D18=الصيادين!$C$1,COUNTIF($D$5:D18,D18),"") ->  | B18: 14
A19: =IF(D19=الصيادين!$C$1,COUNTIF($D$5:D19,D19),"") ->  | B19: 15
A20: =IF(D20=الصيادين!$C$1,COUNTIF($D$5:D20,D20),"") ->  | B20: 16
A21: =IF(D21=الصيادين!$C$1,COUNTIF($D$5:D21,D21),"") ->  | B21: 17
A22: =IF(D22=الصيادين!$C$1,COUNTIF($D$5:D22,D22),"") ->  | B22: 18
A23: =IF(D23=الصيادين!$C$1,COUNTIF($D$5:D23,D23),"") ->  | B23: 19
A24: =IF(D24=الصيادين!$C$1,COUNTIF($D$5:D24,D24),"") ->  | B24: 20
A25: =IF(D25=الصيادين!$C$1,COUNTIF($D$5:D25,D25),"") ->  | B25: 21
A26: =IF(D26=الصيادين!$C$1,COUNTIF($D$5:D26,D26),"") ->  | B26: 22
A27: =IF(D27=الصيادين!$C$1,COUNTIF($D$5:D27,D27),"") ->  | B27: 23
A28: =IF(D28=الصيادين!$C$1,COUNTIF($D$5:D28,D28),"") ->  | B28: 24
A29: =IF(D29=الصيادين!$C$1,COUNTIF($D$5:D29,D29),"") ->  | B29: 25
A30: =IF(D30=الصيادين!$C$1,COUNTIF($D$5:D30,D30),"") ->  | B30: 26
A31: =IF(D31=الصيادين!$C$1,COUNTIF($D$5:D31,D31),"") ->  | B31: 27
A32: =IF(D32=الصيادين!$C$1,COUNTIF($D$5:D32,D32),"") ->  | B32: 28
A33: =IF(D33=الصيادين!$C$1,COUNTIF($D$5:D33,D33),"") ->  | B33: 29
A34: =IF(D34=الصيادين!$C$1,COUNTIF($D$5:D34,D34),"") ->  | B34: 30
A35: =IF(D35=الصيادين!$C$1,COUNTIF($D$5:D35,D35),"") ->  | B35: 31
A36: =IF(D36=الصيادين!$C$1,COUNTIF($D$5:D36,D36),"") ->  | B36: 32
A37: =IF(D37=الصيادين!$C$1,COUNTIF($D$5:D37,D37),"") ->  | B37: 33
A38: =IF(D38=الصيادين!$C$1,COUNTIF($D$5:D38,D38),"") ->  | B38: 34
A39: =IF(D39=الصيادين!$C$1,COUNTIF($D$5:D39,D39),"") ->  | B39: 35
A40: =IF(D40=الصيادين!$C$1,COUNTIF($D$5:D40,D40),"") ->  | B40: 36
A41: =IF(D41=الصيادين!$C$1,COUNTIF($D$5:D41,D41),"") ->  | B41: 37
A42: =IF(D42=الصيادين!$C$1,COUNTIF($D$5:D42,D42),"") ->  | B42: 38
A43: =IF(D43=الصيادين!$C$1,COUNTIF($D$5:D43,D43),"") ->  | B43: 39
A44: =IF(D44=الصيادين!$C$1,COUNTIF($D$5:D44,D44),"") ->  | B44: 40
A45: =IF(D45=الصيادين!$C$1,COUNTIF($D$5:D45,D45),"") ->  | B45: 41
A46: =IF(D46=الصيادين!$C$1,COUNTIF($D$5:D46,D46),"") ->  | B46: 42
A47: =IF(D47=الصيادين!$C$1,COUNTIF($D$5:D47,D47),"") ->  | B47: 43
A48: =IF(D48=الصيادين!$C$1,COUNTIF($D$5:D48,D48),"") ->  | B48: 44
A49: =IF(D49=الصيادين!$C$1,COUNTIF($D$5:D49,D49),"") ->  | B49: 45
A50: =IF(D50=الصيادين!$C$1,COUNTIF($D$5:D50,D50),"") ->  | B50: 46
A51: =IF(D51=الصيادين!$C$1,COUNTIF($D$5:D51,D51),"") ->  | B51: 47
A52: =IF(D52=الصيادين!$C$1,COUNTIF($D$5:D52,D52),"") ->  | B52: 48
A53: =IF(D53=الصيادين!$C$1,COUNTIF($D$5:D53,D53),"") ->  | B53: 49
A54: =IF(D54=الصيادين!$C$1,COUNTIF($D$5:D54,D54),"") ->  | B54: 50
A55: =IF(D55=الصيادين!$C$1,COUNTIF($D$5:D55,D55),"") ->  | B55: 51
A56: =IF(D56=الصيادين!$C$1,COUNTIF($D$5:D56,D56),"") ->  | B56: 52
A57: =IF(D57=الصيادين!$C$1,COUNTIF($D$5:D57,D57),"") ->  | B57: 53
A58: =IF(D58=الصيادين!$C$1,COUNTIF($D$5:D58,D58),"") ->  | B58: 54
A59: =IF(D59=الصيادين!$C$1,COUNTIF($D$5:D59,D59),"") ->  | B59: 55
A60: =IF(D60=الصيادين!$C$1,COUNTIF($D$5:D60,D60),"") ->  | B60: 56
A61: =IF(D61=الصيادين!$C$1,COUNTIF($D$5:D61,D61),"") ->  | B61: 57
A62: =IF(D62=الصيادين!$C$1,COUNTIF($D$5:D62,D62),"") ->  | B62: 58
A63: =IF(D63=الصيادين!$C$1,COUNTIF($D$5:D63,D63),"") ->  | B63: 59
A64: =IF(D64=الصيادين!$C$1,COUNTIF($D$5:D64,D64),"") ->  | B64: 60
A65: =IF(D65=الصيادين!$C$1,COUNTIF($D$5:D65,D65),"") ->  | B65: 61
A66: =IF(D66=الصيادين!$C$1,COUNTIF($D$5:D66,D66),"") ->  | B66: 62
A67: =IF(D67=الصيادين!$C$1,COUNTIF($D$5:D67,D67),"") ->  | B67: 63
A68: =IF(D68=الصيادين!$C$1,COUNTIF($D$5:D68,D68),"") ->  | B68: 64
A69: =IF(D69=الصيادين!$C$1,COUNTIF($D$5:D69,D69),"") ->  | B69: 65
A70: =IF(D70=الصيادين!$C$1,COUNTIF($D$5:D70,D70),"") ->  | B70: 66
A71: =IF(D71=الصيادين!$C$1,COUNTIF($D$5:D71,D71),"") ->  | B71: 67
A72: =IF(D72=الصيادين!$C$1,COUNTIF($D$5:D72,D72),"") ->  | B72: 68
A73: =IF(D73=الصيادين!$C$1,COUNTIF($D$5:D73,D73),"") ->  | B73: 69
A74: =IF(D74=الصيادين!$C$1,COUNTIF($D$5:D74,D74),"") ->  | B74: 70
A75: =IF(D75=الصيادين!$C$1,COUNTIF($D$5:D75,D75),"") ->  | B75: 71
A76: =IF(D76=الصيادين!$C$1,COUNTIF($D$5:D76,D76),"") ->  | B76: 72
A77: =IF(D77=الصيادين!$C$1,COUNTIF($D$5:D77,D77),"") ->  | B77: 73
A78: =IF(D78=الصيادين!$C$1,COUNTIF($D$5:D78,D78),"") ->  | B78: 74
A79: =IF(D79=الصيادين!$C$1,COUNTIF($D$5:D79,D79),"") ->  | B79: 75
A80: =IF(D80=الصيادين!$C$1,COUNTIF($D$5:D80,D80),"") ->  | B80: 76
A81: =IF(D81=الصيادين!$C$1,COUNTIF($D$5:D81,D81),"") ->  | B81: 77
A82: =IF(D82=الصيادين!$C$1,COUNTIF($D$5:D82,D82),"") ->  | B82: 78
A83: =IF(D83=الصيادين!$C$1,COUNTIF($D$5:D83,D83),"") ->  | B83: 79
A84: =IF(D84=الصيادين!$C$1,COUNTIF($D$5:D84,D84),"") ->  | B84: 80
A85: =IF(D85=الصيادين!$C$1,COUNTIF($D$5:D85,D85),"") ->  | B85: 81
A86: =IF(D86=الصيادين!$C$1,COUNTIF($D$5:D86,D86),"") ->  | B86: 82
A87: =IF(D87=الصيادين!$C$1,COUNTIF($D$5:D87,D87),"") ->  | B87: 83
A88: =IF(D88=الصيادين!$C$1,COUNTIF($D$5:D88,D88),"") ->  | B88: 84
A89: =IF(D89=الصيادين!$C$1,COUNTIF($D$5:D89,D89),"") ->  | B89: 85
A90: =IF(D90=الصيادين!$C$1,COUNTIF($D$5:D90,D90),"") ->  | B90: 86
A91: =IF(D91=الصيادين!$C$1,COUNTIF($D$5:D91,D91),"") ->  | B91: 87
A92: =IF(D92=الصيادين!$C$1,COUNTIF($D$5:D92,D92),"") ->  | B92: 88
A93: =IF(D93=الصيادين!$C$1,COUNTIF($D$5:D93,D93),"") ->  | B93: 89
A94: =IF(D94=الصيادين!$C$1,COUNTIF($D$5:D94,D94),"") ->  | B94: 90
A95: =IF(D95=الصيادين!$C$1,COUNTIF($D$5:D95,D95),"") ->  | B95: 91
A96: =IF(D96=الصيادين!$C$1,COUNTIF($D$5:D96,D96),"") ->  | B96: 92
A97: =IF(D97=الصيادين!$C$1,COUNTIF($D$5:D97,D97),"") ->  | B97: 93
A98: =IF(D98=الصيادين!$C$1,COUNTIF($D$5:D98,D98),"") ->  | B98: 94
A99: =IF(D99=الصيادين!$C$1,COUNTIF($D$5:D99,D99),"") ->  | B99: 95
A100: =IF(D100=الصيادين!$C$1,COUNTIF($D$5:D100,D100),"") ->  | B100: 96
A101: =IF(D101=الصيادين!$C$1,COUNTIF($D$5:D101,D101),"") ->  | B101: 97
A102: =IF(D102=الصيادين!$C$1,COUNTIF($D$5:D102,D102),"") ->  | B102: 98
A103: =IF(D103=الصيادين!$C$1,COUNTIF($D$5:D103,D103),"") ->  | B103: 99
A104: =IF(D104=الصيادين!$C$1,COUNTIF($D$5:D104,D104),"") ->  | B104: 100
G105: =SUM(G5:G104) -> 0 | H105: =SUM(H5:H104) -> 0 | I105: =SUM(I5:I104) -> 0 | J105: =SUM(J5:J104) -> 0
C106: النقدى | E106: 400
C107: الاستيفاء | E107: 10
C108: الايرادات | E108: =J105 -> 0
C109: المدخول | E109: =E106+E107+E108 -> 410
C110: المصروفات | E110: =H105+I105 -> 0
C111: صافى المدخول | E111: =E109-E110 -> 410

Sheet 19
C2: 2020-01-01
B3: م | C3: تاريخ | D3: الاسم | E3: الوصف | F3: رقم الفاتورة | G3: شتات | I3: المصروفات والايرادات | K3: الدلالة
G4: مستحقة | H4: سداد | I4: مصروفات | J4: ايرادات
A5: =IF(D5=الصيادين!$C$1,COUNTIF($D$5:D5,D5),"") ->  | B5: 1
A6: =IF(D6=الصيادين!$C$1,COUNTIF($D$5:D6,D6),"") ->  | B6: 2
A7: =IF(D7=الصيادين!$C$1,COUNTIF($D$5:D7,D7),"") ->  | B7: 3
A8: =IF(D8=الصيادين!$C$1,COUNTIF($D$5:D8,D8),"") ->  | B8: 4
A9: =IF(D9=الصيادين!$C$1,COUNTIF($D$5:D9,D9),"") ->  | B9: 5
A10: =IF(D10=الصيادين!$C$1,COUNTIF($D$5:D10,D10),"") ->  | B10: 6
A11: =IF(D11=الصيادين!$C$1,COUNTIF($D$5:D11,D11),"") ->  | B11: 7
A12: =IF(D12=الصيادين!$C$1,COUNTIF($D$5:D12,D12),"") ->  | B12: 8
A13: =IF(D13=الصيادين!$C$1,COUNTIF($D$5:D13,D13),"") ->  | B13: 9
A14: =IF(D14=الصيادين!$C$1,COUNTIF($D$5:D14,D14),"") ->  | B14: 10
A15: =IF(D15=الصيادين!$C$1,COUNTIF($D$5:D15,D15),"") ->  | B15: 11
A16: =IF(D16=الصيادين!$C$1,COUNTIF($D$5:D16,D16),"") ->  | B16: 12
A17: =IF(D17=الصيادين!$C$1,COUNTIF($D$5:D17,D17),"") ->  | B17: 13
A18: =IF(D18=الصيادين!$C$1,COUNTIF($D$5:D18,D18),"") ->  | B18: 14
A19: =IF(D19=الصيادين!$C$1,COUNTIF($D$5:D19,D19),"") ->  | B19: 15
A20: =IF(D20=الصيادين!$C$1,COUNTIF($D$5:D20,D20),"") ->  | B20: 16
A21: =IF(D21=الصيادين!$C$1,COUNTIF($D$5:D21,D21),"") ->  | B21: 17
A22: =IF(D22=الصيادين!$C$1,COUNTIF($D$5:D22,D22),"") ->  | B22: 18
A23: =IF(D23=الصيادين!$C$1,COUNTIF($D$5:D23,D23),"") ->  | B23: 19
A24: =IF(D24=الصيادين!$C$1,COUNTIF($D$5:D24,D24),"") ->  | B24: 20
A25: =IF(D25=الصيادين!$C$1,COUNTIF($D$5:D25,D25),"") ->  | B25: 21
A26: =IF(D26=الصيادين!$C$1,COUNTIF($D$5:D26,D26),"") ->  | B26: 22
A27: =IF(D27=الصيادين!$C$1,COUNTIF($D$5:D27,D27),"") ->  | B27: 23
A28: =IF(D28=الصيادين!$C$1,COUNTIF($D$5:D28,D28),"") ->  | B28: 24
A29: =IF(D29=الصيادين!$C$1,COUNTIF($D$5:D29,D29),"") ->  | B29: 25
A30: =IF(D30=الصيادين!$C$1,COUNTIF($D$5:D30,D30),"") ->  | B30: 26
A31: =IF(D31=الصيادين!$C$1,COUNTIF($D$5:D31,D31),"") ->  | B31: 27
A32: =IF(D32=الصيادين!$C$1,COUNTIF($D$5:D32,D32),"") ->  | B32: 28
A33: =IF(D33=الصيادين!$C$1,COUNTIF($D$5:D33,D33),"") ->  | B33: 29
A34: =IF(D34=الصيادين!$C$1,COUNTIF($D$5:D34,D34),"") ->  | B34: 30
A35: =IF(D35=الصيادين!$C$1,COUNTIF($D$5:D35,D35),"") ->  | B35: 31
A36: =IF(D36=الصيادين!$C$1,COUNTIF($D$5:D36,D36),"") ->  | B36: 32
A37: =IF(D37=الصيادين!$C$1,COUNTIF($D$5:D37,D37),"") ->  | B37: 33
A38: =IF(D38=الصيادين!$C$1,COUNTIF($D$5:D38,D38),"") ->  | B38: 34
A39: =IF(D39=الصيادين!$C$1,COUNTIF($D$5:D39,D39),"") ->  | B39: 35
A40: =IF(D40=الصيادين!$C$1,COUNTIF($D$5:D40,D40),"") ->  | B40: 36
A41: =IF(D41=الصيادين!$C$1,COUNTIF($D$5:D41,D41),"") ->  | B41: 37
A42: =IF(D42=الصيادين!$C$1,COUNTIF($D$5:D42,D42),"") ->  | B42: 38
A43: =IF(D43=الصيادين!$C$1,COUNTIF($D$5:D43,D43),"") ->  | B43: 39
A44: =IF(D44=الصيادين!$C$1,COUNTIF($D$5:D44,D44),"") ->  | B44: 40
A45: =IF(D45=الصيادين!$C$1,COUNTIF($D$5:D45,D45),"") ->  | B45: 41
A46: =IF(D46=الصيادين!$C$1,COUNTIF($D$5:D46,D46),"") ->  | B46: 42
A47: =IF(D47=الصيادين!$C$1,COUNTIF($D$5:D47,D47),"") ->  | B47: 43
A48: =IF(D48=الصيادين!$C$1,COUNTIF($D$5:D48,D48),"") ->  | B48: 44
A49: =IF(D49=الصيادين!$C$1,COUNTIF($D$5:D49,D49),"") ->  | B49: 45
A50: =IF(D50=الصيادين!$C$1,COUNTIF($D$5:D50,D50),"") ->  | B50: 46
A51: =IF(D51=الصيادين!$C$1,COUNTIF($D$5:D51,D51),"") ->  | B51: 47
A52: =IF(D52=الصيادين!$C$1,COUNTIF($D$5:D52,D52),"") ->  | B52: 48
A53: =IF(D53=الصيادين!$C$1,COUNTIF($D$5:D53,D53),"") ->  | B53: 49
A54: =IF(D54=الصيادين!$C$1,COUNTIF($D$5:D54,D54),"") ->  | B54: 50
A55: =IF(D55=الصيادين!$C$1,COUNTIF($D$5:D55,D55),"") ->  | B55: 51
A56: =IF(D56=الصيادين!$C$1,COUNTIF($D$5:D56,D56),"") ->  | B56: 52
A57: =IF(D57=الصيادين!$C$1,COUNTIF($D$5:D57,D57),"") ->  | B57: 53
A58: =IF(D58=الصيادين!$C$1,COUNTIF($D$5:D58,D58),"") ->  | B58: 54
A59: =IF(D59=الصيادين!$C$1,COUNTIF($D$5:D59,D59),"") ->  | B59: 55
A60: =IF(D60=الصيادين!$C$1,COUNTIF($D$5:D60,D60),"") ->  | B60: 56
A61: =IF(D61=الصيادين!$C$1,COUNTIF($D$5:D61,D61),"") ->  | B61: 57
A62: =IF(D62=الصيادين!$C$1,COUNTIF($D$5:D62,D62),"") ->  | B62: 58
A63: =IF(D63=الصيادين!$C$1,COUNTIF($D$5:D63,D63),"") ->  | B63: 59
A64: =IF(D64=الصيادين!$C$1,COUNTIF($D$5:D64,D64),"") ->  | B64: 60
A65: =IF(D65=الصيادين!$C$1,COUNTIF($D$5:D65,D65),"") ->  | B65: 61
A66: =IF(D66=الصيادين!$C$1,COUNTIF($D$5:D66,D66),"") ->  | B66: 62
A67: =IF(D67=الصيادين!$C$1,COUNTIF($D$5:D67,D67),"") ->  | B67: 63
A68: =IF(D68=الصيادين!$C$1,COUNTIF($D$5:D68,D68),"") ->  | B68: 64
A69: =IF(D69=الصيادين!$C$1,COUNTIF($D$5:D69,D69),"") ->  | B69: 65
A70: =IF(D70=الصيادين!$C$1,COUNTIF($D$5:D70,D70),"") ->  | B70: 66
A71: =IF(D71=الصيادين!$C$1,COUNTIF($D$5:D71,D71),"") ->  | B71: 67
A72: =IF(D72=الصيادين!$C$1,COUNTIF($D$5:D72,D72),"") ->  | B72: 68
A73: =IF(D73=الصيادين!$C$1,COUNTIF($D$5:D73,D73),"") ->  | B73: 69
A74: =IF(D74=الصيادين!$C$1,COUNTIF($D$5:D74,D74),"") ->  | B74: 70
A75: =IF(D75=الصيادين!$C$1,COUNTIF($D$5:D75,D75),"") ->  | B75: 71
A76: =IF(D76=الصيادين!$C$1,COUNTIF($D$5:D76,D76),"") ->  | B76: 72
A77: =IF(D77=الصيادين!$C$1,COUNTIF($D$5:D77,D77),"") ->  | B77: 73
A78: =IF(D78=الصيادين!$C$1,COUNTIF($D$5:D78,D78),"") ->  | B78: 74
A79: =IF(D79=الصيادين!$C$1,COUNTIF($D$5:D79,D79),"") ->  | B79: 75
A80: =IF(D80=الصيادين!$C$1,COUNTIF($D$5:D80,D80),"") ->  | B80: 76
A81: =IF(D81=الصيادين!$C$1,COUNTIF($D$5:D81,D81),"") ->  | B81: 77
A82: =IF(D82=الصيادين!$C$1,COUNTIF($D$5:D82,D82),"") ->  | B82: 78
A83: =IF(D83=الصيادين!$C$1,COUNTIF($D$5:D83,D83),"") ->  | B83: 79
A84: =IF(D84=الصيادين!$C$1,COUNTIF($D$5:D84,D84),"") ->  | B84: 80
A85: =IF(D85=الصيادين!$C$1,COUNTIF($D$5:D85,D85),"") ->  | B85: 81
A86: =IF(D86=الصيادين!$C$1,COUNTIF($D$5:D86,D86),"") ->  | B86: 82
A87: =IF(D87=الصيادين!$C$1,COUNTIF($D$5:D87,D87),"") ->  | B87: 83
A88: =IF(D88=الصيادين!$C$1,COUNTIF($D$5:D88,D88),"") ->  | B88: 84
A89: =IF(D89=الصيادين!$C$1,COUNTIF($D$5:D89,D89),"") ->  | B89: 85
A90: =IF(D90=الصيادين!$C$1,COUNTIF($D$5:D90,D90),"") ->  | B90: 86
A91: =IF(D91=الصيادين!$C$1,COUNTIF($D$5:D91,D91),"") ->  | B91: 87
A92: =IF(D92=الصيادين!$C$1,COUNTIF($D$5:D92,D92),"") ->  | B92: 88
A93: =IF(D93=الصيادين!$C$1,COUNTIF($D$5:D93,D93),"") ->  | B93: 89
A94: =IF(D94=الصيادين!$C$1,COUNTIF($D$5:D94,D94),"") ->  | B94: 90
A95: =IF(D95=الصيادين!$C$1,COUNTIF($D$5:D95,D95),"") ->  | B95: 91
A96: =IF(D96=الصيادين!$C$1,COUNTIF($D$5:D96,D96),"") ->  | B96: 92
A97: =IF(D97=الصيادين!$C$1,COUNTIF($D$5:D97,D97),"") ->  | B97: 93
A98: =IF(D98=الصيادين!$C$1,COUNTIF($D$5:D98,D98),"") ->  | B98: 94
A99: =IF(D99=الصيادين!$C$1,COUNTIF($D$5:D99,D99),"") ->  | B99: 95
A100: =IF(D100=الصيادين!$C$1,COUNTIF($D$5:D100,D100),"") ->  | B100: 96
A101: =IF(D101=الصيادين!$C$1,COUNTIF($D$5:D101,D101),"") ->  | B101: 97
A102: =IF(D102=الصيادين!$C$1,COUNTIF($D$5:D102,D102),"") ->  | B102: 98
A103: =IF(D103=الصيادين!$C$1,COUNTIF($D$5:D103,D103),"") ->  | B103: 99
A104: =IF(D104=الصيادين!$C$1,COUNTIF($D$5:D104,D104),"") ->  | B104: 100
G105: =SUM(G5:G104) -> 0 | H105: =SUM(H5:H104) -> 0 | I105: =SUM(I5:I104) -> 0 | J105: =SUM(J5:J104) -> 0
C106: النقدى | E106: 400
C107: الاستيفاء | E107: 10
C108: الايرادات | E108: =J105 -> 0
C109: المدخول | E109: =E106+E107+E108 -> 410
C110: المصروفات | E110: =H105+I105 -> 0
C111: صافى المدخول | E111: =E109-E110 -> 410

Sheet 20
C2: 2020-01-01
B3: م | C3: تاريخ | D3: الاسم | E3: الوصف | F3: رقم الفاتورة | G3: شتات | I3: المصروفات والايرادات | K3: الدلالة
G4: مستحقة | H4: سداد | I4: مصروفات | J4: ايرادات
A5: =IF(D5=الصيادين!$C$1,COUNTIF($D$5:D5,D5),"") ->  | B5: 1
A6: =IF(D6=الصيادين!$C$1,COUNTIF($D$5:D6,D6),"") ->  | B6: 2
A7: =IF(D7=الصيادين!$C$1,COUNTIF($D$5:D7,D7),"") ->  | B7: 3
A8: =IF(D8=الصيادين!$C$1,COUNTIF($D$5:D8,D8),"") ->  | B8: 4
A9: =IF(D9=الصيادين!$C$1,COUNTIF($D$5:D9,D9),"") ->  | B9: 5
A10: =IF(D10=الصيادين!$C$1,COUNTIF($D$5:D10,D10),"") ->  | B10: 6
A11: =IF(D11=الصيادين!$C$1,COUNTIF($D$5:D11,D11),"") ->  | B11: 7
A12: =IF(D12=الصيادين!$C$1,COUNTIF($D$5:D12,D12),"") ->  | B12: 8
A13: =IF(D13=الصيادين!$C$1,COUNTIF($D$5:D13,D13),"") ->  | B13: 9
A14: =IF(D14=الصيادين!$C$1,COUNTIF($D$5:D14,D14),"") ->  | B14: 10
A15: =IF(D15=الصيادين!$C$1,COUNTIF($D$5:D15,D15),"") ->  | B15: 11
A16: =IF(D16=الصيادين!$C$1,COUNTIF($D$5:D16,D16),"") ->  | B16: 12
A17: =IF(D17=الصيادين!$C$1,COUNTIF($D$5:D17,D17),"") ->  | B17: 13
A18: =IF(D18=الصيادين!$C$1,COUNTIF($D$5:D18,D18),"") ->  | B18: 14
A19: =IF(D19=الصيادين!$C$1,COUNTIF($D$5:D19,D19),"") ->  | B19: 15
A20: =IF(D20=الصيادين!$C$1,COUNTIF($D$5:D20,D20),"") ->  | B20: 16
A21: =IF(D21=الصيادين!$C$1,COUNTIF($D$5:D21,D21),"") ->  | B21: 17
A22: =IF(D22=الصيادين!$C$1,COUNTIF($D$5:D22,D22),"") ->  | B22: 18
A23: =IF(D23=الصيادين!$C$1,COUNTIF($D$5:D23,D23),"") ->  | B23: 19
A24: =IF(D24=الصيادين!$C$1,COUNTIF($D$5:D24,D24),"") ->  | B24: 20
A25: =IF(D25=الصيادين!$C$1,COUNTIF($D$5:D25,D25),"") ->  | B25: 21
A26: =IF(D26=الصيادين!$C$1,COUNTIF($D$5:D26,D26),"") ->  | B26: 22
A27: =IF(D27=الصيادين!$C$1,COUNTIF($D$5:D27,D27),"") ->  | B27: 23
A28: =IF(D28=الصيادين!$C$1,COUNTIF($D$5:D28,D28),"") ->  | B28: 24
A29: =IF(D29=الصيادين!$C$1,COUNTIF($D$5:D29,D29),"") ->  | B29: 25
A30: =IF(D30=الصيادين!$C$1,COUNTIF($D$5:D30,D30),"") ->  | B30: 26
A31: =IF(D31=الصيادين!$C$1,COUNTIF($D$5:D31,D31),"") ->  | B31: 27
A32: =IF(D32=الصيادين!$C$1,COUNTIF($D$5:D32,D32),"") ->  | B32: 28
A33: =IF(D33=الصيادين!$C$1,COUNTIF($D$5:D33,D33),"") ->  | B33: 29
A34: =IF(D34=الصيادين!$C$1,COUNTIF($D$5:D34,D34),"") ->  | B34: 30
A35: =IF(D35=الصيادين!$C$1,COUNTIF($D$5:D35,D35),"") ->  | B35: 31
A36: =IF(D36=الصيادين!$C$1,COUNTIF($D$5:D36,D36),"") ->  | B36: 32
A37: =IF(D37=الصيادين!$C$1,COUNTIF($D$5:D37,D37),"") ->  | B37: 33
A38: =IF(D38=الصيادين!$C$1,COUNTIF($D$5:D38,D38),"") ->  | B38: 34
A39: =IF(D39=الصيادين!$C$1,COUNTIF($D$5:D39,D39),"") ->  | B39: 35
A40: =IF(D40=الصيادين!$C$1,COUNTIF($D$5:D40,D40),"") ->  | B40: 36
A41: =IF(D41=الصيادين!$C$1,COUNTIF($D$5:D41,D41),"") ->  | B41: 37
A42: =IF(D42=الصيادين!$C$1,COUNTIF($D$5:D42,D42),"") ->  | B42: 38
A43: =IF(D43=الصيادين!$C$1,COUNTIF($D$5:D43,D43),"") ->  | B43: 39
A44: =IF(D44=الصيادين!$C$1,COUNTIF($D$5:D44,D44),"") ->  | B44: 40
A45: =IF(D45=الصيادين!$C$1,COUNTIF($D$5:D45,D45),"") ->  | B45: 41
A46: =IF(D46=الصيادين!$C$1,COUNTIF($D$5:D46,D46),"") ->  | B46: 42
A47: =IF(D47=الصيادين!$C$1,COUNTIF($D$5:D47,D47),"") ->  | B47: 43
A48: =IF(D48=الصيادين!$C$1,COUNTIF($D$5:D48,D48),"") ->  | B48: 44
A49: =IF(D49=الصيادين!$C$1,COUNTIF($D$5:D49,D49),"") ->  | B49: 45
A50: =IF(D50=الصيادين!$C$1,COUNTIF($D$5:D50,D50),"") ->  | B50: 46
A51: =IF(D51=الصيادين!$C$1,COUNTIF($D$5:D51,D51),"") ->  | B51: 47
A52: =IF(D52=الصيادين!$C$1,COUNTIF($D$5:D52,D52),"") ->  | B52: 48
A53: =IF(D53=الصيادين!$C$1,COUNTIF($D$5:D53,D53),"") ->  | B53: 49
A54: =IF(D54=الصيادين!$C$1,COUNTIF($D$5:D54,D54),"") ->  | B54: 50
A55: =IF(D55=الصيادين!$C$1,COUNTIF($D$5:D55,D55),"") ->  | B55: 51
A56: =IF(D56=الصيادين!$C$1,COUNTIF($D$5:D56,D56),"") ->  | B56: 52
A57: =IF(D57=الصيادين!$C$1,COUNTIF($D$5:D57,D57),"") ->  | B57: 53
A58: =IF(D58=الصيادين!$C$1,COUNTIF($D$5:D58,D58),"") ->  | B58: 54
A59: =IF(D59=الصيادين!$C$1,COUNTIF($D$5:D59,D59),"") ->  | B59: 55
A60: =IF(D60=الصيادين!$C$1,COUNTIF($D$5:D60,D60),"") ->  | B60: 56
A61: =IF(D61=الصيادين!$C$1,COUNTIF($D$5:D61,D61),"") ->  | B61: 57
A62: =IF(D62=الصيادين!$C$1,COUNTIF($D$5:D62,D62),"") ->  | B62: 58
A63: =IF(D63=الصيادين!$C$1,COUNTIF($D$5:D63,D63),"") ->  | B63: 59
A64: =IF(D64=الصيادين!$C$1,COUNTIF($D$5:D64,D64),"") ->  | B64: 60
A65: =IF(D65=الصيادين!$C$1,COUNTIF($D$5:D65,D65),"") ->  | B65: 61
A66: =IF(D66=الصيادين!$C$1,COUNTIF($D$5:D66,D66),"") ->  | B66: 62
A67: =IF(D67=الصيادين!$C$1,COUNTIF($D$5:D67,D67),"") ->  | B67: 63
A68: =IF(D68=الصيادين!$C$1,COUNTIF($D$5:D68,D68),"") ->  | B68: 64
A69: =IF(D69=الصيادين!$C$1,COUNTIF($D$5:D69,D69),"") ->  | B69: 65
A70: =IF(D70=الصيادين!$C$1,COUNTIF($D$5:D70,D70),"") ->  | B70: 66
A71: =IF(D71=الصيادين!$C$1,COUNTIF($D$5:D71,D71),"") ->  | B71: 67
A72: =IF(D72=الصيادين!$C$1,COUNTIF($D$5:D72,D72),"") ->  | B72: 68
A73: =IF(D73=الصيادين!$C$1,COUNTIF($D$5:D73,D73),"") ->  | B73: 69
A74: =IF(D74=الصيادين!$C$1,COUNTIF($D$5:D74,D74),"") ->  | B74: 70
A75: =IF(D75=الصيادين!$C$1,COUNTIF($D$5:D75,D75),"") ->  | B75: 71
A76: =IF(D76=الصيادين!$C$1,COUNTIF($D$5:D76,D76),"") ->  | B76: 72
A77: =IF(D77=الصيادين!$C$1,COUNTIF($D$5:D77,D77),"") ->  | B77: 73
A78: =IF(D78=الصيادين!$C$1,COUNTIF($D$5:D78,D78),"") ->  | B78: 74
A79: =IF(D79=الصيادين!$C$1,COUNTIF($D$5:D79,D79),"") ->  | B79: 75
A80: =IF(D80=الصيادين!$C$1,COUNTIF($D$5:D80,D80),"") ->  | B80: 76
A81: =IF(D81=الصيادين!$C$1,COUNTIF($D$5:D81,D81),"") ->  | B81: 77
A82: =IF(D82=الصيادين!$C$1,COUNTIF($D$5:D82,D82),"") ->  | B82: 78
A83: =IF(D83=الصيادين!$C$1,COUNTIF($D$5:D83,D83),"") ->  | B83: 79
A84: =IF(D84=الصيادين!$C$1,COUNTIF($D$5:D84,D84),"") ->  | B84: 80
A85: =IF(D85=الصيادين!$C$1,COUNTIF($D$5:D85,D85),"") ->  | B85: 81
A86: =IF(D86=الصيادين!$C$1,COUNTIF($D$5:D86,D86),"") ->  | B86: 82
A87: =IF(D87=الصيادين!$C$1,COUNTIF($D$5:D87,D87),"") ->  | B87: 83
A88: =IF(D88=الصيادين!$C$1,COUNTIF($D$5:D88,D88),"") ->  | B88: 84
A89: =IF(D89=الصيادين!$C$1,COUNTIF($D$5:D89,D89),"") ->  | B89: 85
A90: =IF(D90=الصيادين!$C$1,COUNTIF($D$5:D90,D90),"") ->  | B90: 86
A91: =IF(D91=الصيادين!$C$1,COUNTIF($D$5:D91,D91),"") ->  | B91: 87
A92: =IF(D92=الصيادين!$C$1,COUNTIF($D$5:D92,D92),"") ->  | B92: 88
A93: =IF(D93=الصيادين!$C$1,COUNTIF($D$5:D93,D93),"") ->  | B93: 89
A94: =IF(D94=الصيادين!$C$1,COUNTIF($D$5:D94,D94),"") ->  | B94: 90
A95: =IF(D95=الصيادين!$C$1,COUNTIF($D$5:D95,D95),"") ->  | B95: 91
A96: =IF(D96=الصيادين!$C$1,COUNTIF($D$5:D96,D96),"") ->  | B96: 92
A97: =IF(D97=الصيادين!$C$1,COUNTIF($D$5:D97,D97),"") ->  | B97: 93
A98: =IF(D98=الصيادين!$C$1,COUNTIF($D$5:D98,D98),"") ->  | B98: 94
A99: =IF(D99=الصيادين!$C$1,COUNTIF($D$5:D99,D99),"") ->  | B99: 95
A100: =IF(D100=الصيادين!$C$1,COUNTIF($D$5:D100,D100),"") ->  | B100: 96
A101: =IF(D101=الصيادين!$C$1,COUNTIF($D$5:D101,D101),"") ->  | B101: 97
A102: =IF(D102=الصيادين!$C$1,COUNTIF($D$5:D102,D102),"") ->  | B102: 98
A103: =IF(D103=الصيادين!$C$1,COUNTIF($D$5:D103,D103),"") ->  | B103: 99
A104: =IF(D104=الصيادين!$C$1,COUNTIF($D$5:D104,D104),"") ->  | B104: 100
G105: =SUM(G5:G104) -> 0 | H105: =SUM(H5:H104) -> 0 | I105: =SUM(I5:I104) -> 0 | J105: =SUM(J5:J104) -> 0
C106: النقدى | E106: 400
C107: الاستيفاء | E107: 10
C108: الايرادات | E108: =J105 -> 0
C109: المدخول | E109: =E106+E107+E108 -> 410
C110: المصروفات | E110: =H105+I105 -> 0
C111: صافى المدخول | E111: =E109-E110 -> 410

Sheet 21
C2: 2020-01-01
B3: م | C3: تاريخ | D3: الاسم | E3: الوصف | F3: رقم الفاتورة | G3: شتات | I3: المصروفات والايرادات | K3: الدلالة
G4: مستحقة | H4: سداد | I4: مصروفات | J4: ايرادات
A5: =IF(D5=الصيادين!$C$1,COUNTIF($D$5:D5,D5),"") ->  | B5: 1
A6: =IF(D6=الصيادين!$C$1,COUNTIF($D$5:D6,D6),"") ->  | B6: 2
A7: =IF(D7=الصيادين!$C$1,COUNTIF($D$5:D7,D7),"") ->  | B7: 3
A8: =IF(D8=الصيادين!$C$1,COUNTIF($D$5:D8,D8),"") ->  | B8: 4
A9: =IF(D9=الصيادين!$C$1,COUNTIF($D$5:D9,D9),"") ->  | B9: 5
A10: =IF(D10=الصيادين!$C$1,COUNTIF($D$5:D10,D10),"") ->  | B10: 6
A11: =IF(D11=الصيادين!$C$1,COUNTIF($D$5:D11,D11),"") ->  | B11: 7
A12: =IF(D12=الصيادين!$C$1,COUNTIF($D$5:D12,D12),"") ->  | B12: 8
A13: =IF(D13=الصيادين!$C$1,COUNTIF($D$5:D13,D13),"") ->  | B13: 9
A14: =IF(D14=الصيادين!$C$1,COUNTIF($D$5:D14,D14),"") ->  | B14: 10
A15: =IF(D15=الصيادين!$C$1,COUNTIF($D$5:D15,D15),"") ->  | B15: 11
A16: =IF(D16=الصيادين!$C$1,COUNTIF($D$5:D16,D16),"") ->  | B16: 12
A17: =IF(D17=الصيادين!$C$1,COUNTIF($D$5:D17,D17),"") ->  | B17: 13
A18: =IF(D18=الصيادين!$C$1,COUNTIF($D$5:D18,D18),"") ->  | B18: 14
A19: =IF(D19=الصيادين!$C$1,COUNTIF($D$5:D19,D19),"") ->  | B19: 15
A20: =IF(D20=الصيادين!$C$1,COUNTIF($D$5:D20,D20),"") ->  | B20: 16
A21: =IF(D21=الصيادين!$C$1,COUNTIF($D$5:D21,D21),"") ->  | B21: 17
A22: =IF(D22=الصيادين!$C$1,COUNTIF($D$5:D22,D22),"") ->  | B22: 18
A23: =IF(D23=الصيادين!$C$1,COUNTIF($D$5:D23,D23),"") ->  | B23: 19
A24: =IF(D24=الصيادين!$C$1,COUNTIF($D$5:D24,D24),"") ->  | B24: 20
A25: =IF(D25=الصيادين!$C$1,COUNTIF($D$5:D25,D25),"") ->  | B25: 21
A26: =IF(D26=الصيادين!$C$1,COUNTIF($D$5:D26,D26),"") ->  | B26: 22
A27: =IF(D27=الصيادين!$C$1,COUNTIF($D$5:D27,D27),"") ->  | B27: 23
A28: =IF(D28=الصيادين!$C$1,COUNTIF($D$5:D28,D28),"") ->  | B28: 24
A29: =IF(D29=الصيادين!$C$1,COUNTIF($D$5:D29,D29),"") ->  | B29: 25
A30: =IF(D30=الصيادين!$C$1,COUNTIF($D$5:D30,D30),"") ->  | B30: 26
A31: =IF(D31=الصيادين!$C$1,COUNTIF($D$5:D31,D31),"") ->  | B31: 27
A32: =IF(D32=الصيادين!$C$1,COUNTIF($D$5:D32,D32),"") ->  | B32: 28
A33: =IF(D33=الصيادين!$C$1,COUNTIF($D$5:D33,D33),"") ->  | B33: 29
A34: =IF(D34=الصيادين!$C$1,COUNTIF($D$5:D34,D34),"") ->  | B34: 30
A35: =IF(D35=الصيادين!$C$1,COUNTIF($D$5:D35,D35),"") ->  | B35: 31
A36: =IF(D36=الصيادين!$C$1,COUNTIF($D$5:D36,D36),"") ->  | B36: 32
A37: =IF(D37=الصيادين!$C$1,COUNTIF($D$5:D37,D37),"") ->  | B37: 33
A38: =IF(D38=الصيادين!$C$1,COUNTIF($D$5:D38,D38),"") ->  | B38: 34
A39: =IF(D39=الصيادين!$C$1,COUNTIF($D$5:D39,D39),"") ->  | B39: 35
A40: =IF(D40=الصيادين!$C$1,COUNTIF($D$5:D40,D40),"") ->  | B40: 36
A41: =IF(D41=الصيادين!$C$1,COUNTIF($D$5:D41,D41),"") ->  | B41: 37
A42: =IF(D42=الصيادين!$C$1,COUNTIF($D$5:D42,D42),"") ->  | B42: 38
A43: =IF(D43=الصيادين!$C$1,COUNTIF($D$5:D43,D43),"") ->  | B43: 39
A44: =IF(D44=الصيادين!$C$1,COUNTIF($D$5:D44,D44),"") ->  | B44: 40
A45: =IF(D45=الصيادين!$C$1,COUNTIF($D$5:D45,D45),"") ->  | B45: 41
A46: =IF(D46=الصيادين!$C$1,COUNTIF($D$5:D46,D46),"") ->  | B46: 42
A47: =IF(D47=الصيادين!$C$1,COUNTIF($D$5:D47,D47),"") ->  | B47: 43
A48: =IF(D48=الصيادين!$C$1,COUNTIF($D$5:D48,D48),"") ->  | B48: 44
A49: =IF(D49=الصيادين!$C$1,COUNTIF($D$5:D49,D49),"") ->  | B49: 45
A50: =IF(D50=الصيادين!$C$1,COUNTIF($D$5:D50,D50),"") ->  | B50: 46
A51: =IF(D51=الصيادين!$C$1,COUNTIF($D$5:D51,D51),"") ->  | B51: 47
A52: =IF(D52=الصيادين!$C$1,COUNTIF($D$5:D52,D52),"") ->  | B52: 48
A53: =IF(D53=الصيادين!$C$1,COUNTIF($D$5:D53,D53),"") ->  | B53: 49
A54: =IF(D54=الصيادين!$C$1,COUNTIF($D$5:D54,D54),"") ->  | B54: 50
A55: =IF(D55=الصيادين!$C$1,COUNTIF($D$5:D55,D55),"") ->  | B55: 51
A56: =IF(D56=الصيادين!$C$1,COUNTIF($D$5:D56,D56),"") ->  | B56: 52
A57: =IF(D57=الصيادين!$C$1,COUNTIF($D$5:D57,D57),"") ->  | B57: 53
A58: =IF(D58=الصيادين!$C$1,COUNTIF($D$5:D58,D58),"") ->  | B58: 54
A59: =IF(D59=الصيادين!$C$1,COUNTIF($D$5:D59,D59),"") ->  | B59: 55
A60: =IF(D60=الصيادين!$C$1,COUNTIF($D$5:D60,D60),"") ->  | B60: 56
A61: =IF(D61=الصيادين!$C$1,COUNTIF($D$5:D61,D61),"") ->  | B61: 57
A62: =IF(D62=الصيادين!$C$1,COUNTIF($D$5:D62,D62),"") ->  | B62: 58
A63: =IF(D63=الصيادين!$C$1,COUNTIF($D$5:D63,D63),"") ->  | B63: 59
A64: =IF(D64=الصيادين!$C$1,COUNTIF($D$5:D64,D64),"") ->  | B64: 60
A65: =IF(D65=الصيادين!$C$1,COUNTIF($D$5:D65,D65),"") ->  | B65: 61
A66: =IF(D66=الصيادين!$C$1,COUNTIF($D$5:D66,D66),"") ->  | B66: 62
A67: =IF(D67=الصيادين!$C$1,COUNTIF($D$5:D67,D67),"") ->  | B67: 63
A68: =IF(D68=الصيادين!$C$1,COUNTIF($D$5:D68,D68),"") ->  | B68: 64
A69: =IF(D69=الصيادين!$C$1,COUNTIF($D$5:D69,D69),"") ->  | B69: 65
A70: =IF(D70=الصيادين!$C$1,COUNTIF($D$5:D70,D70),"") ->  | B70: 66
A71: =IF(D71=الصيادين!$C$1,COUNTIF($D$5:D71,D71),"") ->  | B71: 67
A72: =IF(D72=الصيادين!$C$1,COUNTIF($D$5:D72,D72),"") ->  | B72: 68
A73: =IF(D73=الصيادين!$C$1,COUNTIF($D$5:D73,D73),"") ->  | B73: 69
A74: =IF(D74=الصيادين!$C$1,COUNTIF($D$5:D74,D74),"") ->  | B74: 70
A75: =IF(D75=الصيادين!$C$1,COUNTIF($D$5:D75,D75),"") ->  | B75: 71
A76: =IF(D76=الصيادين!$C$1,COUNTIF($D$5:D76,D76),"") ->  | B76: 72
A77: =IF(D77=الصيادين!$C$1,COUNTIF($D$5:D77,D77),"") ->  | B77: 73
A78: =IF(D78=الصيادين!$C$1,COUNTIF($D$5:D78,D78),"") ->  | B78: 74
A79: =IF(D79=الصيادين!$C$1,COUNTIF($D$5:D79,D79),"") ->  | B79: 75
A80: =IF(D80=الصيادين!$C$1,COUNTIF($D$5:D80,D80),"") ->  | B80: 76
A81: =IF(D81=الصيادين!$C$1,COUNTIF($D$5:D81,D81),"") ->  | B81: 77
A82: =IF(D82=الصيادين!$C$1,COUNTIF($D$5:D82,D82),"") ->  | B82: 78
A83: =IF(D83=الصيادين!$C$1,COUNTIF($D$5:D83,D83),"") ->  | B83: 79
A84: =IF(D84=الصيادين!$C$1,COUNTIF($D$5:D84,D84),"") ->  | B84: 80
A85: =IF(D85=الصيادين!$C$1,COUNTIF($D$5:D85,D85),"") ->  | B85: 81
A86: =IF(D86=الصيادين!$C$1,COUNTIF($D$5:D86,D86),"") ->  | B86: 82
A87: =IF(D87=الصيادين!$C$1,COUNTIF($D$5:D87,D87),"") ->  | B87: 83
A88: =IF(D88=الصيادين!$C$1,COUNTIF($D$5:D88,D88),"") ->  | B88: 84
A89: =IF(D89=الصيادين!$C$1,COUNTIF($D$5:D89,D89),"") ->  | B89: 85
A90: =IF(D90=الصيادين!$C$1,COUNTIF($D$5:D90,D90),"") ->  | B90: 86
A91: =IF(D91=الصيادين!$C$1,COUNTIF($D$5:D91,D91),"") ->  | B91: 87
A92: =IF(D92=الصيادين!$C$1,COUNTIF($D$5:D92,D92),"") ->  | B92: 88
A93: =IF(D93=الصيادين!$C$1,COUNTIF($D$5:D93,D93),"") ->  | B93: 89
A94: =IF(D94=الصيادين!$C$1,COUNTIF($D$5:D94,D94),"") ->  | B94: 90
A95: =IF(D95=الصيادين!$C$1,COUNTIF($D$5:D95,D95),"") ->  | B95: 91
A96: =IF(D96=الصيادين!$C$1,COUNTIF($D$5:D96,D96),"") ->  | B96: 92
A97: =IF(D97=الصيادين!$C$1,COUNTIF($D$5:D97,D97),"") ->  | B97: 93
A98: =IF(D98=الصيادين!$C$1,COUNTIF($D$5:D98,D98),"") ->  | B98: 94
A99: =IF(D99=الصيادين!$C$1,COUNTIF($D$5:D99,D99),"") ->  | B99: 95
A100: =IF(D100=الصيادين!$C$1,COUNTIF($D$5:D100,D100),"") ->  | B100: 96
A101: =IF(D101=الصيادين!$C$1,COUNTIF($D$5:D101,D101),"") ->  | B101: 97
A102: =IF(D102=الصيادين!$C$1,COUNTIF($D$5:D102,D102),"") ->  | B102: 98
A103: =IF(D103=الصيادين!$C$1,COUNTIF($D$5:D103,D103),"") ->  | B103: 99
A104: =IF(D104=الصيادين!$C$1,COUNTIF($D$5:D104,D104),"") ->  | B104: 100
G105: =SUM(G5:G104) -> 0 | H105: =SUM(H5:H104) -> 0 | I105: =SUM(I5:I104) -> 0 | J105: =SUM(J5:J104) -> 0
C106: النقدى | E106: 400
C107: الاستيفاء | E107: 10
C108: الايرادات | E108: =J105 -> 0
C109: المدخول | E109: =E106+E107+E108 -> 410
C110: المصروفات | E110: =H105+I105 -> 0
C111: صافى المدخول | E111: =E109-E110 -> 410

Sheet 22
C2: 2020-01-01
B3: م | C3: تاريخ | D3: الاسم | E3: الوصف | F3: رقم الفاتورة | G3: شتات | I3: المصروفات والايرادات | K3: الدلالة
G4: مستحقة | H4: سداد | I4: مصروفات | J4: ايرادات
A5: =IF(D5=الصيادين!$C$1,COUNTIF($D$5:D5,D5),"") ->  | B5: 1
A6: =IF(D6=الصيادين!$C$1,COUNTIF($D$5:D6,D6),"") ->  | B6: 2
A7: =IF(D7=الصيادين!$C$1,COUNTIF($D$5:D7,D7),"") ->  | B7: 3
A8: =IF(D8=الصيادين!$C$1,COUNTIF($D$5:D8,D8),"") ->  | B8: 4
A9: =IF(D9=الصيادين!$C$1,COUNTIF($D$5:D9,D9),"") ->  | B9: 5
A10: =IF(D10=الصيادين!$C$1,COUNTIF($D$5:D10,D10),"") ->  | B10: 6
A11: =IF(D11=الصيادين!$C$1,COUNTIF($D$5:D11,D11),"") ->  | B11: 7
A12: =IF(D12=الصيادين!$C$1,COUNTIF($D$5:D12,D12),"") ->  | B12: 8
A13: =IF(D13=الصيادين!$C$1,COUNTIF($D$5:D13,D13),"") ->  | B13: 9
A14: =IF(D14=الصيادين!$C$1,COUNTIF($D$5:D14,D14),"") ->  | B14: 10
A15: =IF(D15=الصيادين!$C$1,COUNTIF($D$5:D15,D15),"") ->  | B15: 11
A16: =IF(D16=الصيادين!$C$1,COUNTIF($D$5:D16,D16),"") ->  | B16: 12
A17: =IF(D17=الصيادين!$C$1,COUNTIF($D$5:D17,D17),"") ->  | B17: 13
A18: =IF(D18=الصيادين!$C$1,COUNTIF($D$5:D18,D18),"") ->  | B18: 14
A19: =IF(D19=الصيادين!$C$1,COUNTIF($D$5:D19,D19),"") ->  | B19: 15
A20: =IF(D20=الصيادين!$C$1,COUNTIF($D$5:D20,D20),"") ->  | B20: 16
A21: =IF(D21=الصيادين!$C$1,COUNTIF($D$5:D21,D21),"") ->  | B21: 17
A22: =IF(D22=الصيادين!$C$1,COUNTIF($D$5:D22,D22),"") ->  | B22: 18
A23: =IF(D23=الصيادين!$C$1,COUNTIF($D$5:D23,D23),"") ->  | B23: 19
A24: =IF(D24=الصيادين!$C$1,COUNTIF($D$5:D24,D24),"") ->  | B24: 20
A25: =IF(D25=الصيادين!$C$1,COUNTIF($D$5:D25,D25),"") ->  | B25: 21
A26: =IF(D26=الصيادين!$C$1,COUNTIF($D$5:D26,D26),"") ->  | B26: 22
A27: =IF(D27=الصيادين!$C$1,COUNTIF($D$5:D27,D27),"") ->  | B27: 23
A28: =IF(D28=الصيادين!$C$1,COUNTIF($D$5:D28,D28),"") ->  | B28: 24
A29: =IF(D29=الصيادين!$C$1,COUNTIF($D$5:D29,D29),"") ->  | B29: 25
A30: =IF(D30=الصيادين!$C$1,COUNTIF($D$5:D30,D30),"") ->  | B30: 26
A31: =IF(D31=الصيادين!$C$1,COUNTIF($D$5:D31,D31),"") ->  | B31: 27
A32: =IF(D32=الصيادين!$C$1,COUNTIF($D$5:D32,D32),"") ->  | B32: 28
A33: =IF(D33=الصيادين!$C$1,COUNTIF($D$5:D33,D33),"") ->  | B33: 29
A34: =IF(D34=الصيادين!$C$1,COUNTIF($D$5:D34,D34),"") ->  | B34: 30
A35: =IF(D35=الصيادين!$C$1,COUNTIF($D$5:D35,D35),"") ->  | B35: 31
A36: =IF(D36=الصيادين!$C$1,COUNTIF($D$5:D36,D36),"") ->  | B36: 32
A37: =IF(D37=الصيادين!$C$1,COUNTIF($D$5:D37,D37),"") ->  | B37: 33
A38: =IF(D38=الصيادين!$C$1,COUNTIF($D$5:D38,D38),"") ->  | B38: 34
A39: =IF(D39=الصيادين!$C$1,COUNTIF($D$5:D39,D39),"") ->  | B39: 35
A40: =IF(D40=الصيادين!$C$1,COUNTIF($D$5:D40,D40),"") ->  | B40: 36
A41: =IF(D41=الصيادين!$C$1,COUNTIF($D$5:D41,D41),"") ->  | B41: 37
A42: =IF(D42=الصيادين!$C$1,COUNTIF($D$5:D42,D42),"") ->  | B42: 38
A43: =IF(D43=الصيادين!$C$1,COUNTIF($D$5:D43,D43),"") ->  | B43: 39
A44: =IF(D44=الصيادين!$C$1,COUNTIF($D$5:D44,D44),"") ->  | B44: 40
A45: =IF(D45=الصيادين!$C$1,COUNTIF($D$5:D45,D45),"") ->  | B45: 41
A46: =IF(D46=الصيادين!$C$1,COUNTIF($D$5:D46,D46),"") ->  | B46: 42
A47: =IF(D47=الصيادين!$C$1,COUNTIF($D$5:D47,D47),"") ->  | B47: 43
A48: =IF(D48=الصيادين!$C$1,COUNTIF($D$5:D48,D48),"") ->  | B48: 44
A49: =IF(D49=الصيادين!$C$1,COUNTIF($D$5:D49,D49),"") ->  | B49: 45
A50: =IF(D50=الصيادين!$C$1,COUNTIF($D$5:D50,D50),"") ->  | B50: 46
A51: =IF(D51=الصيادين!$C$1,COUNTIF($D$5:D51,D51),"") ->  | B51: 47
A52: =IF(D52=الصيادين!$C$1,COUNTIF($D$5:D52,D52),"") ->  | B52: 48
A53: =IF(D53=الصيادين!$C$1,COUNTIF($D$5:D53,D53),"") ->  | B53: 49
A54: =IF(D54=الصيادين!$C$1,COUNTIF($D$5:D54,D54),"") ->  | B54: 50
A55: =IF(D55=الصيادين!$C$1,COUNTIF($D$5:D55,D55),"") ->  | B55: 51
A56: =IF(D56=الصيادين!$C$1,COUNTIF($D$5:D56,D56),"") ->  | B56: 52
A57: =IF(D57=الصيادين!$C$1,COUNTIF($D$5:D57,D57),"") ->  | B57: 53
A58: =IF(D58=الصيادين!$C$1,COUNTIF($D$5:D58,D58),"") ->  | B58: 54
A59: =IF(D59=الصيادين!$C$1,COUNTIF($D$5:D59,D59),"") ->  | B59: 55
A60: =IF(D60=الصيادين!$C$1,COUNTIF($D$5:D60,D60),"") ->  | B60: 56
A61: =IF(D61=الصيادين!$C$1,COUNTIF($D$5:D61,D61),"") ->  | B61: 57
A62: =IF(D62=الصيادين!$C$1,COUNTIF($D$5:D62,D62),"") ->  | B62: 58
A63: =IF(D63=الصيادين!$C$1,COUNTIF($D$5:D63,D63),"") ->  | B63: 59
A64: =IF(D64=الصيادين!$C$1,COUNTIF($D$5:D64,D64),"") ->  | B64: 60
A65: =IF(D65=الصيادين!$C$1,COUNTIF($D$5:D65,D65),"") ->  | B65: 61
A66: =IF(D66=الصيادين!$C$1,COUNTIF($D$5:D66,D66),"") ->  | B66: 62
A67: =IF(D67=الصيادين!$C$1,COUNTIF($D$5:D67,D67),"") ->  | B67: 63
A68: =IF(D68=الصيادين!$C$1,COUNTIF($D$5:D68,D68),"") ->  | B68: 64
A69: =IF(D69=الصيادين!$C$1,COUNTIF($D$5:D69,D69),"") ->  | B69: 65
A70: =IF(D70=الصيادين!$C$1,COUNTIF($D$5:D70,D70),"") ->  | B70: 66
A71: =IF(D71=الصيادين!$C$1,COUNTIF($D$5:D71,D71),"") ->  | B71: 67
A72: =IF(D72=الصيادين!$C$1,COUNTIF($D$5:D72,D72),"") ->  | B72: 68
A73: =IF(D73=الصيادين!$C$1,COUNTIF($D$5:D73,D73),"") ->  | B73: 69
A74: =IF(D74=الصيادين!$C$1,COUNTIF($D$5:D74,D74),"") ->  | B74: 70
A75: =IF(D75=الصيادين!$C$1,COUNTIF($D$5:D75,D75),"") ->  | B75: 71
A76: =IF(D76=الصيادين!$C$1,COUNTIF($D$5:D76,D76),"") ->  | B76: 72
A77: =IF(D77=الصيادين!$C$1,COUNTIF($D$5:D77,D77),"") ->  | B77: 73
A78: =IF(D78=الصيادين!$C$1,COUNTIF($D$5:D78,D78),"") ->  | B78: 74
A79: =IF(D79=الصيادين!$C$1,COUNTIF($D$5:D79,D79),"") ->  | B79: 75
A80: =IF(D80=الصيادين!$C$1,COUNTIF($D$5:D80,D80),"") ->  | B80: 76
A81: =IF(D81=الصيادين!$C$1,COUNTIF($D$5:D81,D81),"") ->  | B81: 77
A82: =IF(D82=الصيادين!$C$1,COUNTIF($D$5:D82,D82),"") ->  | B82: 78
A83: =IF(D83=الصيادين!$C$1,COUNTIF($D$5:D83,D83),"") ->  | B83: 79
A84: =IF(D84=الصيادين!$C$1,COUNTIF($D$5:D84,D84),"") ->  | B84: 80
A85: =IF(D85=الصيادين!$C$1,COUNTIF($D$5:D85,D85),"") ->  | B85: 81
A86: =IF(D86=الصيادين!$C$1,COUNTIF($D$5:D86,D86),"") ->  | B86: 82
A87: =IF(D87=الصيادين!$C$1,COUNTIF($D$5:D87,D87),"") ->  | B87: 83
A88: =IF(D88=الصيادين!$C$1,COUNTIF($D$5:D88,D88),"") ->  | B88: 84
A89: =IF(D89=الصيادين!$C$1,COUNTIF($D$5:D89,D89),"") ->  | B89: 85
A90: =IF(D90=الصيادين!$C$1,COUNTIF($D$5:D90,D90),"") ->  | B90: 86
A91: =IF(D91=الصيادين!$C$1,COUNTIF($D$5:D91,D91),"") ->  | B91: 87
A92: =IF(D92=الصيادين!$C$1,COUNTIF($D$5:D92,D92),"") ->  | B92: 88
A93: =IF(D93=الصيادين!$C$1,COUNTIF($D$5:D93,D93),"") ->  | B93: 89
A94: =IF(D94=الصيادين!$C$1,COUNTIF($D$5:D94,D94),"") ->  | B94: 90
A95: =IF(D95=الصيادين!$C$1,COUNTIF($D$5:D95,D95),"") ->  | B95: 91
A96: =IF(D96=الصيادين!$C$1,COUNTIF($D$5:D96,D96),"") ->  | B96: 92
A97: =IF(D97=الصيادين!$C$1,COUNTIF($D$5:D97,D97),"") ->  | B97: 93
A98: =IF(D98=الصيادين!$C$1,COUNTIF($D$5:D98,D98),"") ->  | B98: 94
A99: =IF(D99=الصيادين!$C$1,COUNTIF($D$5:D99,D99),"") ->  | B99: 95
A100: =IF(D100=الصيادين!$C$1,COUNTIF($D$5:D100,D100),"") ->  | B100: 96
A101: =IF(D101=الصيادين!$C$1,COUNTIF($D$5:D101,D101),"") ->  | B101: 97
A102: =IF(D102=الصيادين!$C$1,COUNTIF($D$5:D102,D102),"") ->  | B102: 98
A103: =IF(D103=الصيادين!$C$1,COUNTIF($D$5:D103,D103),"") ->  | B103: 99
A104: =IF(D104=الصيادين!$C$1,COUNTIF($D$5:D104,D104),"") ->  | B104: 100
G105: =SUM(G5:G104) -> 0 | H105: =SUM(H5:H104) -> 0 | I105: =SUM(I5:I104) -> 0 | J105: =SUM(J5:J104) -> 0
C106: النقدى | E106: 400
C107: الاستيفاء | E107: 10
C108: الايرادات | E108: =J105 -> 0
C109: المدخول | E109: =E106+E107+E108 -> 410
C110: المصروفات | E110: =H105+I105 -> 0
C111: صافى المدخول | E111: =E109-E110 -> 410

Sheet 23
C2: 2020-01-01
B3: م | C3: تاريخ | D3: الاسم | E3: الوصف | F3: رقم الفاتورة | G3: شتات | I3: المصروفات والايرادات | K3: الدلالة
G4: مستحقة | H4: سداد | I4: مصروفات | J4: ايرادات
A5: =IF(D5=الصيادين!$C$1,COUNTIF($D$5:D5,D5),"") ->  | B5: 1
A6: =IF(D6=الصيادين!$C$1,COUNTIF($D$5:D6,D6),"") ->  | B6: 2
A7: =IF(D7=الصيادين!$C$1,COUNTIF($D$5:D7,D7),"") ->  | B7: 3
A8: =IF(D8=الصيادين!$C$1,COUNTIF($D$5:D8,D8),"") ->  | B8: 4
A9: =IF(D9=الصيادين!$C$1,COUNTIF($D$5:D9,D9),"") ->  | B9: 5
A10: =IF(D10=الصيادين!$C$1,COUNTIF($D$5:D10,D10),"") ->  | B10: 6
A11: =IF(D11=الصيادين!$C$1,COUNTIF($D$5:D11,D11),"") ->  | B11: 7
A12: =IF(D12=الصيادين!$C$1,COUNTIF($D$5:D12,D12),"") ->  | B12: 8
A13: =IF(D13=الصيادين!$C$1,COUNTIF($D$5:D13,D13),"") ->  | B13: 9
A14: =IF(D14=الصيادين!$C$1,COUNTIF($D$5:D14,D14),"") ->  | B14: 10
A15: =IF(D15=الصيادين!$C$1,COUNTIF($D$5:D15,D15),"") ->  | B15: 11
A16: =IF(D16=الصيادين!$C$1,COUNTIF($D$5:D16,D16),"") ->  | B16: 12
A17: =IF(D17=الصيادين!$C$1,COUNTIF($D$5:D17,D17),"") ->  | B17: 13
A18: =IF(D18=الصيادين!$C$1,COUNTIF($D$5:D18,D18),"") ->  | B18: 14
A19: =IF(D19=الصيادين!$C$1,COUNTIF($D$5:D19,D19),"") ->  | B19: 15
A20: =IF(D20=الصيادين!$C$1,COUNTIF($D$5:D20,D20),"") ->  | B20: 16
A21: =IF(D21=الصيادين!$C$1,COUNTIF($D$5:D21,D21),"") ->  | B21: 17
A22: =IF(D22=الصيادين!$C$1,COUNTIF($D$5:D22,D22),"") ->  | B22: 18
A23: =IF(D23=الصيادين!$C$1,COUNTIF($D$5:D23,D23),"") ->  | B23: 19
A24: =IF(D24=الصيادين!$C$1,COUNTIF($D$5:D24,D24),"") ->  | B24: 20
A25: =IF(D25=الصيادين!$C$1,COUNTIF($D$5:D25,D25),"") ->  | B25: 21
A26: =IF(D26=الصيادين!$C$1,COUNTIF($D$5:D26,D26),"") ->  | B26: 22
A27: =IF(D27=الصيادين!$C$1,COUNTIF($D$5:D27,D27),"") ->  | B27: 23
A28: =IF(D28=الصيادين!$C$1,COUNTIF($D$5:D28,D28),"") ->  | B28: 24
A29: =IF(D29=الصيادين!$C$1,COUNTIF($D$5:D29,D29),"") ->  | B29: 25
A30: =IF(D30=الصيادين!$C$1,COUNTIF($D$5:D30,D30),"") ->  | B30: 26
A31: =IF(D31=الصيادين!$C$1,COUNTIF($D$5:D31,D31),"") ->  | B31: 27
A32: =IF(D32=الصيادين!$C$1,COUNTIF($D$5:D32,D32),"") ->  | B32: 28
A33: =IF(D33=الصيادين!$C$1,COUNTIF($D$5:D33,D33),"") ->  | B33: 29
A34: =IF(D34=الصيادين!$C$1,COUNTIF($D$5:D34,D34),"") ->  | B34: 30
A35: =IF(D35=الصيادين!$C$1,COUNTIF($D$5:D35,D35),"") ->  | B35: 31
A36: =IF(D36=الصيادين!$C$1,COUNTIF($D$5:D36,D36),"") ->  | B36: 32
A37: =IF(D37=الصيادين!$C$1,COUNTIF($D$5:D37,D37),"") ->  | B37: 33
A38: =IF(D38=الصيادين!$C$1,COUNTIF($D$5:D38,D38),"") ->  | B38: 34
A39: =IF(D39=الصيادين!$C$1,COUNTIF($D$5:D39,D39),"") ->  | B39: 35
A40: =IF(D40=الصيادين!$C$1,COUNTIF($D$5:D40,D40),"") ->  | B40: 36
A41: =IF(D41=الصيادين!$C$1,COUNTIF($D$5:D41,D41),"") ->  | B41: 37
A42: =IF(D42=الصيادين!$C$1,COUNTIF($D$5:D42,D42),"") ->  | B42: 38
A43: =IF(D43=الصيادين!$C$1,COUNTIF($D$5:D43,D43),"") ->  | B43: 39
A44: =IF(D44=الصيادين!$C$1,COUNTIF($D$5:D44,D44),"") ->  | B44: 40
A45: =IF(D45=الصيادين!$C$1,COUNTIF($D$5:D45,D45),"") ->  | B45: 41
A46: =IF(D46=الصيادين!$C$1,COUNTIF($D$5:D46,D46),"") ->  | B46: 42
A47: =IF(D47=الصيادين!$C$1,COUNTIF($D$5:D47,D47),"") ->  | B47: 43
A48: =IF(D48=الصيادين!$C$1,COUNTIF($D$5:D48,D48),"") ->  | B48: 44
A49: =IF(D49=الصيادين!$C$1,COUNTIF($D$5:D49,D49),"") ->  | B49: 45
A50: =IF(D50=الصيادين!$C$1,COUNTIF($D$5:D50,D50),"") ->  | B50: 46
A51: =IF(D51=الصيادين!$C$1,COUNTIF($D$5:D51,D51),"") ->  | B51: 47
A52: =IF(D52=الصيادين!$C$1,COUNTIF($D$5:D52,D52),"") ->  | B52: 48
A53: =IF(D53=الصيادين!$C$1,COUNTIF($D$5:D53,D53),"") ->  | B53: 49
A54: =IF(D54=الصيادين!$C$1,COUNTIF($D$5:D54,D54),"") ->  | B54: 50
A55: =IF(D55=الصيادين!$C$1,COUNTIF($D$5:D55,D55),"") ->  | B55: 51
A56: =IF(D56=الصيادين!$C$1,COUNTIF($D$5:D56,D56),"") ->  | B56: 52
A57: =IF(D57=الصيادين!$C$1,COUNTIF($D$5:D57,D57),"") ->  | B57: 53
A58: =IF(D58=الصيادين!$C$1,COUNTIF($D$5:D58,D58),"") ->  | B58: 54
A59: =IF(D59=الصيادين!$C$1,COUNTIF($D$5:D59,D59),"") ->  | B59: 55
A60: =IF(D60=الصيادين!$C$1,COUNTIF($D$5:D60,D60),"") ->  | B60: 56
A61: =IF(D61=الصيادين!$C$1,COUNTIF($D$5:D61,D61),"") ->  | B61: 57
A62: =IF(D62=الصيادين!$C$1,COUNTIF($D$5:D62,D62),"") ->  | B62: 58
A63: =IF(D63=الصيادين!$C$1,COUNTIF($D$5:D63,D63),"") ->  | B63: 59
A64: =IF(D64=الصيادين!$C$1,COUNTIF($D$5:D64,D64),"") ->  | B64: 60
A65: =IF(D65=الصيادين!$C$1,COUNTIF($D$5:D65,D65),"") ->  | B65: 61
A66: =IF(D66=الصيادين!$C$1,COUNTIF($D$5:D66,D66),"") ->  | B66: 62
A67: =IF(D67=الصيادين!$C$1,COUNTIF($D$5:D67,D67),"") ->  | B67: 63
A68: =IF(D68=الصيادين!$C$1,COUNTIF($D$5:D68,D68),"") ->  | B68: 64
A69: =IF(D69=الصيادين!$C$1,COUNTIF($D$5:D69,D69),"") ->  | B69: 65
A70: =IF(D70=الصيادين!$C$1,COUNTIF($D$5:D70,D70),"") ->  | B70: 66
A71: =IF(D71=الصيادين!$C$1,COUNTIF($D$5:D71,D71),"") ->  | B71: 67
A72: =IF(D72=الصيادين!$C$1,COUNTIF($D$5:D72,D72),"") ->  | B72: 68
A73: =IF(D73=الصيادين!$C$1,COUNTIF($D$5:D73,D73),"") ->  | B73: 69
A74: =IF(D74=الصيادين!$C$1,COUNTIF($D$5:D74,D74),"") ->  | B74: 70
A75: =IF(D75=الصيادين!$C$1,COUNTIF($D$5:D75,D75),"") ->  | B75: 71
A76: =IF(D76=الصيادين!$C$1,COUNTIF($D$5:D76,D76),"") ->  | B76: 72
A77: =IF(D77=الصيادين!$C$1,COUNTIF($D$5:D77,D77),"") ->  | B77: 73
A78: =IF(D78=الصيادين!$C$1,COUNTIF($D$5:D78,D78),"") ->  | B78: 74
A79: =IF(D79=الصيادين!$C$1,COUNTIF($D$5:D79,D79),"") ->  | B79: 75
A80: =IF(D80=الصيادين!$C$1,COUNTIF($D$5:D80,D80),"") ->  | B80: 76
A81: =IF(D81=الصيادين!$C$1,COUNTIF($D$5:D81,D81),"") ->  | B81: 77
A82: =IF(D82=الصيادين!$C$1,COUNTIF($D$5:D82,D82),"") ->  | B82: 78
A83: =IF(D83=الصيادين!$C$1,COUNTIF($D$5:D83,D83),"") ->  | B83: 79
A84: =IF(D84=الصيادين!$C$1,COUNTIF($D$5:D84,D84),"") ->  | B84: 80
A85: =IF(D85=الصيادين!$C$1,COUNTIF($D$5:D85,D85),"") ->  | B85: 81
A86: =IF(D86=الصيادين!$C$1,COUNTIF($D$5:D86,D86),"") ->  | B86: 82
A87: =IF(D87=الصيادين!$C$1,COUNTIF($D$5:D87,D87),"") ->  | B87: 83
A88: =IF(D88=الصيادين!$C$1,COUNTIF($D$5:D88,D88),"") ->  | B88: 84
A89: =IF(D89=الصيادين!$C$1,COUNTIF($D$5:D89,D89),"") ->  | B89: 85
A90: =IF(D90=الصيادين!$C$1,COUNTIF($D$5:D90,D90),"") ->  | B90: 86
A91: =IF(D91=الصيادين!$C$1,COUNTIF($D$5:D91,D91),"") ->  | B91: 87
A92: =IF(D92=الصيادين!$C$1,COUNTIF($D$5:D92,D92),"") ->  | B92: 88
A93: =IF(D93=الصيادين!$C$1,COUNTIF($D$5:D93,D93),"") ->  | B93: 89
A94: =IF(D94=الصيادين!$C$1,COUNTIF($D$5:D94,D94),"") ->  | B94: 90
A95: =IF(D95=الصيادين!$C$1,COUNTIF($D$5:D95,D95),"") ->  | B95: 91
A96: =IF(D96=الصيادين!$C$1,COUNTIF($D$5:D96,D96),"") ->  | B96: 92
A97: =IF(D97=الصيادين!$C$1,COUNTIF($D$5:D97,D97),"") ->  | B97: 93
A98: =IF(D98=الصيادين!$C$1,COUNTIF($D$5:D98,D98),"") ->  | B98: 94
A99: =IF(D99=الصيادين!$C$1,COUNTIF($D$5:D99,D99),"") ->  | B99: 95
A100: =IF(D100=الصيادين!$C$1,COUNTIF($D$5:D100,D100),"") ->  | B100: 96
A101: =IF(D101=الصيادين!$C$1,COUNTIF($D$5:D101,D101),"") ->  | B101: 97
A102: =IF(D102=الصيادين!$C$1,COUNTIF($D$5:D102,D102),"") ->  | B102: 98
A103: =IF(D103=الصيادين!$C$1,COUNTIF($D$5:D103,D103),"") ->  | B103: 99
A104: =IF(D104=الصيادين!$C$1,COUNTIF($D$5:D104,D104),"") ->  | B104: 100
G105: =SUM(G5:G104) -> 0 | H105: =SUM(H5:H104) -> 0 | I105: =SUM(I5:I104) -> 0 | J105: =SUM(J5:J104) -> 0
C106: النقدى | E106: 400
C107: الاستيفاء | E107: 10
C108: الايرادات | E108: =J105 -> 0
C109: المدخول | E109: =E106+E107+E108 -> 410
C110: المصروفات | E110: =H105+I105 -> 0
C111: صافى المدخول | E111: =E109-E110 -> 410

Sheet 24
C2: 2020-01-01
B3: م | C3: تاريخ | D3: الاسم | E3: الوصف | F3: رقم الفاتورة | G3: شتات | I3: المصروفات والايرادات | K3: الدلالة
G4: مستحقة | H4: سداد | I4: مصروفات | J4: ايرادات
A5: =IF(D5=الصيادين!$C$1,COUNTIF($D$5:D5,D5),"") ->  | B5: 1
A6: =IF(D6=الصيادين!$C$1,COUNTIF($D$5:D6,D6),"") ->  | B6: 2
A7: =IF(D7=الصيادين!$C$1,COUNTIF($D$5:D7,D7),"") ->  | B7: 3
A8: =IF(D8=الصيادين!$C$1,COUNTIF($D$5:D8,D8),"") ->  | B8: 4
A9: =IF(D9=الصيادين!$C$1,COUNTIF($D$5:D9,D9),"") ->  | B9: 5
A10: =IF(D10=الصيادين!$C$1,COUNTIF($D$5:D10,D10),"") ->  | B10: 6
A11: =IF(D11=الصيادين!$C$1,COUNTIF($D$5:D11,D11),"") ->  | B11: 7
A12: =IF(D12=الصيادين!$C$1,COUNTIF($D$5:D12,D12),"") ->  | B12: 8
A13: =IF(D13=الصيادين!$C$1,COUNTIF($D$5:D13,D13),"") ->  | B13: 9
A14: =IF(D14=الصيادين!$C$1,COUNTIF($D$5:D14,D14),"") ->  | B14: 10
A15: =IF(D15=الصيادين!$C$1,COUNTIF($D$5:D15,D15),"") ->  | B15: 11
A16: =IF(D16=الصيادين!$C$1,COUNTIF($D$5:D16,D16),"") ->  | B16: 12
A17: =IF(D17=الصيادين!$C$1,COUNTIF($D$5:D17,D17),"") ->  | B17: 13
A18: =IF(D18=الصيادين!$C$1,COUNTIF($D$5:D18,D18),"") ->  | B18: 14
A19: =IF(D19=الصيادين!$C$1,COUNTIF($D$5:D19,D19),"") ->  | B19: 15
A20: =IF(D20=الصيادين!$C$1,COUNTIF($D$5:D20,D20),"") ->  | B20: 16
A21: =IF(D21=الصيادين!$C$1,COUNTIF($D$5:D21,D21),"") ->  | B21: 17
A22: =IF(D22=الصيادين!$C$1,COUNTIF($D$5:D22,D22),"") ->  | B22: 18
A23: =IF(D23=الصيادين!$C$1,COUNTIF($D$5:D23,D23),"") ->  | B23: 19
A24: =IF(D24=الصيادين!$C$1,COUNTIF($D$5:D24,D24),"") ->  | B24: 20
A25: =IF(D25=الصيادين!$C$1,COUNTIF($D$5:D25,D25),"") ->  | B25: 21
A26: =IF(D26=الصيادين!$C$1,COUNTIF($D$5:D26,D26),"") ->  | B26: 22
A27: =IF(D27=الصيادين!$C$1,COUNTIF($D$5:D27,D27),"") ->  | B27: 23
A28: =IF(D28=الصيادين!$C$1,COUNTIF($D$5:D28,D28),"") ->  | B28: 24
A29: =IF(D29=الصيادين!$C$1,COUNTIF($D$5:D29,D29),"") ->  | B29: 25
A30: =IF(D30=الصيادين!$C$1,COUNTIF($D$5:D30,D30),"") ->  | B30: 26
A31: =IF(D31=الصيادين!$C$1,COUNTIF($D$5:D31,D31),"") ->  | B31: 27
A32: =IF(D32=الصيادين!$C$1,COUNTIF($D$5:D32,D32),"") ->  | B32: 28
A33: =IF(D33=الصيادين!$C$1,COUNTIF($D$5:D33,D33),"") ->  | B33: 29
A34: =IF(D34=الصيادين!$C$1,COUNTIF($D$5:D34,D34),"") ->  | B34: 30
A35: =IF(D35=الصيادين!$C$1,COUNTIF($D$5:D35,D35),"") ->  | B35: 31
A36: =IF(D36=الصيادين!$C$1,COUNTIF($D$5:D36,D36),"") ->  | B36: 32
A37: =IF(D37=الصيادين!$C$1,COUNTIF($D$5:D37,D37),"") ->  | B37: 33
A38: =IF(D38=الصيادين!$C$1,COUNTIF($D$5:D38,D38),"") ->  | B38: 34
A39: =IF(D39=الصيادين!$C$1,COUNTIF($D$5:D39,D39),"") ->  | B39: 35
A40: =IF(D40=الصيادين!$C$1,COUNTIF($D$5:D40,D40),"") ->  | B40: 36
A41: =IF(D41=الصيادين!$C$1,COUNTIF($D$5:D41,D41),"") ->  | B41: 37
A42: =IF(D42=الصيادين!$C$1,COUNTIF($D$5:D42,D42),"") ->  | B42: 38
A43: =IF(D43=الصيادين!$C$1,COUNTIF($D$5:D43,D43),"") ->  | B43: 39
A44: =IF(D44=الصيادين!$C$1,COUNTIF($D$5:D44,D44),"") ->  | B44: 40
A45: =IF(D45=الصيادين!$C$1,COUNTIF($D$5:D45,D45),"") ->  | B45: 41
A46: =IF(D46=الصيادين!$C$1,COUNTIF($D$5:D46,D46),"") ->  | B46: 42
A47: =IF(D47=الصيادين!$C$1,COUNTIF($D$5:D47,D47),"") ->  | B47: 43
A48: =IF(D48=الصيادين!$C$1,COUNTIF($D$5:D48,D48),"") ->  | B48: 44
A49: =IF(D49=الصيادين!$C$1,COUNTIF($D$5:D49,D49),"") ->  | B49: 45
A50: =IF(D50=الصيادين!$C$1,COUNTIF($D$5:D50,D50),"") ->  | B50: 46
A51: =IF(D51=الصيادين!$C$1,COUNTIF($D$5:D51,D51),"") ->  | B51: 47
A52: =IF(D52=الصيادين!$C$1,COUNTIF($D$5:D52,D52),"") ->  | B52: 48
A53: =IF(D53=الصيادين!$C$1,COUNTIF($D$5:D53,D53),"") ->  | B53: 49
A54: =IF(D54=الصيادين!$C$1,COUNTIF($D$5:D54,D54),"") ->  | B54: 50
A55: =IF(D55=الصيادين!$C$1,COUNTIF($D$5:D55,D55),"") ->  | B55: 51
A56: =IF(D56=الصيادين!$C$1,COUNTIF($D$5:D56,D56),"") ->  | B56: 52
A57: =IF(D57=الصيادين!$C$1,COUNTIF($D$5:D57,D57),"") ->  | B57: 53
A58: =IF(D58=الصيادين!$C$1,COUNTIF($D$5:D58,D58),"") ->  | B58: 54
A59: =IF(D59=الصيادين!$C$1,COUNTIF($D$5:D59,D59),"") ->  | B59: 55
A60: =IF(D60=الصيادين!$C$1,COUNTIF($D$5:D60,D60),"") ->  | B60: 56
A61: =IF(D61=الصيادين!$C$1,COUNTIF($D$5:D61,D61),"") ->  | B61: 57
A62: =IF(D62=الصيادين!$C$1,COUNTIF($D$5:D62,D62),"") ->  | B62: 58
A63: =IF(D63=الصيادين!$C$1,COUNTIF($D$5:D63,D63),"") ->  | B63: 59
A64: =IF(D64=الصيادين!$C$1,COUNTIF($D$5:D64,D64),"") ->  | B64: 60
A65: =IF(D65=الصيادين!$C$1,COUNTIF($D$5:D65,D65),"") ->  | B65: 61
A66: =IF(D66=الصيادين!$C$1,COUNTIF($D$5:D66,D66),"") ->  | B66: 62
A67: =IF(D67=الصيادين!$C$1,COUNTIF($D$5:D67,D67),"") ->  | B67: 63
A68: =IF(D68=الصيادين!$C$1,COUNTIF($D$5:D68,D68),"") ->  | B68: 64
A69: =IF(D69=الصيادين!$C$1,COUNTIF($D$5:D69,D69),"") ->  | B69: 65
A70: =IF(D70=الصيادين!$C$1,COUNTIF($D$5:D70,D70),"") ->  | B70: 66
A71: =IF(D71=الصيادين!$C$1,COUNTIF($D$5:D71,D71),"") ->  | B71: 67
A72: =IF(D72=الصيادين!$C$1,COUNTIF($D$5:D72,D72),"") ->  | B72: 68
A73: =IF(D73=الصيادين!$C$1,COUNTIF($D$5:D73,D73),"") ->  | B73: 69
A74: =IF(D74=الصيادين!$C$1,COUNTIF($D$5:D74,D74),"") ->  | B74: 70
A75: =IF(D75=الصيادين!$C$1,COUNTIF($D$5:D75,D75),"") ->  | B75: 71
A76: =IF(D76=الصيادين!$C$1,COUNTIF($D$5:D76,D76),"") ->  | B76: 72
A77: =IF(D77=الصيادين!$C$1,COUNTIF($D$5:D77,D77),"") ->  | B77: 73
A78: =IF(D78=الصيادين!$C$1,COUNTIF($D$5:D78,D78),"") ->  | B78: 74
A79: =IF(D79=الصيادين!$C$1,COUNTIF($D$5:D79,D79),"") ->  | B79: 75
A80: =IF(D80=الصيادين!$C$1,COUNTIF($D$5:D80,D80),"") ->  | B80: 76
A81: =IF(D81=الصيادين!$C$1,COUNTIF($D$5:D81,D81),"") ->  | B81: 77
A82: =IF(D82=الصيادين!$C$1,COUNTIF($D$5:D82,D82),"") ->  | B82: 78
A83: =IF(D83=الصيادين!$C$1,COUNTIF($D$5:D83,D83),"") ->  | B83: 79
A84: =IF(D84=الصيادين!$C$1,COUNTIF($D$5:D84,D84),"") ->  | B84: 80
A85: =IF(D85=الصيادين!$C$1,COUNTIF($D$5:D85,D85),"") ->  | B85: 81
A86: =IF(D86=الصيادين!$C$1,COUNTIF($D$5:D86,D86),"") ->  | B86: 82
A87: =IF(D87=الصيادين!$C$1,COUNTIF($D$5:D87,D87),"") ->  | B87: 83
A88: =IF(D88=الصيادين!$C$1,COUNTIF($D$5:D88,D88),"") ->  | B88: 84
A89: =IF(D89=الصيادين!$C$1,COUNTIF($D$5:D89,D89),"") ->  | B89: 85
A90: =IF(D90=الصيادين!$C$1,COUNTIF($D$5:D90,D90),"") ->  | B90: 86
A91: =IF(D91=الصيادين!$C$1,COUNTIF($D$5:D91,D91),"") ->  | B91: 87
A92: =IF(D92=الصيادين!$C$1,COUNTIF($D$5:D92,D92),"") ->  | B92: 88
A93: =IF(D93=الصيادين!$C$1,COUNTIF($D$5:D93,D93),"") ->  | B93: 89
A94: =IF(D94=الصيادين!$C$1,COUNTIF($D$5:D94,D94),"") ->  | B94: 90
A95: =IF(D95=الصيادين!$C$1,COUNTIF($D$5:D95,D95),"") ->  | B95: 91
A96: =IF(D96=الصيادين!$C$1,COUNTIF($D$5:D96,D96),"") ->  | B96: 92
A97: =IF(D97=الصيادين!$C$1,COUNTIF($D$5:D97,D97),"") ->  | B97: 93
A98: =IF(D98=الصيادين!$C$1,COUNTIF($D$5:D98,D98),"") ->  | B98: 94
A99: =IF(D99=الصيادين!$C$1,COUNTIF($D$5:D99,D99),"") ->  | B99: 95
A100: =IF(D100=الصيادين!$C$1,COUNTIF($D$5:D100,D100),"") ->  | B100: 96
A101: =IF(D101=الصيادين!$C$1,COUNTIF($D$5:D101,D101),"") ->  | B101: 97
A102: =IF(D102=الصيادين!$C$1,COUNTIF($D$5:D102,D102),"") ->  | B102: 98
A103: =IF(D103=الصيادين!$C$1,COUNTIF($D$5:D103,D103),"") ->  | B103: 99
A104: =IF(D104=الصيادين!$C$1,COUNTIF($D$5:D104,D104),"") ->  | B104: 100
G105: =SUM(G5:G104) -> 0 | H105: =SUM(H5:H104) -> 0 | I105: =SUM(I5:I104) -> 0 | J105: =SUM(J5:J104) -> 0
C106: النقدى | E106: 400
C107: الاستيفاء | E107: 10
C108: الايرادات | E108: =J105 -> 0
C109: المدخول | E109: =E106+E107+E108 -> 410
C110: المصروفات | E110: =H105+I105 -> 0
C111: صافى المدخول | E111: =E109-E110 -> 410

Sheet 25
C2: 2020-01-01
B3: م | C3: تاريخ | D3: الاسم | E3: الوصف | F3: رقم الفاتورة | G3: شتات | I3: المصروفات والايرادات | K3: الدلالة
G4: مستحقة | H4: سداد | I4: مصروفات | J4: ايرادات
A5: =IF(D5=الصيادين!$C$1,COUNTIF($D$5:D5,D5),"") ->  | B5: 1
A6: =IF(D6=الصيادين!$C$1,COUNTIF($D$5:D6,D6),"") ->  | B6: 2
A7: =IF(D7=الصيادين!$C$1,COUNTIF($D$5:D7,D7),"") ->  | B7: 3
A8: =IF(D8=الصيادين!$C$1,COUNTIF($D$5:D8,D8),"") ->  | B8: 4
A9: =IF(D9=الصيادين!$C$1,COUNTIF($D$5:D9,D9),"") ->  | B9: 5
A10: =IF(D10=الصيادين!$C$1,COUNTIF($D$5:D10,D10),"") ->  | B10: 6
A11: =IF(D11=الصيادين!$C$1,COUNTIF($D$5:D11,D11),"") ->  | B11: 7
A12: =IF(D12=الصيادين!$C$1,COUNTIF($D$5:D12,D12),"") ->  | B12: 8
A13: =IF(D13=الصيادين!$C$1,COUNTIF($D$5:D13,D13),"") ->  | B13: 9
A14: =IF(D14=الصيادين!$C$1,COUNTIF($D$5:D14,D14),"") ->  | B14: 10
A15: =IF(D15=الصيادين!$C$1,COUNTIF($D$5:D15,D15),"") ->  | B15: 11
A16: =IF(D16=الصيادين!$C$1,COUNTIF($D$5:D16,D16),"") ->  | B16: 12
A17: =IF(D17=الصيادين!$C$1,COUNTIF($D$5:D17,D17),"") ->  | B17: 13
A18: =IF(D18=الصيادين!$C$1,COUNTIF($D$5:D18,D18),"") ->  | B18: 14
A19: =IF(D19=الصيادين!$C$1,COUNTIF($D$5:D19,D19),"") ->  | B19: 15
A20: =IF(D20=الصيادين!$C$1,COUNTIF($D$5:D20,D20),"") ->  | B20: 16
A21: =IF(D21=الصيادين!$C$1,COUNTIF($D$5:D21,D21),"") ->  | B21: 17
A22: =IF(D22=الصيادين!$C$1,COUNTIF($D$5:D22,D22),"") ->  | B22: 18
A23: =IF(D23=الصيادين!$C$1,COUNTIF($D$5:D23,D23),"") ->  | B23: 19
A24: =IF(D24=الصيادين!$C$1,COUNTIF($D$5:D24,D24),"") ->  | B24: 20
A25: =IF(D25=الصيادين!$C$1,COUNTIF($D$5:D25,D25),"") ->  | B25: 21
A26: =IF(D26=الصيادين!$C$1,COUNTIF($D$5:D26,D26),"") ->  | B26: 22
A27: =IF(D27=الصيادين!$C$1,COUNTIF($D$5:D27,D27),"") ->  | B27: 23
A28: =IF(D28=الصيادين!$C$1,COUNTIF($D$5:D28,D28),"") ->  | B28: 24
A29: =IF(D29=الصيادين!$C$1,COUNTIF($D$5:D29,D29),"") ->  | B29: 25
A30: =IF(D30=الصيادين!$C$1,COUNTIF($D$5:D30,D30),"") ->  | B30: 26
A31: =IF(D31=الصيادين!$C$1,COUNTIF($D$5:D31,D31),"") ->  | B31: 27
A32: =IF(D32=الصيادين!$C$1,COUNTIF($D$5:D32,D32),"") ->  | B32: 28
A33: =IF(D33=الصيادين!$C$1,COUNTIF($D$5:D33,D33),"") ->  | B33: 29
A34: =IF(D34=الصيادين!$C$1,COUNTIF($D$5:D34,D34),"") ->  | B34: 30
A35: =IF(D35=الصيادين!$C$1,COUNTIF($D$5:D35,D35),"") ->  | B35: 31
A36: =IF(D36=الصيادين!$C$1,COUNTIF($D$5:D36,D36),"") ->  | B36: 32
A37: =IF(D37=الصيادين!$C$1,COUNTIF($D$5:D37,D37),"") ->  | B37: 33
A38: =IF(D38=الصيادين!$C$1,COUNTIF($D$5:D38,D38),"") ->  | B38: 34
A39: =IF(D39=الصيادين!$C$1,COUNTIF($D$5:D39,D39),"") ->  | B39: 35
A40: =IF(D40=الصيادين!$C$1,COUNTIF($D$5:D40,D40),"") ->  | B40: 36
A41: =IF(D41=الصيادين!$C$1,COUNTIF($D$5:D41,D41),"") ->  | B41: 37
A42: =IF(D42=الصيادين!$C$1,COUNTIF($D$5:D42,D42),"") ->  | B42: 38
A43: =IF(D43=الصيادين!$C$1,COUNTIF($D$5:D43,D43),"") ->  | B43: 39
A44: =IF(D44=الصيادين!$C$1,COUNTIF($D$5:D44,D44),"") ->  | B44: 40
A45: =IF(D45=الصيادين!$C$1,COUNTIF($D$5:D45,D45),"") ->  | B45: 41
A46: =IF(D46=الصيادين!$C$1,COUNTIF($D$5:D46,D46),"") ->  | B46: 42
A47: =IF(D47=الصيادين!$C$1,COUNTIF($D$5:D47,D47),"") ->  | B47: 43
A48: =IF(D48=الصيادين!$C$1,COUNTIF($D$5:D48,D48),"") ->  | B48: 44
A49: =IF(D49=الصيادين!$C$1,COUNTIF($D$5:D49,D49),"") ->  | B49: 45
A50: =IF(D50=الصيادين!$C$1,COUNTIF($D$5:D50,D50),"") ->  | B50: 46
A51: =IF(D51=الصيادين!$C$1,COUNTIF($D$5:D51,D51),"") ->  | B51: 47
A52: =IF(D52=الصيادين!$C$1,COUNTIF($D$5:D52,D52),"") ->  | B52: 48
A53: =IF(D53=الصيادين!$C$1,COUNTIF($D$5:D53,D53),"") ->  | B53: 49
A54: =IF(D54=الصيادين!$C$1,COUNTIF($D$5:D54,D54),"") ->  | B54: 50
A55: =IF(D55=الصيادين!$C$1,COUNTIF($D$5:D55,D55),"") ->  | B55: 51
A56: =IF(D56=الصيادين!$C$1,COUNTIF($D$5:D56,D56),"") ->  | B56: 52
A57: =IF(D57=الصيادين!$C$1,COUNTIF($D$5:D57,D57),"") ->  | B57: 53
A58: =IF(D58=الصيادين!$C$1,COUNTIF($D$5:D58,D58),"") ->  | B58: 54
A59: =IF(D59=الصيادين!$C$1,COUNTIF($D$5:D59,D59),"") ->  | B59: 55
A60: =IF(D60=الصيادين!$C$1,COUNTIF($D$5:D60,D60),"") ->  | B60: 56
A61: =IF(D61=الصيادين!$C$1,COUNTIF($D$5:D61,D61),"") ->  | B61: 57
A62: =IF(D62=الصيادين!$C$1,COUNTIF($D$5:D62,D62),"") ->  | B62: 58
A63: =IF(D63=الصيادين!$C$1,COUNTIF($D$5:D63,D63),"") ->  | B63: 59
A64: =IF(D64=الصيادين!$C$1,COUNTIF($D$5:D64,D64),"") ->  | B64: 60
A65: =IF(D65=الصيادين!$C$1,COUNTIF($D$5:D65,D65),"") ->  | B65: 61
A66: =IF(D66=الصيادين!$C$1,COUNTIF($D$5:D66,D66),"") ->  | B66: 62
A67: =IF(D67=الصيادين!$C$1,COUNTIF($D$5:D67,D67),"") ->  | B67: 63
A68: =IF(D68=الصيادين!$C$1,COUNTIF($D$5:D68,D68),"") ->  | B68: 64
A69: =IF(D69=الصيادين!$C$1,COUNTIF($D$5:D69,D69),"") ->  | B69: 65
A70: =IF(D70=الصيادين!$C$1,COUNTIF($D$5:D70,D70),"") ->  | B70: 66
A71: =IF(D71=الصيادين!$C$1,COUNTIF($D$5:D71,D71),"") ->  | B71: 67
A72: =IF(D72=الصيادين!$C$1,COUNTIF($D$5:D72,D72),"") ->  | B72: 68
A73: =IF(D73=الصيادين!$C$1,COUNTIF($D$5:D73,D73),"") ->  | B73: 69
A74: =IF(D74=الصيادين!$C$1,COUNTIF($D$5:D74,D74),"") ->  | B74: 70
A75: =IF(D75=الصيادين!$C$1,COUNTIF($D$5:D75,D75),"") ->  | B75: 71
A76: =IF(D76=الصيادين!$C$1,COUNTIF($D$5:D76,D76),"") ->  | B76: 72
A77: =IF(D77=الصيادين!$C$1,COUNTIF($D$5:D77,D77),"") ->  | B77: 73
A78: =IF(D78=الصيادين!$C$1,COUNTIF($D$5:D78,D78),"") ->  | B78: 74
A79: =IF(D79=الصيادين!$C$1,COUNTIF($D$5:D79,D79),"") ->  | B79: 75
A80: =IF(D80=الصيادين!$C$1,COUNTIF($D$5:D80,D80),"") ->  | B80: 76
A81: =IF(D81=الصيادين!$C$1,COUNTIF($D$5:D81,D81),"") ->  | B81: 77
A82: =IF(D82=الصيادين!$C$1,COUNTIF($D$5:D82,D82),"") ->  | B82: 78
A83: =IF(D83=الصيادين!$C$1,COUNTIF($D$5:D83,D83),"") ->  | B83: 79
A84: =IF(D84=الصيادين!$C$1,COUNTIF($D$5:D84,D84),"") ->  | B84: 80
A85: =IF(D85=الصيادين!$C$1,COUNTIF($D$5:D85,D85),"") ->  | B85: 81
A86: =IF(D86=الصيادين!$C$1,COUNTIF($D$5:D86,D86),"") ->  | B86: 82
A87: =IF(D87=الصيادين!$C$1,COUNTIF($D$5:D87,D87),"") ->  | B87: 83
A88: =IF(D88=الصيادين!$C$1,COUNTIF($D$5:D88,D88),"") ->  | B88: 84
A89: =IF(D89=الصيادين!$C$1,COUNTIF($D$5:D89,D89),"") ->  | B89: 85
A90: =IF(D90=الصيادين!$C$1,COUNTIF($D$5:D90,D90),"") ->  | B90: 86
A91: =IF(D91=الصيادين!$C$1,COUNTIF($D$5:D91,D91),"") ->  | B91: 87
A92: =IF(D92=الصيادين!$C$1,COUNTIF($D$5:D92,D92),"") ->  | B92: 88
A93: =IF(D93=الصيادين!$C$1,COUNTIF($D$5:D93,D93),"") ->  | B93: 89
A94: =IF(D94=الصيادين!$C$1,COUNTIF($D$5:D94,D94),"") ->  | B94: 90
A95: =IF(D95=الصيادين!$C$1,COUNTIF($D$5:D95,D95),"") ->  | B95: 91
A96: =IF(D96=الصيادين!$C$1,COUNTIF($D$5:D96,D96),"") ->  | B96: 92
A97: =IF(D97=الصيادين!$C$1,COUNTIF($D$5:D97,D97),"") ->  | B97: 93
A98: =IF(D98=الصيادين!$C$1,COUNTIF($D$5:D98,D98),"") ->  | B98: 94
A99: =IF(D99=الصيادين!$C$1,COUNTIF($D$5:D99,D99),"") ->  | B99: 95
A100: =IF(D100=الصيادين!$C$1,COUNTIF($D$5:D100,D100),"") ->  | B100: 96
A101: =IF(D101=الصيادين!$C$1,COUNTIF($D$5:D101,D101),"") ->  | B101: 97
A102: =IF(D102=الصيادين!$C$1,COUNTIF($D$5:D102,D102),"") ->  | B102: 98
A103: =IF(D103=الصيادين!$C$1,COUNTIF($D$5:D103,D103),"") ->  | B103: 99
A104: =IF(D104=الصيادين!$C$1,COUNTIF($D$5:D104,D104),"") ->  | B104: 100
G105: =SUM(G5:G104) -> 0 | H105: =SUM(H5:H104) -> 0 | I105: =SUM(I5:I104) -> 0 | J105: =SUM(J5:J104) -> 0
C106: النقدى | E106: 400
C107: الاستيفاء | E107: 10
C108: الايرادات | E108: =J105 -> 0
C109: المدخول | E109: =E106+E107+E108 -> 410
C110: المصروفات | E110: =H105+I105 -> 0
C111: صافى المدخول | E111: =E109-E110 -> 410

Sheet 26
C2: 2020-01-01
B3: م | C3: تاريخ | D3: الاسم | E3: الوصف | F3: رقم الفاتورة | G3: شتات | I3: المصروفات والايرادات | K3: الدلالة
G4: مستحقة | H4: سداد | I4: مصروفات | J4: ايرادات
A5: =IF(D5=الصيادين!$C$1,COUNTIF($D$5:D5,D5),"") ->  | B5: 1
A6: =IF(D6=الصيادين!$C$1,COUNTIF($D$5:D6,D6),"") ->  | B6: 2
A7: =IF(D7=الصيادين!$C$1,COUNTIF($D$5:D7,D7),"") ->  | B7: 3
A8: =IF(D8=الصيادين!$C$1,COUNTIF($D$5:D8,D8),"") ->  | B8: 4
A9: =IF(D9=الصيادين!$C$1,COUNTIF($D$5:D9,D9),"") ->  | B9: 5
A10: =IF(D10=الصيادين!$C$1,COUNTIF($D$5:D10,D10),"") ->  | B10: 6
A11: =IF(D11=الصيادين!$C$1,COUNTIF($D$5:D11,D11),"") ->  | B11: 7
A12: =IF(D12=الصيادين!$C$1,COUNTIF($D$5:D12,D12),"") ->  | B12: 8
A13: =IF(D13=الصيادين!$C$1,COUNTIF($D$5:D13,D13),"") ->  | B13: 9
A14: =IF(D14=الصيادين!$C$1,COUNTIF($D$5:D14,D14),"") ->  | B14: 10
A15: =IF(D15=الصيادين!$C$1,COUNTIF($D$5:D15,D15),"") ->  | B15: 11
A16: =IF(D16=الصيادين!$C$1,COUNTIF($D$5:D16,D16),"") ->  | B16: 12
A17: =IF(D17=الصيادين!$C$1,COUNTIF($D$5:D17,D17),"") ->  | B17: 13
A18: =IF(D18=الصيادين!$C$1,COUNTIF($D$5:D18,D18),"") ->  | B18: 14
A19: =IF(D19=الصيادين!$C$1,COUNTIF($D$5:D19,D19),"") ->  | B19: 15
A20: =IF(D20=الصيادين!$C$1,COUNTIF($D$5:D20,D20),"") ->  | B20: 16
A21: =IF(D21=الصيادين!$C$1,COUNTIF($D$5:D21,D21),"") ->  | B21: 17
A22: =IF(D22=الصيادين!$C$1,COUNTIF($D$5:D22,D22),"") ->  | B22: 18
A23: =IF(D23=الصيادين!$C$1,COUNTIF($D$5:D23,D23),"") ->  | B23: 19
A24: =IF(D24=الصيادين!$C$1,COUNTIF($D$5:D24,D24),"") ->  | B24: 20
A25: =IF(D25=الصيادين!$C$1,COUNTIF($D$5:D25,D25),"") ->  | B25: 21
A26: =IF(D26=الصيادين!$C$1,COUNTIF($D$5:D26,D26),"") ->  | B26: 22
A27: =IF(D27=الصيادين!$C$1,COUNTIF($D$5:D27,D27),"") ->  | B27: 23
A28: =IF(D28=الصيادين!$C$1,COUNTIF($D$5:D28,D28),"") ->  | B28: 24
A29: =IF(D29=الصيادين!$C$1,COUNTIF($D$5:D29,D29),"") ->  | B29: 25
A30: =IF(D30=الصيادين!$C$1,COUNTIF($D$5:D30,D30),"") ->  | B30: 26
A31: =IF(D31=الصيادين!$C$1,COUNTIF($D$5:D31,D31),"") ->  | B31: 27
A32: =IF(D32=الصيادين!$C$1,COUNTIF($D$5:D32,D32),"") ->  | B32: 28
A33: =IF(D33=الصيادين!$C$1,COUNTIF($D$5:D33,D33),"") ->  | B33: 29
A34: =IF(D34=الصيادين!$C$1,COUNTIF($D$5:D34,D34),"") ->  | B34: 30
A35: =IF(D35=الصيادين!$C$1,COUNTIF($D$5:D35,D35),"") ->  | B35: 31
A36: =IF(D36=الصيادين!$C$1,COUNTIF($D$5:D36,D36),"") ->  | B36: 32
A37: =IF(D37=الصيادين!$C$1,COUNTIF($D$5:D37,D37),"") ->  | B37: 33
A38: =IF(D38=الصيادين!$C$1,COUNTIF($D$5:D38,D38),"") ->  | B38: 34
A39: =IF(D39=الصيادين!$C$1,COUNTIF($D$5:D39,D39),"") ->  | B39: 35
A40: =IF(D40=الصيادين!$C$1,COUNTIF($D$5:D40,D40),"") ->  | B40: 36
A41: =IF(D41=الصيادين!$C$1,COUNTIF($D$5:D41,D41),"") ->  | B41: 37
A42: =IF(D42=الصيادين!$C$1,COUNTIF($D$5:D42,D42),"") ->  | B42: 38
A43: =IF(D43=الصيادين!$C$1,COUNTIF($D$5:D43,D43),"") ->  | B43: 39
A44: =IF(D44=الصيادين!$C$1,COUNTIF($D$5:D44,D44),"") ->  | B44: 40
A45: =IF(D45=الصيادين!$C$1,COUNTIF($D$5:D45,D45),"") ->  | B45: 41
A46: =IF(D46=الصيادين!$C$1,COUNTIF($D$5:D46,D46),"") ->  | B46: 42
A47: =IF(D47=الصيادين!$C$1,COUNTIF($D$5:D47,D47),"") ->  | B47: 43
A48: =IF(D48=الصيادين!$C$1,COUNTIF($D$5:D48,D48),"") ->  | B48: 44
A49: =IF(D49=الصيادين!$C$1,COUNTIF($D$5:D49,D49),"") ->  | B49: 45
A50: =IF(D50=الصيادين!$C$1,COUNTIF($D$5:D50,D50),"") ->  | B50: 46
A51: =IF(D51=الصيادين!$C$1,COUNTIF($D$5:D51,D51),"") ->  | B51: 47
A52: =IF(D52=الصيادين!$C$1,COUNTIF($D$5:D52,D52),"") ->  | B52: 48
A53: =IF(D53=الصيادين!$C$1,COUNTIF($D$5:D53,D53),"") ->  | B53: 49
A54: =IF(D54=الصيادين!$C$1,COUNTIF($D$5:D54,D54),"") ->  | B54: 50
A55: =IF(D55=الصيادين!$C$1,COUNTIF($D$5:D55,D55),"") ->  | B55: 51
A56: =IF(D56=الصيادين!$C$1,COUNTIF($D$5:D56,D56),"") ->  | B56: 52
A57: =IF(D57=الصيادين!$C$1,COUNTIF($D$5:D57,D57),"") ->  | B57: 53
A58: =IF(D58=الصيادين!$C$1,COUNTIF($D$5:D58,D58),"") ->  | B58: 54
A59: =IF(D59=الصيادين!$C$1,COUNTIF($D$5:D59,D59),"") ->  | B59: 55
A60: =IF(D60=الصيادين!$C$1,COUNTIF($D$5:D60,D60),"") ->  | B60: 56
A61: =IF(D61=الصيادين!$C$1,COUNTIF($D$5:D61,D61),"") ->  | B61: 57
A62: =IF(D62=الصيادين!$C$1,COUNTIF($D$5:D62,D62),"") ->  | B62: 58
A63: =IF(D63=الصيادين!$C$1,COUNTIF($D$5:D63,D63),"") ->  | B63: 59
A64: =IF(D64=الصيادين!$C$1,COUNTIF($D$5:D64,D64),"") ->  | B64: 60
A65: =IF(D65=الصيادين!$C$1,COUNTIF($D$5:D65,D65),"") ->  | B65: 61
A66: =IF(D66=الصيادين!$C$1,COUNTIF($D$5:D66,D66),"") ->  | B66: 62
A67: =IF(D67=الصيادين!$C$1,COUNTIF($D$5:D67,D67),"") ->  | B67: 63
A68: =IF(D68=الصيادين!$C$1,COUNTIF($D$5:D68,D68),"") ->  | B68: 64
A69: =IF(D69=الصيادين!$C$1,COUNTIF($D$5:D69,D69),"") ->  | B69: 65
A70: =IF(D70=الصيادين!$C$1,COUNTIF($D$5:D70,D70),"") ->  | B70: 66
A71: =IF(D71=الصيادين!$C$1,COUNTIF($D$5:D71,D71),"") ->  | B71: 67
A72: =IF(D72=الصيادين!$C$1,COUNTIF($D$5:D72,D72),"") ->  | B72: 68
A73: =IF(D73=الصيادين!$C$1,COUNTIF($D$5:D73,D73),"") ->  | B73: 69
A74: =IF(D74=الصيادين!$C$1,COUNTIF($D$5:D74,D74),"") ->  | B74: 70
A75: =IF(D75=الصيادين!$C$1,COUNTIF($D$5:D75,D75),"") ->  | B75: 71
A76: =IF(D76=الصيادين!$C$1,COUNTIF($D$5:D76,D76),"") ->  | B76: 72
A77: =IF(D77=الصيادين!$C$1,COUNTIF($D$5:D77,D77),"") ->  | B77: 73
A78: =IF(D78=الصيادين!$C$1,COUNTIF($D$5:D78,D78),"") ->  | B78: 74
A79: =IF(D79=الصيادين!$C$1,COUNTIF($D$5:D79,D79),"") ->  | B79: 75
A80: =IF(D80=الصيادين!$C$1,COUNTIF($D$5:D80,D80),"") ->  | B80: 76
A81: =IF(D81=الصيادين!$C$1,COUNTIF($D$5:D81,D81),"") ->  | B81: 77
A82: =IF(D82=الصيادين!$C$1,COUNTIF($D$5:D82,D82),"") ->  | B82: 78
A83: =IF(D83=الصيادين!$C$1,COUNTIF($D$5:D83,D83),"") ->  | B83: 79
A84: =IF(D84=الصيادين!$C$1,COUNTIF($D$5:D84,D84),"") ->  | B84: 80
A85: =IF(D85=الصيادين!$C$1,COUNTIF($D$5:D85,D85),"") ->  | B85: 81
A86: =IF(D86=الصيادين!$C$1,COUNTIF($D$5:D86,D86),"") ->  | B86: 82
A87: =IF(D87=الصيادين!$C$1,COUNTIF($D$5:D87,D87),"") ->  | B87: 83
A88: =IF(D88=الصيادين!$C$1,COUNTIF($D$5:D88,D88),"") ->  | B88: 84
A89: =IF(D89=الصيادين!$C$1,COUNTIF($D$5:D89,D89),"") ->  | B89: 85
A90: =IF(D90=الصيادين!$C$1,COUNTIF($D$5:D90,D90),"") ->  | B90: 86
A91: =IF(D91=الصيادين!$C$1,COUNTIF($D$5:D91,D91),"") ->  | B91: 87
A92: =IF(D92=الصيادين!$C$1,COUNTIF($D$5:D92,D92),"") ->  | B92: 88
A93: =IF(D93=الصيادين!$C$1,COUNTIF($D$5:D93,D93),"") ->  | B93: 89
A94: =IF(D94=الصيادين!$C$1,COUNTIF($D$5:D94,D94),"") ->  | B94: 90
A95: =IF(D95=الصيادين!$C$1,COUNTIF($D$5:D95,D95),"") ->  | B95: 91
A96: =IF(D96=الصيادين!$C$1,COUNTIF($D$5:D96,D96),"") ->  | B96: 92
A97: =IF(D97=الصيادين!$C$1,COUNTIF($D$5:D97,D97),"") ->  | B97: 93
A98: =IF(D98=الصيادين!$C$1,COUNTIF($D$5:D98,D98),"") ->  | B98: 94
A99: =IF(D99=الصيادين!$C$1,COUNTIF($D$5:D99,D99),"") ->  | B99: 95
A100: =IF(D100=الصيادين!$C$1,COUNTIF($D$5:D100,D100),"") ->  | B100: 96
A101: =IF(D101=الصيادين!$C$1,COUNTIF($D$5:D101,D101),"") ->  | B101: 97
A102: =IF(D102=الصيادين!$C$1,COUNTIF($D$5:D102,D102),"") ->  | B102: 98
A103: =IF(D103=الصيادين!$C$1,COUNTIF($D$5:D103,D103),"") ->  | B103: 99
A104: =IF(D104=الصيادين!$C$1,COUNTIF($D$5:D104,D104),"") ->  | B104: 100
G105: =SUM(G5:G104) -> 0 | H105: =SUM(H5:H104) -> 0 | I105: =SUM(I5:I104) -> 0 | J105: =SUM(J5:J104) -> 0
C106: النقدى | E106: 400
C107: الاستيفاء | E107: 10
C108: الايرادات | E108: =J105 -> 0
C109: المدخول | E109: =E106+E107+E108 -> 410
C110: المصروفات | E110: =H105+I105 -> 0
C111: صافى المدخول | E111: =E109-E110 -> 410

Sheet 27
C2: 2020-01-01
B3: م | C3: تاريخ | D3: الاسم | E3: الوصف | F3: رقم الفاتورة | G3: شتات | I3: المصروفات والايرادات | K3: الدلالة
G4: مستحقة | H4: سداد | I4: مصروفات | J4: ايرادات
A5: =IF(D5=الصيادين!$C$1,COUNTIF($D$5:D5,D5),"") ->  | B5: 1
A6: =IF(D6=الصيادين!$C$1,COUNTIF($D$5:D6,D6),"") ->  | B6: 2
A7: =IF(D7=الصيادين!$C$1,COUNTIF($D$5:D7,D7),"") ->  | B7: 3
A8: =IF(D8=الصيادين!$C$1,COUNTIF($D$5:D8,D8),"") ->  | B8: 4
A9: =IF(D9=الصيادين!$C$1,COUNTIF($D$5:D9,D9),"") ->  | B9: 5
A10: =IF(D10=الصيادين!$C$1,COUNTIF($D$5:D10,D10),"") ->  | B10: 6
A11: =IF(D11=الصيادين!$C$1,COUNTIF($D$5:D11,D11),"") ->  | B11: 7
A12: =IF(D12=الصيادين!$C$1,COUNTIF($D$5:D12,D12),"") ->  | B12: 8
A13: =IF(D13=الصيادين!$C$1,COUNTIF($D$5:D13,D13),"") ->  | B13: 9
A14: =IF(D14=الصيادين!$C$1,COUNTIF($D$5:D14,D14),"") ->  | B14: 10
A15: =IF(D15=الصيادين!$C$1,COUNTIF($D$5:D15,D15),"") ->  | B15: 11
A16: =IF(D16=الصيادين!$C$1,COUNTIF($D$5:D16,D16),"") ->  | B16: 12
A17: =IF(D17=الصيادين!$C$1,COUNTIF($D$5:D17,D17),"") ->  | B17: 13
A18: =IF(D18=الصيادين!$C$1,COUNTIF($D$5:D18,D18),"") ->  | B18: 14
A19: =IF(D19=الصيادين!$C$1,COUNTIF($D$5:D19,D19),"") ->  | B19: 15
A20: =IF(D20=الصيادين!$C$1,COUNTIF($D$5:D20,D20),"") ->  | B20: 16
A21: =IF(D21=الصيادين!$C$1,COUNTIF($D$5:D21,D21),"") ->  | B21: 17
A22: =IF(D22=الصيادين!$C$1,COUNTIF($D$5:D22,D22),"") ->  | B22: 18
A23: =IF(D23=الصيادين!$C$1,COUNTIF($D$5:D23,D23),"") ->  | B23: 19
A24: =IF(D24=الصيادين!$C$1,COUNTIF($D$5:D24,D24),"") ->  | B24: 20
A25: =IF(D25=الصيادين!$C$1,COUNTIF($D$5:D25,D25),"") ->  | B25: 21
A26: =IF(D26=الصيادين!$C$1,COUNTIF($D$5:D26,D26),"") ->  | B26: 22
A27: =IF(D27=الصيادين!$C$1,COUNTIF($D$5:D27,D27),"") ->  | B27: 23
A28: =IF(D28=الصيادين!$C$1,COUNTIF($D$5:D28,D28),"") ->  | B28: 24
A29: =IF(D29=الصيادين!$C$1,COUNTIF($D$5:D29,D29),"") ->  | B29: 25
A30: =IF(D30=الصيادين!$C$1,COUNTIF($D$5:D30,D30),"") ->  | B30: 26
A31: =IF(D31=الصيادين!$C$1,COUNTIF($D$5:D31,D31),"") ->  | B31: 27
A32: =IF(D32=الصيادين!$C$1,COUNTIF($D$5:D32,D32),"") ->  | B32: 28
A33: =IF(D33=الصيادين!$C$1,COUNTIF($D$5:D33,D33),"") ->  | B33: 29
A34: =IF(D34=الصيادين!$C$1,COUNTIF($D$5:D34,D34),"") ->  | B34: 30
A35: =IF(D35=الصيادين!$C$1,COUNTIF($D$5:D35,D35),"") ->  | B35: 31
A36: =IF(D36=الصيادين!$C$1,COUNTIF($D$5:D36,D36),"") ->  | B36: 32
A37: =IF(D37=الصيادين!$C$1,COUNTIF($D$5:D37,D37),"") ->  | B37: 33
A38: =IF(D38=الصيادين!$C$1,COUNTIF($D$5:D38,D38),"") ->  | B38: 34
A39: =IF(D39=الصيادين!$C$1,COUNTIF($D$5:D39,D39),"") ->  | B39: 35
A40: =IF(D40=الصيادين!$C$1,COUNTIF($D$5:D40,D40),"") ->  | B40: 36
A41: =IF(D41=الصيادين!$C$1,COUNTIF($D$5:D41,D41),"") ->  | B41: 37
A42: =IF(D42=الصيادين!$C$1,COUNTIF($D$5:D42,D42),"") ->  | B42: 38
A43: =IF(D43=الصيادين!$C$1,COUNTIF($D$5:D43,D43),"") ->  | B43: 39
A44: =IF(D44=الصيادين!$C$1,COUNTIF($D$5:D44,D44),"") ->  | B44: 40
A45: =IF(D45=الصيادين!$C$1,COUNTIF($D$5:D45,D45),"") ->  | B45: 41
A46: =IF(D46=الصيادين!$C$1,COUNTIF($D$5:D46,D46),"") ->  | B46: 42
A47: =IF(D47=الصيادين!$C$1,COUNTIF($D$5:D47,D47),"") ->  | B47: 43
A48: =IF(D48=الصيادين!$C$1,COUNTIF($D$5:D48,D48),"") ->  | B48: 44
A49: =IF(D49=الصيادين!$C$1,COUNTIF($D$5:D49,D49),"") ->  | B49: 45
A50: =IF(D50=الصيادين!$C$1,COUNTIF($D$5:D50,D50),"") ->  | B50: 46
A51: =IF(D51=الصيادين!$C$1,COUNTIF($D$5:D51,D51),"") ->  | B51: 47
A52: =IF(D52=الصيادين!$C$1,COUNTIF($D$5:D52,D52),"") ->  | B52: 48
A53: =IF(D53=الصيادين!$C$1,COUNTIF($D$5:D53,D53),"") ->  | B53: 49
A54: =IF(D54=الصيادين!$C$1,COUNTIF($D$5:D54,D54),"") ->  | B54: 50
A55: =IF(D55=الصيادين!$C$1,COUNTIF($D$5:D55,D55),"") ->  | B55: 51
A56: =IF(D56=الصيادين!$C$1,COUNTIF($D$5:D56,D56),"") ->  | B56: 52
A57: =IF(D57=الصيادين!$C$1,COUNTIF($D$5:D57,D57),"") ->  | B57: 53
A58: =IF(D58=الصيادين!$C$1,COUNTIF($D$5:D58,D58),"") ->  | B58: 54
A59: =IF(D59=الصيادين!$C$1,COUNTIF($D$5:D59,D59),"") ->  | B59: 55
A60: =IF(D60=الصيادين!$C$1,COUNTIF($D$5:D60,D60),"") ->  | B60: 56
A61: =IF(D61=الصيادين!$C$1,COUNTIF($D$5:D61,D61),"") ->  | B61: 57
A62: =IF(D62=الصيادين!$C$1,COUNTIF($D$5:D62,D62),"") ->  | B62: 58
A63: =IF(D63=الصيادين!$C$1,COUNTIF($D$5:D63,D63),"") ->  | B63: 59
A64: =IF(D64=الصيادين!$C$1,COUNTIF($D$5:D64,D64),"") ->  | B64: 60
A65: =IF(D65=الصيادين!$C$1,COUNTIF($D$5:D65,D65),"") ->  | B65: 61
A66: =IF(D66=الصيادين!$C$1,COUNTIF($D$5:D66,D66),"") ->  | B66: 62
A67: =IF(D67=الصيادين!$C$1,COUNTIF($D$5:D67,D67),"") ->  | B67: 63
A68: =IF(D68=الصيادين!$C$1,COUNTIF($D$5:D68,D68),"") ->  | B68: 64
A69: =IF(D69=الصيادين!$C$1,COUNTIF($D$5:D69,D69),"") ->  | B69: 65
A70: =IF(D70=الصيادين!$C$1,COUNTIF($D$5:D70,D70),"") ->  | B70: 66
A71: =IF(D71=الصيادين!$C$1,COUNTIF($D$5:D71,D71),"") ->  | B71: 67
A72: =IF(D72=الصيادين!$C$1,COUNTIF($D$5:D72,D72),"") ->  | B72: 68
A73: =IF(D73=الصيادين!$C$1,COUNTIF($D$5:D73,D73),"") ->  | B73: 69
A74: =IF(D74=الصيادين!$C$1,COUNTIF($D$5:D74,D74),"") ->  | B74: 70
A75: =IF(D75=الصيادين!$C$1,COUNTIF($D$5:D75,D75),"") ->  | B75: 71
A76: =IF(D76=الصيادين!$C$1,COUNTIF($D$5:D76,D76),"") ->  | B76: 72
A77: =IF(D77=الصيادين!$C$1,COUNTIF($D$5:D77,D77),"") ->  | B77: 73
A78: =IF(D78=الصيادين!$C$1,COUNTIF($D$5:D78,D78),"") ->  | B78: 74
A79: =IF(D79=الصيادين!$C$1,COUNTIF($D$5:D79,D79),"") ->  | B79: 75
A80: =IF(D80=الصيادين!$C$1,COUNTIF($D$5:D80,D80),"") ->  | B80: 76
A81: =IF(D81=الصيادين!$C$1,COUNTIF($D$5:D81,D81),"") ->  | B81: 77
A82: =IF(D82=الصيادين!$C$1,COUNTIF($D$5:D82,D82),"") ->  | B82: 78
A83: =IF(D83=الصيادين!$C$1,COUNTIF($D$5:D83,D83),"") ->  | B83: 79
A84: =IF(D84=الصيادين!$C$1,COUNTIF($D$5:D84,D84),"") ->  | B84: 80
A85: =IF(D85=الصيادين!$C$1,COUNTIF($D$5:D85,D85),"") ->  | B85: 81
A86: =IF(D86=الصيادين!$C$1,COUNTIF($D$5:D86,D86),"") ->  | B86: 82
A87: =IF(D87=الصيادين!$C$1,COUNTIF($D$5:D87,D87),"") ->  | B87: 83
A88: =IF(D88=الصيادين!$C$1,COUNTIF($D$5:D88,D88),"") ->  | B88: 84
A89: =IF(D89=الصيادين!$C$1,COUNTIF($D$5:D89,D89),"") ->  | B89: 85
A90: =IF(D90=الصيادين!$C$1,COUNTIF($D$5:D90,D90),"") ->  | B90: 86
A91: =IF(D91=الصيادين!$C$1,COUNTIF($D$5:D91,D91),"") ->  | B91: 87
A92: =IF(D92=الصيادين!$C$1,COUNTIF($D$5:D92,D92),"") ->  | B92: 88
A93: =IF(D93=الصيادين!$C$1,COUNTIF($D$5:D93,D93),"") ->  | B93: 89
A94: =IF(D94=الصيادين!$C$1,COUNTIF($D$5:D94,D94),"") ->  | B94: 90
A95: =IF(D95=الصيادين!$C$1,COUNTIF($D$5:D95,D95),"") ->  | B95: 91
A96: =IF(D96=الصيادين!$C$1,COUNTIF($D$5:D96,D96),"") ->  | B96: 92
A97: =IF(D97=الصيادين!$C$1,COUNTIF($D$5:D97,D97),"") ->  | B97: 93
A98: =IF(D98=الصيادين!$C$1,COUNTIF($D$5:D98,D98),"") ->  | B98: 94
A99: =IF(D99=الصيادين!$C$1,COUNTIF($D$5:D99,D99),"") ->  | B99: 95
A100: =IF(D100=الصيادين!$C$1,COUNTIF($D$5:D100,D100),"") ->  | B100: 96
A101: =IF(D101=الصيادين!$C$1,COUNTIF($D$5:D101,D101),"") ->  | B101: 97
A102: =IF(D102=الصيادين!$C$1,COUNTIF($D$5:D102,D102),"") ->  | B102: 98
A103: =IF(D103=الصيادين!$C$1,COUNTIF($D$5:D103,D103),"") ->  | B103: 99
A104: =IF(D104=الصيادين!$C$1,COUNTIF($D$5:D104,D104),"") ->  | B104: 100
G105: =SUM(G5:G104) -> 0 | H105: =SUM(H5:H104) -> 0 | I105: =SUM(I5:I104) -> 0 | J105: =SUM(J5:J104) -> 0
C106: النقدى | E106: 400
C107: الاستيفاء | E107: 10
C108: الايرادات | E108: =J105 -> 0
C109: المدخول | E109: =E106+E107+E108 -> 410
C110: المصروفات | E110: =H105+I105 -> 0
C111: صافى المدخول | E111: =E109-E110 -> 410

Sheet 28
C2: 2020-01-01
B3: م | C3: تاريخ | D3: الاسم | E3: الوصف | F3: رقم الفاتورة | G3: شتات | I3: المصروفات والايرادات | K3: الدلالة
G4: مستحقة | H4: سداد | I4: مصروفات | J4: ايرادات
A5: =IF(D5=الصيادين!$C$1,COUNTIF($D$5:D5,D5),"") ->  | B5: 1
A6: =IF(D6=الصيادين!$C$1,COUNTIF($D$5:D6,D6),"") ->  | B6: 2
A7: =IF(D7=الصيادين!$C$1,COUNTIF($D$5:D7,D7),"") ->  | B7: 3
A8: =IF(D8=الصيادين!$C$1,COUNTIF($D$5:D8,D8),"") ->  | B8: 4
A9: =IF(D9=الصيادين!$C$1,COUNTIF($D$5:D9,D9),"") ->  | B9: 5
A10: =IF(D10=الصيادين!$C$1,COUNTIF($D$5:D10,D10),"") ->  | B10: 6
A11: =IF(D11=الصيادين!$C$1,COUNTIF($D$5:D11,D11),"") ->  | B11: 7
A12: =IF(D12=الصيادين!$C$1,COUNTIF($D$5:D12,D12),"") ->  | B12: 8
A13: =IF(D13=الصيادين!$C$1,COUNTIF($D$5:D13,D13),"") ->  | B13: 9
A14: =IF(D14=الصيادين!$C$1,COUNTIF($D$5:D14,D14),"") ->  | B14: 10
A15: =IF(D15=الصيادين!$C$1,COUNTIF($D$5:D15,D15),"") ->  | B15: 11
A16: =IF(D16=الصيادين!$C$1,COUNTIF($D$5:D16,D16),"") ->  | B16: 12
A17: =IF(D17=الصيادين!$C$1,COUNTIF($D$5:D17,D17),"") ->  | B17: 13
A18: =IF(D18=الصيادين!$C$1,COUNTIF($D$5:D18,D18),"") ->  | B18: 14
A19: =IF(D19=الصيادين!$C$1,COUNTIF($D$5:D19,D19),"") ->  | B19: 15
A20: =IF(D20=الصيادين!$C$1,COUNTIF($D$5:D20,D20),"") ->  | B20: 16
A21: =IF(D21=الصيادين!$C$1,COUNTIF($D$5:D21,D21),"") ->  | B21: 17
A22: =IF(D22=الصيادين!$C$1,COUNTIF($D$5:D22,D22),"") ->  | B22: 18
A23: =IF(D23=الصيادين!$C$1,COUNTIF($D$5:D23,D23),"") ->  | B23: 19
A24: =IF(D24=الصيادين!$C$1,COUNTIF($D$5:D24,D24),"") ->  | B24: 20
A25: =IF(D25=الصيادين!$C$1,COUNTIF($D$5:D25,D25),"") ->  | B25: 21
A26: =IF(D26=الصيادين!$C$1,COUNTIF($D$5:D26,D26),"") ->  | B26: 22
A27: =IF(D27=الصيادين!$C$1,COUNTIF($D$5:D27,D27),"") ->  | B27: 23
A28: =IF(D28=الصيادين!$C$1,COUNTIF($D$5:D28,D28),"") ->  | B28: 24
A29: =IF(D29=الصيادين!$C$1,COUNTIF($D$5:D29,D29),"") ->  | B29: 25
A30: =IF(D30=الصيادين!$C$1,COUNTIF($D$5:D30,D30),"") ->  | B30: 26
A31: =IF(D31=الصيادين!$C$1,COUNTIF($D$5:D31,D31),"") ->  | B31: 27
A32: =IF(D32=الصيادين!$C$1,COUNTIF($D$5:D32,D32),"") ->  | B32: 28
A33: =IF(D33=الصيادين!$C$1,COUNTIF($D$5:D33,D33),"") ->  | B33: 29
A34: =IF(D34=الصيادين!$C$1,COUNTIF($D$5:D34,D34),"") ->  | B34: 30
A35: =IF(D35=الصيادين!$C$1,COUNTIF($D$5:D35,D35),"") ->  | B35: 31
A36: =IF(D36=الصيادين!$C$1,COUNTIF($D$5:D36,D36),"") ->  | B36: 32
A37: =IF(D37=الصيادين!$C$1,COUNTIF($D$5:D37,D37),"") ->  | B37: 33
A38: =IF(D38=الصيادين!$C$1,COUNTIF($D$5:D38,D38),"") ->  | B38: 34
A39: =IF(D39=الصيادين!$C$1,COUNTIF($D$5:D39,D39),"") ->  | B39: 35
A40: =IF(D40=الصيادين!$C$1,COUNTIF($D$5:D40,D40),"") ->  | B40: 36
A41: =IF(D41=الصيادين!$C$1,COUNTIF($D$5:D41,D41),"") ->  | B41: 37
A42: =IF(D42=الصيادين!$C$1,COUNTIF($D$5:D42,D42),"") ->  | B42: 38
A43: =IF(D43=الصيادين!$C$1,COUNTIF($D$5:D43,D43),"") ->  | B43: 39
A44: =IF(D44=الصيادين!$C$1,COUNTIF($D$5:D44,D44),"") ->  | B44: 40
A45: =IF(D45=الصيادين!$C$1,COUNTIF($D$5:D45,D45),"") ->  | B45: 41
A46: =IF(D46=الصيادين!$C$1,COUNTIF($D$5:D46,D46),"") ->  | B46: 42
A47: =IF(D47=الصيادين!$C$1,COUNTIF($D$5:D47,D47),"") ->  | B47: 43
A48: =IF(D48=الصيادين!$C$1,COUNTIF($D$5:D48,D48),"") ->  | B48: 44
A49: =IF(D49=الصيادين!$C$1,COUNTIF($D$5:D49,D49),"") ->  | B49: 45
A50: =IF(D50=الصيادين!$C$1,COUNTIF($D$5:D50,D50),"") ->  | B50: 46
A51: =IF(D51=الصيادين!$C$1,COUNTIF($D$5:D51,D51),"") ->  | B51: 47
A52: =IF(D52=الصيادين!$C$1,COUNTIF($D$5:D52,D52),"") ->  | B52: 48
A53: =IF(D53=الصيادين!$C$1,COUNTIF($D$5:D53,D53),"") ->  | B53: 49
A54: =IF(D54=الصيادين!$C$1,COUNTIF($D$5:D54,D54),"") ->  | B54: 50
A55: =IF(D55=الصيادين!$C$1,COUNTIF($D$5:D55,D55),"") ->  | B55: 51
A56: =IF(D56=الصيادين!$C$1,COUNTIF($D$5:D56,D56),"") ->  | B56: 52
A57: =IF(D57=الصيادين!$C$1,COUNTIF($D$5:D57,D57),"") ->  | B57: 53
A58: =IF(D58=الصيادين!$C$1,COUNTIF($D$5:D58,D58),"") ->  | B58: 54
A59: =IF(D59=الصيادين!$C$1,COUNTIF($D$5:D59,D59),"") ->  | B59: 55
A60: =IF(D60=الصيادين!$C$1,COUNTIF($D$5:D60,D60),"") ->  | B60: 56
A61: =IF(D61=الصيادين!$C$1,COUNTIF($D$5:D61,D61),"") ->  | B61: 57
A62: =IF(D62=الصيادين!$C$1,COUNTIF($D$5:D62,D62),"") ->  | B62: 58
A63: =IF(D63=الصيادين!$C$1,COUNTIF($D$5:D63,D63),"") ->  | B63: 59
A64: =IF(D64=الصيادين!$C$1,COUNTIF($D$5:D64,D64),"") ->  | B64: 60
A65: =IF(D65=الصيادين!$C$1,COUNTIF($D$5:D65,D65),"") ->  | B65: 61
A66: =IF(D66=الصيادين!$C$1,COUNTIF($D$5:D66,D66),"") ->  | B66: 62
A67: =IF(D67=الصيادين!$C$1,COUNTIF($D$5:D67,D67),"") ->  | B67: 63
A68: =IF(D68=الصيادين!$C$1,COUNTIF($D$5:D68,D68),"") ->  | B68: 64
A69: =IF(D69=الصيادين!$C$1,COUNTIF($D$5:D69,D69),"") ->  | B69: 65
A70: =IF(D70=الصيادين!$C$1,COUNTIF($D$5:D70,D70),"") ->  | B70: 66
A71: =IF(D71=الصيادين!$C$1,COUNTIF($D$5:D71,D71),"") ->  | B71: 67
A72: =IF(D72=الصيادين!$C$1,COUNTIF($D$5:D72,D72),"") ->  | B72: 68
A73: =IF(D73=الصيادين!$C$1,COUNTIF($D$5:D73,D73),"") ->  | B73: 69
A74: =IF(D74=الصيادين!$C$1,COUNTIF($D$5:D74,D74),"") ->  | B74: 70
A75: =IF(D75=الصيادين!$C$1,COUNTIF($D$5:D75,D75),"") ->  | B75: 71
A76: =IF(D76=الصيادين!$C$1,COUNTIF($D$5:D76,D76),"") ->  | B76: 72
A77: =IF(D77=الصيادين!$C$1,COUNTIF($D$5:D77,D77),"") ->  | B77: 73
A78: =IF(D78=الصيادين!$C$1,COUNTIF($D$5:D78,D78),"") ->  | B78: 74
A79: =IF(D79=الصيادين!$C$1,COUNTIF($D$5:D79,D79),"") ->  | B79: 75
A80: =IF(D80=الصيادين!$C$1,COUNTIF($D$5:D80,D80),"") ->  | B80: 76
A81: =IF(D81=الصيادين!$C$1,COUNTIF($D$5:D81,D81),"") ->  | B81: 77
A82: =IF(D82=الصيادين!$C$1,COUNTIF($D$5:D82,D82),"") ->  | B82: 78
A83: =IF(D83=الصيادين!$C$1,COUNTIF($D$5:D83,D83),"") ->  | B83: 79
A84: =IF(D84=الصيادين!$C$1,COUNTIF($D$5:D84,D84),"") ->  | B84: 80
A85: =IF(D85=الصيادين!$C$1,COUNTIF($D$5:D85,D85),"") ->  | B85: 81
A86: =IF(D86=الصيادين!$C$1,COUNTIF($D$5:D86,D86),"") ->  | B86: 82
A87: =IF(D87=الصيادين!$C$1,COUNTIF($D$5:D87,D87),"") ->  | B87: 83
A88: =IF(D88=الصيادين!$C$1,COUNTIF($D$5:D88,D88),"") ->  | B88: 84
A89: =IF(D89=الصيادين!$C$1,COUNTIF($D$5:D89,D89),"") ->  | B89: 85
A90: =IF(D90=الصيادين!$C$1,COUNTIF($D$5:D90,D90),"") ->  | B90: 86
A91: =IF(D91=الصيادين!$C$1,COUNTIF($D$5:D91,D91),"") ->  | B91: 87
A92: =IF(D92=الصيادين!$C$1,COUNTIF($D$5:D92,D92),"") ->  | B92: 88
A93: =IF(D93=الصيادين!$C$1,COUNTIF($D$5:D93,D93),"") ->  | B93: 89
A94: =IF(D94=الصيادين!$C$1,COUNTIF($D$5:D94,D94),"") ->  | B94: 90
A95: =IF(D95=الصيادين!$C$1,COUNTIF($D$5:D95,D95),"") ->  | B95: 91
A96: =IF(D96=الصيادين!$C$1,COUNTIF($D$5:D96,D96),"") ->  | B96: 92
A97: =IF(D97=الصيادين!$C$1,COUNTIF($D$5:D97,D97),"") ->  | B97: 93
A98: =IF(D98=الصيادين!$C$1,COUNTIF($D$5:D98,D98),"") ->  | B98: 94
A99: =IF(D99=الصيادين!$C$1,COUNTIF($D$5:D99,D99),"") ->  | B99: 95
A100: =IF(D100=الصيادين!$C$1,COUNTIF($D$5:D100,D100),"") ->  | B100: 96
A101: =IF(D101=الصيادين!$C$1,COUNTIF($D$5:D101,D101),"") ->  | B101: 97
A102: =IF(D102=الصيادين!$C$1,COUNTIF($D$5:D102,D102),"") ->  | B102: 98
A103: =IF(D103=الصيادين!$C$1,COUNTIF($D$5:D103,D103),"") ->  | B103: 99
A104: =IF(D104=الصيادين!$C$1,COUNTIF($D$5:D104,D104),"") ->  | B104: 100
G105: =SUM(G5:G104) -> 0 | H105: =SUM(H5:H104) -> 0 | I105: =SUM(I5:I104) -> 0 | J105: =SUM(J5:J104) -> 0
C106: النقدى | E106: 400
C107: الاستيفاء | E107: 10
C108: الايرادات | E108: =J105 -> 0
C109: المدخول | E109: =E106+E107+E108 -> 410
C110: المصروفات | E110: =H105+I105 -> 0
C111: صافى المدخول | E111: =E109-E110 -> 410

Sheet 29
C2: 2020-01-01
B3: م | C3: تاريخ | D3: الاسم | E3: الوصف | F3: رقم الفاتورة | G3: شتات | I3: المصروفات والايرادات | K3: الدلالة
G4: مستحقة | H4: سداد | I4: مصروفات | J4: ايرادات
A5: =IF(D5=الصيادين!$C$1,COUNTIF($D$5:D5,D5),"") ->  | B5: 1
A6: =IF(D6=الصيادين!$C$1,COUNTIF($D$5:D6,D6),"") ->  | B6: 2
A7: =IF(D7=الصيادين!$C$1,COUNTIF($D$5:D7,D7),"") ->  | B7: 3
A8: =IF(D8=الصيادين!$C$1,COUNTIF($D$5:D8,D8),"") ->  | B8: 4
A9: =IF(D9=الصيادين!$C$1,COUNTIF($D$5:D9,D9),"") ->  | B9: 5
A10: =IF(D10=الصيادين!$C$1,COUNTIF($D$5:D10,D10),"") ->  | B10: 6
A11: =IF(D11=الصيادين!$C$1,COUNTIF($D$5:D11,D11),"") ->  | B11: 7
A12: =IF(D12=الصيادين!$C$1,COUNTIF($D$5:D12,D12),"") ->  | B12: 8
A13: =IF(D13=الصيادين!$C$1,COUNTIF($D$5:D13,D13),"") ->  | B13: 9
A14: =IF(D14=الصيادين!$C$1,COUNTIF($D$5:D14,D14),"") ->  | B14: 10
A15: =IF(D15=الصيادين!$C$1,COUNTIF($D$5:D15,D15),"") ->  | B15: 11
A16: =IF(D16=الصيادين!$C$1,COUNTIF($D$5:D16,D16),"") ->  | B16: 12
A17: =IF(D17=الصيادين!$C$1,COUNTIF($D$5:D17,D17),"") ->  | B17: 13
A18: =IF(D18=الصيادين!$C$1,COUNTIF($D$5:D18,D18),"") ->  | B18: 14
A19: =IF(D19=الصيادين!$C$1,COUNTIF($D$5:D19,D19),"") ->  | B19: 15
A20: =IF(D20=الصيادين!$C$1,COUNTIF($D$5:D20,D20),"") ->  | B20: 16
A21: =IF(D21=الصيادين!$C$1,COUNTIF($D$5:D21,D21),"") ->  | B21: 17
A22: =IF(D22=الصيادين!$C$1,COUNTIF($D$5:D22,D22),"") ->  | B22: 18
A23: =IF(D23=الصيادين!$C$1,COUNTIF($D$5:D23,D23),"") ->  | B23: 19
A24: =IF(D24=الصيادين!$C$1,COUNTIF($D$5:D24,D24),"") ->  | B24: 20
A25: =IF(D25=الصيادين!$C$1,COUNTIF($D$5:D25,D25),"") ->  | B25: 21
A26: =IF(D26=الصيادين!$C$1,COUNTIF($D$5:D26,D26),"") ->  | B26: 22
A27: =IF(D27=الصيادين!$C$1,COUNTIF($D$5:D27,D27),"") ->  | B27: 23
A28: =IF(D28=الصيادين!$C$1,COUNTIF($D$5:D28,D28),"") ->  | B28: 24
A29: =IF(D29=الصيادين!$C$1,COUNTIF($D$5:D29,D29),"") ->  | B29: 25
A30: =IF(D30=الصيادين!$C$1,COUNTIF($D$5:D30,D30),"") ->  | B30: 26
A31: =IF(D31=الصيادين!$C$1,COUNTIF($D$5:D31,D31),"") ->  | B31: 27
A32: =IF(D32=الصيادين!$C$1,COUNTIF($D$5:D32,D32),"") ->  | B32: 28
A33: =IF(D33=الصيادين!$C$1,COUNTIF($D$5:D33,D33),"") ->  | B33: 29
A34: =IF(D34=الصيادين!$C$1,COUNTIF($D$5:D34,D34),"") ->  | B34: 30
A35: =IF(D35=الصيادين!$C$1,COUNTIF($D$5:D35,D35),"") ->  | B35: 31
A36: =IF(D36=الصيادين!$C$1,COUNTIF($D$5:D36,D36),"") ->  | B36: 32
A37: =IF(D37=الصيادين!$C$1,COUNTIF($D$5:D37,D37),"") ->  | B37: 33
A38: =IF(D38=الصيادين!$C$1,COUNTIF($D$5:D38,D38),"") ->  | B38: 34
A39: =IF(D39=الصيادين!$C$1,COUNTIF($D$5:D39,D39),"") ->  | B39: 35
A40: =IF(D40=الصيادين!$C$1,COUNTIF($D$5:D40,D40),"") ->  | B40: 36
A41: =IF(D41=الصيادين!$C$1,COUNTIF($D$5:D41,D41),"") ->  | B41: 37
A42: =IF(D42=الصيادين!$C$1,COUNTIF($D$5:D42,D42),"") ->  | B42: 38
A43: =IF(D43=الصيادين!$C$1,COUNTIF($D$5:D43,D43),"") ->  | B43: 39
A44: =IF(D44=الصيادين!$C$1,COUNTIF($D$5:D44,D44),"") ->  | B44: 40
A45: =IF(D45=الصيادين!$C$1,COUNTIF($D$5:D45,D45),"") ->  | B45: 41
A46: =IF(D46=الصيادين!$C$1,COUNTIF($D$5:D46,D46),"") ->  | B46: 42
A47: =IF(D47=الصيادين!$C$1,COUNTIF($D$5:D47,D47),"") ->  | B47: 43
A48: =IF(D48=الصيادين!$C$1,COUNTIF($D$5:D48,D48),"") ->  | B48: 44
A49: =IF(D49=الصيادين!$C$1,COUNTIF($D$5:D49,D49),"") ->  | B49: 45
A50: =IF(D50=الصيادين!$C$1,COUNTIF($D$5:D50,D50),"") ->  | B50: 46
A51: =IF(D51=الصيادين!$C$1,COUNTIF($D$5:D51,D51),"") ->  | B51: 47
A52: =IF(D52=الصيادين!$C$1,COUNTIF($D$5:D52,D52),"") ->  | B52: 48
A53: =IF(D53=الصيادين!$C$1,COUNTIF($D$5:D53,D53),"") ->  | B53: 49
A54: =IF(D54=الصيادين!$C$1,COUNTIF($D$5:D54,D54),"") ->  | B54: 50
A55: =IF(D55=الصيادين!$C$1,COUNTIF($D$5:D55,D55),"") ->  | B55: 51
A56: =IF(D56=الصيادين!$C$1,COUNTIF($D$5:D56,D56),"") ->  | B56: 52
A57: =IF(D57=الصيادين!$C$1,COUNTIF($D$5:D57,D57),"") ->  | B57: 53
A58: =IF(D58=الصيادين!$C$1,COUNTIF($D$5:D58,D58),"") ->  | B58: 54
A59: =IF(D59=الصيادين!$C$1,COUNTIF($D$5:D59,D59),"") ->  | B59: 55
A60: =IF(D60=الصيادين!$C$1,COUNTIF($D$5:D60,D60),"") ->  | B60: 56
A61: =IF(D61=الصيادين!$C$1,COUNTIF($D$5:D61,D61),"") ->  | B61: 57
A62: =IF(D62=الصيادين!$C$1,COUNTIF($D$5:D62,D62),"") ->  | B62: 58
A63: =IF(D63=الصيادين!$C$1,COUNTIF($D$5:D63,D63),"") ->  | B63: 59
A64: =IF(D64=الصيادين!$C$1,COUNTIF($D$5:D64,D64),"") ->  | B64: 60
A65: =IF(D65=الصيادين!$C$1,COUNTIF($D$5:D65,D65),"") ->  | B65: 61
A66: =IF(D66=الصيادين!$C$1,COUNTIF($D$5:D66,D66),"") ->  | B66: 62
A67: =IF(D67=الصيادين!$C$1,COUNTIF($D$5:D67,D67),"") ->  | B67: 63
A68: =IF(D68=الصيادين!$C$1,COUNTIF($D$5:D68,D68),"") ->  | B68: 64
A69: =IF(D69=الصيادين!$C$1,COUNTIF($D$5:D69,D69),"") ->  | B69: 65
A70: =IF(D70=الصيادين!$C$1,COUNTIF($D$5:D70,D70),"") ->  | B70: 66
A71: =IF(D71=الصيادين!$C$1,COUNTIF($D$5:D71,D71),"") ->  | B71: 67
A72: =IF(D72=الصيادين!$C$1,COUNTIF($D$5:D72,D72),"") ->  | B72: 68
A73: =IF(D73=الصيادين!$C$1,COUNTIF($D$5:D73,D73),"") ->  | B73: 69
A74: =IF(D74=الصيادين!$C$1,COUNTIF($D$5:D74,D74),"") ->  | B74: 70
A75: =IF(D75=الصيادين!$C$1,COUNTIF($D$5:D75,D75),"") ->  | B75: 71
A76: =IF(D76=الصيادين!$C$1,COUNTIF($D$5:D76,D76),"") ->  | B76: 72
A77: =IF(D77=الصيادين!$C$1,COUNTIF($D$5:D77,D77),"") ->  | B77: 73
A78: =IF(D78=الصيادين!$C$1,COUNTIF($D$5:D78,D78),"") ->  | B78: 74
A79: =IF(D79=الصيادين!$C$1,COUNTIF($D$5:D79,D79),"") ->  | B79: 75
A80: =IF(D80=الصيادين!$C$1,COUNTIF($D$5:D80,D80),"") ->  | B80: 76
A81: =IF(D81=الصيادين!$C$1,COUNTIF($D$5:D81,D81),"") ->  | B81: 77
A82: =IF(D82=الصيادين!$C$1,COUNTIF($D$5:D82,D82),"") ->  | B82: 78
A83: =IF(D83=الصيادين!$C$1,COUNTIF($D$5:D83,D83),"") ->  | B83: 79
A84: =IF(D84=الصيادين!$C$1,COUNTIF($D$5:D84,D84),"") ->  | B84: 80
A85: =IF(D85=الصيادين!$C$1,COUNTIF($D$5:D85,D85),"") ->  | B85: 81
A86: =IF(D86=الصيادين!$C$1,COUNTIF($D$5:D86,D86),"") ->  | B86: 82
A87: =IF(D87=الصيادين!$C$1,COUNTIF($D$5:D87,D87),"") ->  | B87: 83
A88: =IF(D88=الصيادين!$C$1,COUNTIF($D$5:D88,D88),"") ->  | B88: 84
A89: =IF(D89=الصيادين!$C$1,COUNTIF($D$5:D89,D89),"") ->  | B89: 85
A90: =IF(D90=الصيادين!$C$1,COUNTIF($D$5:D90,D90),"") ->  | B90: 86
A91: =IF(D91=الصيادين!$C$1,COUNTIF($D$5:D91,D91),"") ->  | B91: 87
A92: =IF(D92=الصيادين!$C$1,COUNTIF($D$5:D92,D92),"") ->  | B92: 88
A93: =IF(D93=الصيادين!$C$1,COUNTIF($D$5:D93,D93),"") ->  | B93: 89
A94: =IF(D94=الصيادين!$C$1,COUNTIF($D$5:D94,D94),"") ->  | B94: 90
A95: =IF(D95=الصيادين!$C$1,COUNTIF($D$5:D95,D95),"") ->  | B95: 91
A96: =IF(D96=الصيادين!$C$1,COUNTIF($D$5:D96,D96),"") ->  | B96: 92
A97: =IF(D97=الصيادين!$C$1,COUNTIF($D$5:D97,D97),"") ->  | B97: 93
A98: =IF(D98=الصيادين!$C$1,COUNTIF($D$5:D98,D98),"") ->  | B98: 94
A99: =IF(D99=الصيادين!$C$1,COUNTIF($D$5:D99,D99),"") ->  | B99: 95
A100: =IF(D100=الصيادين!$C$1,COUNTIF($D$5:D100,D100),"") ->  | B100: 96
A101: =IF(D101=الصيادين!$C$1,COUNTIF($D$5:D101,D101),"") ->  | B101: 97
A102: =IF(D102=الصيادين!$C$1,COUNTIF($D$5:D102,D102),"") ->  | B102: 98
A103: =IF(D103=الصيادين!$C$1,COUNTIF($D$5:D103,D103),"") ->  | B103: 99
A104: =IF(D104=الصيادين!$C$1,COUNTIF($D$5:D104,D104),"") ->  | B104: 100
G105: =SUM(G5:G104) -> 0 | H105: =SUM(H5:H104) -> 0 | I105: =SUM(I5:I104) -> 0 | J105: =SUM(J5:J104) -> 0
C106: النقدى | E106: 400
C107: الاستيفاء | E107: 10
C108: الايرادات | E108: =J105 -> 0
C109: المدخول | E109: =E106+E107+E108 -> 410
C110: المصروفات | E110: =H105+I105 -> 0
C111: صافى المدخول | E111: =E109-E110 -> 410

Sheet 30
C2: 2020-01-01
B3: م | C3: تاريخ | D3: الاسم | E3: الوصف | F3: رقم الفاتورة | G3: شتات | I3: المصروفات والايرادات | K3: الدلالة
G4: مستحقة | H4: سداد | I4: مصروفات | J4: ايرادات
A5: =IF(D5=الصيادين!$C$1,COUNTIF($D$5:D5,D5),"") ->  | B5: 1
A6: =IF(D6=الصيادين!$C$1,COUNTIF($D$5:D6,D6),"") ->  | B6: 2
A7: =IF(D7=الصيادين!$C$1,COUNTIF($D$5:D7,D7),"") ->  | B7: 3
A8: =IF(D8=الصيادين!$C$1,COUNTIF($D$5:D8,D8),"") ->  | B8: 4
A9: =IF(D9=الصيادين!$C$1,COUNTIF($D$5:D9,D9),"") ->  | B9: 5
A10: =IF(D10=الصيادين!$C$1,COUNTIF($D$5:D10,D10),"") ->  | B10: 6
A11: =IF(D11=الصيادين!$C$1,COUNTIF($D$5:D11,D11),"") ->  | B11: 7
A12: =IF(D12=الصيادين!$C$1,COUNTIF($D$5:D12,D12),"") ->  | B12: 8
A13: =IF(D13=الصيادين!$C$1,COUNTIF($D$5:D13,D13),"") ->  | B13: 9
A14: =IF(D14=الصيادين!$C$1,COUNTIF($D$5:D14,D14),"") ->  | B14: 10
A15: =IF(D15=الصيادين!$C$1,COUNTIF($D$5:D15,D15),"") ->  | B15: 11
A16: =IF(D16=الصيادين!$C$1,COUNTIF($D$5:D16,D16),"") ->  | B16: 12
A17: =IF(D17=الصيادين!$C$1,COUNTIF($D$5:D17,D17),"") ->  | B17: 13
A18: =IF(D18=الصيادين!$C$1,COUNTIF($D$5:D18,D18),"") ->  | B18: 14
A19: =IF(D19=الصيادين!$C$1,COUNTIF($D$5:D19,D19),"") ->  | B19: 15
A20: =IF(D20=الصيادين!$C$1,COUNTIF($D$5:D20,D20),"") ->  | B20: 16
A21: =IF(D21=الصيادين!$C$1,COUNTIF($D$5:D21,D21),"") ->  | B21: 17
A22: =IF(D22=الصيادين!$C$1,COUNTIF($D$5:D22,D22),"") ->  | B22: 18
A23: =IF(D23=الصيادين!$C$1,COUNTIF($D$5:D23,D23),"") ->  | B23: 19
A24: =IF(D24=الصيادين!$C$1,COUNTIF($D$5:D24,D24),"") ->  | B24: 20
A25: =IF(D25=الصيادين!$C$1,COUNTIF($D$5:D25,D25),"") ->  | B25: 21
A26: =IF(D26=الصيادين!$C$1,COUNTIF($D$5:D26,D26),"") ->  | B26: 22
A27: =IF(D27=الصيادين!$C$1,COUNTIF($D$5:D27,D27),"") ->  | B27: 23
A28: =IF(D28=الصيادين!$C$1,COUNTIF($D$5:D28,D28),"") ->  | B28: 24
A29: =IF(D29=الصيادين!$C$1,COUNTIF($D$5:D29,D29),"") ->  | B29: 25
A30: =IF(D30=الصيادين!$C$1,COUNTIF($D$5:D30,D30),"") ->  | B30: 26
A31: =IF(D31=الصيادين!$C$1,COUNTIF($D$5:D31,D31),"") ->  | B31: 27
A32: =IF(D32=الصيادين!$C$1,COUNTIF($D$5:D32,D32),"") ->  | B32: 28
A33: =IF(D33=الصيادين!$C$1,COUNTIF($D$5:D33,D33),"") ->  | B33: 29
A34: =IF(D34=الصيادين!$C$1,COUNTIF($D$5:D34,D34),"") ->  | B34: 30
A35: =IF(D35=الصيادين!$C$1,COUNTIF($D$5:D35,D35),"") ->  | B35: 31
A36: =IF(D36=الصيادين!$C$1,COUNTIF($D$5:D36,D36),"") ->  | B36: 32
A37: =IF(D37=الصيادين!$C$1,COUNTIF($D$5:D37,D37),"") ->  | B37: 33
A38: =IF(D38=الصيادين!$C$1,COUNTIF($D$5:D38,D38),"") ->  | B38: 34
A39: =IF(D39=الصيادين!$C$1,COUNTIF($D$5:D39,D39),"") ->  | B39: 35
A40: =IF(D40=الصيادين!$C$1,COUNTIF($D$5:D40,D40),"") ->  | B40: 36
A41: =IF(D41=الصيادين!$C$1,COUNTIF($D$5:D41,D41),"") ->  | B41: 37
A42: =IF(D42=الصيادين!$C$1,COUNTIF($D$5:D42,D42),"") ->  | B42: 38
A43: =IF(D43=الصيادين!$C$1,COUNTIF($D$5:D43,D43),"") ->  | B43: 39
A44: =IF(D44=الصيادين!$C$1,COUNTIF($D$5:D44,D44),"") ->  | B44: 40
A45: =IF(D45=الصيادين!$C$1,COUNTIF($D$5:D45,D45),"") ->  | B45: 41
A46: =IF(D46=الصيادين!$C$1,COUNTIF($D$5:D46,D46),"") ->  | B46: 42
A47: =IF(D47=الصيادين!$C$1,COUNTIF($D$5:D47,D47),"") ->  | B47: 43
A48: =IF(D48=الصيادين!$C$1,COUNTIF($D$5:D48,D48),"") ->  | B48: 44
A49: =IF(D49=الصيادين!$C$1,COUNTIF($D$5:D49,D49),"") ->  | B49: 45
A50: =IF(D50=الصيادين!$C$1,COUNTIF($D$5:D50,D50),"") ->  | B50: 46
A51: =IF(D51=الصيادين!$C$1,COUNTIF($D$5:D51,D51),"") ->  | B51: 47
A52: =IF(D52=الصيادين!$C$1,COUNTIF($D$5:D52,D52),"") ->  | B52: 48
A53: =IF(D53=الصيادين!$C$1,COUNTIF($D$5:D53,D53),"") ->  | B53: 49
A54: =IF(D54=الصيادين!$C$1,COUNTIF($D$5:D54,D54),"") ->  | B54: 50
A55: =IF(D55=الصيادين!$C$1,COUNTIF($D$5:D55,D55),"") ->  | B55: 51
A56: =IF(D56=الصيادين!$C$1,COUNTIF($D$5:D56,D56),"") ->  | B56: 52
A57: =IF(D57=الصيادين!$C$1,COUNTIF($D$5:D57,D57),"") ->  | B57: 53
A58: =IF(D58=الصيادين!$C$1,COUNTIF($D$5:D58,D58),"") ->  | B58: 54
A59: =IF(D59=الصيادين!$C$1,COUNTIF($D$5:D59,D59),"") ->  | B59: 55
A60: =IF(D60=الصيادين!$C$1,COUNTIF($D$5:D60,D60),"") ->  | B60: 56
A61: =IF(D61=الصيادين!$C$1,COUNTIF($D$5:D61,D61),"") ->  | B61: 57
A62: =IF(D62=الصيادين!$C$1,COUNTIF($D$5:D62,D62),"") ->  | B62: 58
A63: =IF(D63=الصيادين!$C$1,COUNTIF($D$5:D63,D63),"") ->  | B63: 59
A64: =IF(D64=الصيادين!$C$1,COUNTIF($D$5:D64,D64),"") ->  | B64: 60
A65: =IF(D65=الصيادين!$C$1,COUNTIF($D$5:D65,D65),"") ->  | B65: 61
A66: =IF(D66=الصيادين!$C$1,COUNTIF($D$5:D66,D66),"") ->  | B66: 62
A67: =IF(D67=الصيادين!$C$1,COUNTIF($D$5:D67,D67),"") ->  | B67: 63
A68: =IF(D68=الصيادين!$C$1,COUNTIF($D$5:D68,D68),"") ->  | B68: 64
A69: =IF(D69=الصيادين!$C$1,COUNTIF($D$5:D69,D69),"") ->  | B69: 65
A70: =IF(D70=الصيادين!$C$1,COUNTIF($D$5:D70,D70),"") ->  | B70: 66
A71: =IF(D71=الصيادين!$C$1,COUNTIF($D$5:D71,D71),"") ->  | B71: 67
A72: =IF(D72=الصيادين!$C$1,COUNTIF($D$5:D72,D72),"") ->  | B72: 68
A73: =IF(D73=الصيادين!$C$1,COUNTIF($D$5:D73,D73),"") ->  | B73: 69
A74: =IF(D74=الصيادين!$C$1,COUNTIF($D$5:D74,D74),"") ->  | B74: 70
A75: =IF(D75=الصيادين!$C$1,COUNTIF($D$5:D75,D75),"") ->  | B75: 71
A76: =IF(D76=الصيادين!$C$1,COUNTIF($D$5:D76,D76),"") ->  | B76: 72
A77: =IF(D77=الصيادين!$C$1,COUNTIF($D$5:D77,D77),"") ->  | B77: 73
A78: =IF(D78=الصيادين!$C$1,COUNTIF($D$5:D78,D78),"") ->  | B78: 74
A79: =IF(D79=الصيادين!$C$1,COUNTIF($D$5:D79,D79),"") ->  | B79: 75
A80: =IF(D80=الصيادين!$C$1,COUNTIF($D$5:D80,D80),"") ->  | B80: 76
A81: =IF(D81=الصيادين!$C$1,COUNTIF($D$5:D81,D81),"") ->  | B81: 77
A82: =IF(D82=الصيادين!$C$1,COUNTIF($D$5:D82,D82),"") ->  | B82: 78
A83: =IF(D83=الصيادين!$C$1,COUNTIF($D$5:D83,D83),"") ->  | B83: 79
A84: =IF(D84=الصيادين!$C$1,COUNTIF($D$5:D84,D84),"") ->  | B84: 80
A85: =IF(D85=الصيادين!$C$1,COUNTIF($D$5:D85,D85),"") ->  | B85: 81
A86: =IF(D86=الصيادين!$C$1,COUNTIF($D$5:D86,D86),"") ->  | B86: 82
A87: =IF(D87=الصيادين!$C$1,COUNTIF($D$5:D87,D87),"") ->  | B87: 83
A88: =IF(D88=الصيادين!$C$1,COUNTIF($D$5:D88,D88),"") ->  | B88: 84
A89: =IF(D89=الصيادين!$C$1,COUNTIF($D$5:D89,D89),"") ->  | B89: 85
A90: =IF(D90=الصيادين!$C$1,COUNTIF($D$5:D90,D90),"") ->  | B90: 86
A91: =IF(D91=الصيادين!$C$1,COUNTIF($D$5:D91,D91),"") ->  | B91: 87
A92: =IF(D92=الصيادين!$C$1,COUNTIF($D$5:D92,D92),"") ->  | B92: 88
A93: =IF(D93=الصيادين!$C$1,COUNTIF($D$5:D93,D93),"") ->  | B93: 89
A94: =IF(D94=الصيادين!$C$1,COUNTIF($D$5:D94,D94),"") ->  | B94: 90
A95: =IF(D95=الصيادين!$C$1,COUNTIF($D$5:D95,D95),"") ->  | B95: 91
A96: =IF(D96=الصيادين!$C$1,COUNTIF($D$5:D96,D96),"") ->  | B96: 92
A97: =IF(D97=الصيادين!$C$1,COUNTIF($D$5:D97,D97),"") ->  | B97: 93
A98: =IF(D98=الصيادين!$C$1,COUNTIF($D$5:D98,D98),"") ->  | B98: 94
A99: =IF(D99=الصيادين!$C$1,COUNTIF($D$5:D99,D99),"") ->  | B99: 95
A100: =IF(D100=الصيادين!$C$1,COUNTIF($D$5:D100,D100),"") ->  | B100: 96
A101: =IF(D101=الصيادين!$C$1,COUNTIF($D$5:D101,D101),"") ->  | B101: 97
A102: =IF(D102=الصيادين!$C$1,COUNTIF($D$5:D102,D102),"") ->  | B102: 98
A103: =IF(D103=الصيادين!$C$1,COUNTIF($D$5:D103,D103),"") ->  | B103: 99
A104: =IF(D104=الصيادين!$C$1,COUNTIF($D$5:D104,D104),"") ->  | B104: 100
G105: =SUM(G5:G104) -> 0 | H105: =SUM(H5:H104) -> 0 | I105: =SUM(I5:I104) -> 0 | J105: =SUM(J5:J104) -> 0
C106: النقدى | E106: 400
C107: الاستيفاء | E107: 10
C108: الايرادات | E108: =J105 -> 0
C109: المدخول | E109: =E106+E107+E108 -> 410
C110: المصروفات | E110: =H105+I105 -> 0
C111: صافى المدخول | E111: =E109-E110 -> 410

Sheet 31
C2: 2020-01-01
B3: م | C3: تاريخ | D3: الاسم | E3: الوصف | F3: رقم الفاتورة | G3: شتات | I3: المصروفات والايرادات | K3: الدلالة
G4: مستحقة | H4: سداد | I4: مصروفات | J4: ايرادات
A5: =IF(D5=الصيادين!$C$1,COUNTIF($D$5:D5,D5),"") ->  | B5: 1
A6: =IF(D6=الصيادين!$C$1,COUNTIF($D$5:D6,D6),"") ->  | B6: 2
A7: =IF(D7=الصيادين!$C$1,COUNTIF($D$5:D7,D7),"") ->  | B7: 3
A8: =IF(D8=الصيادين!$C$1,COUNTIF($D$5:D8,D8),"") ->  | B8: 4
A9: =IF(D9=الصيادين!$C$1,COUNTIF($D$5:D9,D9),"") ->  | B9: 5
A10: =IF(D10=الصيادين!$C$1,COUNTIF($D$5:D10,D10),"") ->  | B10: 6
A11: =IF(D11=الصيادين!$C$1,COUNTIF($D$5:D11,D11),"") ->  | B11: 7
A12: =IF(D12=الصيادين!$C$1,COUNTIF($D$5:D12,D12),"") ->  | B12: 8
A13: =IF(D13=الصيادين!$C$1,COUNTIF($D$5:D13,D13),"") ->  | B13: 9
A14: =IF(D14=الصيادين!$C$1,COUNTIF($D$5:D14,D14),"") ->  | B14: 10
A15: =IF(D15=الصيادين!$C$1,COUNTIF($D$5:D15,D15),"") ->  | B15: 11
A16: =IF(D16=الصيادين!$C$1,COUNTIF($D$5:D16,D16),"") ->  | B16: 12
A17: =IF(D17=الصيادين!$C$1,COUNTIF($D$5:D17,D17),"") ->  | B17: 13
A18: =IF(D18=الصيادين!$C$1,COUNTIF($D$5:D18,D18),"") ->  | B18: 14
A19: =IF(D19=الصيادين!$C$1,COUNTIF($D$5:D19,D19),"") ->  | B19: 15
A20: =IF(D20=الصيادين!$C$1,COUNTIF($D$5:D20,D20),"") ->  | B20: 16
A21: =IF(D21=الصيادين!$C$1,COUNTIF($D$5:D21,D21),"") ->  | B21: 17
A22: =IF(D22=الصيادين!$C$1,COUNTIF($D$5:D22,D22),"") ->  | B22: 18
A23: =IF(D23=الصيادين!$C$1,COUNTIF($D$5:D23,D23),"") ->  | B23: 19
A24: =IF(D24=الصيادين!$C$1,COUNTIF($D$5:D24,D24),"") ->  | B24: 20
A25: =IF(D25=الصيادين!$C$1,COUNTIF($D$5:D25,D25),"") ->  | B25: 21
A26: =IF(D26=الصيادين!$C$1,COUNTIF($D$5:D26,D26),"") ->  | B26: 22
A27: =IF(D27=الصيادين!$C$1,COUNTIF($D$5:D27,D27),"") ->  | B27: 23
A28: =IF(D28=الصيادين!$C$1,COUNTIF($D$5:D28,D28),"") ->  | B28: 24
A29: =IF(D29=الصيادين!$C$1,COUNTIF($D$5:D29,D29),"") ->  | B29: 25
A30: =IF(D30=الصيادين!$C$1,COUNTIF($D$5:D30,D30),"") ->  | B30: 26
A31: =IF(D31=الصيادين!$C$1,COUNTIF($D$5:D31,D31),"") ->  | B31: 27
A32: =IF(D32=الصيادين!$C$1,COUNTIF($D$5:D32,D32),"") ->  | B32: 28
A33: =IF(D33=الصيادين!$C$1,COUNTIF($D$5:D33,D33),"") ->  | B33: 29
A34: =IF(D34=الصيادين!$C$1,COUNTIF($D$5:D34,D34),"") ->  | B34: 30
A35: =IF(D35=الصيادين!$C$1,COUNTIF($D$5:D35,D35),"") ->  | B35: 31
A36: =IF(D36=الصيادين!$C$1,COUNTIF($D$5:D36,D36),"") ->  | B36: 32
A37: =IF(D37=الصيادين!$C$1,COUNTIF($D$5:D37,D37),"") ->  | B37: 33
A38: =IF(D38=الصيادين!$C$1,COUNTIF($D$5:D38,D38),"") ->  | B38: 34
A39: =IF(D39=الصيادين!$C$1,COUNTIF($D$5:D39,D39),"") ->  | B39: 35
A40: =IF(D40=الصيادين!$C$1,COUNTIF($D$5:D40,D40),"") ->  | B40: 36
A41: =IF(D41=الصيادين!$C$1,COUNTIF($D$5:D41,D41),"") ->  | B41: 37
A42: =IF(D42=الصيادين!$C$1,COUNTIF($D$5:D42,D42),"") ->  | B42: 38
A43: =IF(D43=الصيادين!$C$1,COUNTIF($D$5:D43,D43),"") ->  | B43: 39
A44: =IF(D44=الصيادين!$C$1,COUNTIF($D$5:D44,D44),"") ->  | B44: 40
A45: =IF(D45=الصيادين!$C$1,COUNTIF($D$5:D45,D45),"") ->  | B45: 41
A46: =IF(D46=الصيادين!$C$1,COUNTIF($D$5:D46,D46),"") ->  | B46: 42
A47: =IF(D47=الصيادين!$C$1,COUNTIF($D$5:D47,D47),"") ->  | B47: 43
A48: =IF(D48=الصيادين!$C$1,COUNTIF($D$5:D48,D48),"") ->  | B48: 44
A49: =IF(D49=الصيادين!$C$1,COUNTIF($D$5:D49,D49),"") ->  | B49: 45
A50: =IF(D50=الصيادين!$C$1,COUNTIF($D$5:D50,D50),"") ->  | B50: 46
A51: =IF(D51=الصيادين!$C$1,COUNTIF($D$5:D51,D51),"") ->  | B51: 47
A52: =IF(D52=الصيادين!$C$1,COUNTIF($D$5:D52,D52),"") ->  | B52: 48
A53: =IF(D53=الصيادين!$C$1,COUNTIF($D$5:D53,D53),"") ->  | B53: 49
A54: =IF(D54=الصيادين!$C$1,COUNTIF($D$5:D54,D54),"") ->  | B54: 50
A55: =IF(D55=الصيادين!$C$1,COUNTIF($D$5:D55,D55),"") ->  | B55: 51
A56: =IF(D56=الصيادين!$C$1,COUNTIF($D$5:D56,D56),"") ->  | B56: 52
A57: =IF(D57=الصيادين!$C$1,COUNTIF($D$5:D57,D57),"") ->  | B57: 53
A58: =IF(D58=الصيادين!$C$1,COUNTIF($D$5:D58,D58),"") ->  | B58: 54
A59: =IF(D59=الصيادين!$C$1,COUNTIF($D$5:D59,D59),"") ->  | B59: 55
A60: =IF(D60=الصيادين!$C$1,COUNTIF($D$5:D60,D60),"") ->  | B60: 56
A61: =IF(D61=الصيادين!$C$1,COUNTIF($D$5:D61,D61),"") ->  | B61: 57
A62: =IF(D62=الصيادين!$C$1,COUNTIF($D$5:D62,D62),"") ->  | B62: 58
A63: =IF(D63=الصيادين!$C$1,COUNTIF($D$5:D63,D63),"") ->  | B63: 59
A64: =IF(D64=الصيادين!$C$1,COUNTIF($D$5:D64,D64),"") ->  | B64: 60
A65: =IF(D65=الصيادين!$C$1,COUNTIF($D$5:D65,D65),"") ->  | B65: 61
A66: =IF(D66=الصيادين!$C$1,COUNTIF($D$5:D66,D66),"") ->  | B66: 62
A67: =IF(D67=الصيادين!$C$1,COUNTIF($D$5:D67,D67),"") ->  | B67: 63
A68: =IF(D68=الصيادين!$C$1,COUNTIF($D$5:D68,D68),"") ->  | B68: 64
A69: =IF(D69=الصيادين!$C$1,COUNTIF($D$5:D69,D69),"") ->  | B69: 65
A70: =IF(D70=الصيادين!$C$1,COUNTIF($D$5:D70,D70),"") ->  | B70: 66
A71: =IF(D71=الصيادين!$C$1,COUNTIF($D$5:D71,D71),"") ->  | B71: 67
A72: =IF(D72=الصيادين!$C$1,COUNTIF($D$5:D72,D72),"") ->  | B72: 68
A73: =IF(D73=الصيادين!$C$1,COUNTIF($D$5:D73,D73),"") ->  | B73: 69
A74: =IF(D74=الصيادين!$C$1,COUNTIF($D$5:D74,D74),"") ->  | B74: 70
A75: =IF(D75=الصيادين!$C$1,COUNTIF($D$5:D75,D75),"") ->  | B75: 71
A76: =IF(D76=الصيادين!$C$1,COUNTIF($D$5:D76,D76),"") ->  | B76: 72
A77: =IF(D77=الصيادين!$C$1,COUNTIF($D$5:D77,D77),"") ->  | B77: 73
A78: =IF(D78=الصيادين!$C$1,COUNTIF($D$5:D78,D78),"") ->  | B78: 74
A79: =IF(D79=الصيادين!$C$1,COUNTIF($D$5:D79,D79),"") ->  | B79: 75
A80: =IF(D80=الصيادين!$C$1,COUNTIF($D$5:D80,D80),"") ->  | B80: 76
A81: =IF(D81=الصيادين!$C$1,COUNTIF($D$5:D81,D81),"") ->  | B81: 77
A82: =IF(D82=الصيادين!$C$1,COUNTIF($D$5:D82,D82),"") ->  | B82: 78
A83: =IF(D83=الصيادين!$C$1,COUNTIF($D$5:D83,D83),"") ->  | B83: 79
A84: =IF(D84=الصيادين!$C$1,COUNTIF($D$5:D84,D84),"") ->  | B84: 80
A85: =IF(D85=الصيادين!$C$1,COUNTIF($D$5:D85,D85),"") ->  | B85: 81
A86: =IF(D86=الصيادين!$C$1,COUNTIF($D$5:D86,D86),"") ->  | B86: 82
A87: =IF(D87=الصيادين!$C$1,COUNTIF($D$5:D87,D87),"") ->  | B87: 83
A88: =IF(D88=الصيادين!$C$1,COUNTIF($D$5:D88,D88),"") ->  | B88: 84
A89: =IF(D89=الصيادين!$C$1,COUNTIF($D$5:D89,D89),"") ->  | B89: 85
A90: =IF(D90=الصيادين!$C$1,COUNTIF($D$5:D90,D90),"") ->  | B90: 86
A91: =IF(D91=الصيادين!$C$1,COUNTIF($D$5:D91,D91),"") ->  | B91: 87
A92: =IF(D92=الصيادين!$C$1,COUNTIF($D$5:D92,D92),"") ->  | B92: 88
A93: =IF(D93=الصيادين!$C$1,COUNTIF($D$5:D93,D93),"") ->  | B93: 89
A94: =IF(D94=الصيادين!$C$1,COUNTIF($D$5:D94,D94),"") ->  | B94: 90
A95: =IF(D95=الصيادين!$C$1,COUNTIF($D$5:D95,D95),"") ->  | B95: 91
A96: =IF(D96=الصيادين!$C$1,COUNTIF($D$5:D96,D96),"") ->  | B96: 92
A97: =IF(D97=الصيادين!$C$1,COUNTIF($D$5:D97,D97),"") ->  | B97: 93
A98: =IF(D98=الصيادين!$C$1,COUNTIF($D$5:D98,D98),"") ->  | B98: 94
A99: =IF(D99=الصيادين!$C$1,COUNTIF($D$5:D99,D99),"") ->  | B99: 95
A100: =IF(D100=الصيادين!$C$1,COUNTIF($D$5:D100,D100),"") ->  | B100: 96
A101: =IF(D101=الصيادين!$C$1,COUNTIF($D$5:D101,D101),"") ->  | B101: 97
A102: =IF(D102=الصيادين!$C$1,COUNTIF($D$5:D102,D102),"") ->  | B102: 98
A103: =IF(D103=الصيادين!$C$1,COUNTIF($D$5:D103,D103),"") ->  | B103: 99
A104: =IF(D104=الصيادين!$C$1,COUNTIF($D$5:D104,D104),"") ->  | B104: 100
G105: =SUM(G5:G104) -> 0 | H105: =SUM(H5:H104) -> 0 | I105: =SUM(I5:I104) -> 0 | J105: =SUM(J5:J104) -> 0
C106: النقدى | E106: 400
C107: الاستيفاء | E107: 10
C108: الايرادات | E108: =J105 -> 0
C109: المدخول | E109: =E106+E107+E108 -> 410
C110: المصروفات | E110: =H105+I105 -> 0
C111: صافى المدخول | E111: =E109-E110 -> 410

Sheet الصيادين
C1: محمد | K1: =SUMPRODUCT(COUNTIF(INDIRECT("'"&Sheets&"'!D5:D1000"),الصيادين!$C$1)) -> 2 | XES1: محمد
... 2 more rows
